{"text_format":"1","workbook":"xlsx","n_sheets":1,"sheets":["fase 1"],"not_rendered":{"charts":0,"images":3,"macros":1,"external_links":1,"defined_names":12,"comments":0,"pivot_tables":0},"unopened":[],"bounds":{"document_bytes":16777216,"sheet_cells":100000,"rows_first":2000,"rows_last":500,"rows_between":2000,"halvings":0,"cell_chars":16384,"cell_head_chars":4096},"cells_cut":0,"cells_raw":0,"read":"whole","date_system":"1900"}

{"sheet":"fase 1","index":0,"n_rows":533,"n_cols":21,"rows_kept":533,"cut":false,"hidden":false,"merged":[[505,1,505,6],[112,1,112,6],[1,3,1,6],[2,3,6,6],[5,1,5,2],[8,1,8,6],[9,1,9,6],[86,1,86,5],[163,1,163,6],[87,1,87,6],[244,1,244,6]]}
[]
[null,null,null,"PROYECTO :"]
[null,null,null,"3 RA ETAPA DE REGENERACIÓN URBANA DEL ANDADOR Y PLAZA SALVATIERRA, MUNICIPIO DE LORETO, B.C.S."]
[]
[]
[null,"C A T A L O G O   D E   C O N C E P T O S"]
[]
[null,null,"CONCEPTO","UNIDAD","CANTIDAD","P. UNITARIO","IMPORTE"]
[null,"A. GENERAL"]
[null,"A.I. PRELIMINARES"]
[null,"A.I.1","SUMINISTRO E INSTALACION DE LETRERO ALUSIVO A LA OBRA DE 2.50 X 1.50 MTS., ELABORADO CON PTR DE 1 1/2\"  CAL. 18 Y LONA VULCANIZABLE CON OJILLOS A CADA 15 CMS. SEGÚN CROQUIS, INCLUYE:PLANO INTEGRAL, PERSPECTIVAS, CIMENTACION, MATERIALES, MANO DE OBRA, LIMPIEZA Y TODO LO NECESARIO PARA LA CORRECTA EJECUCIÓN DE LOS TRABAJOS.","LTE",1]
[null,"A.I.2","DEMOLICIONES Y RETIRO DE PAVIMENTO A BASE DE ADOQUIN DE 10 CMS DE ESPESOR APROX.INCLUYE:ACOPIO, RETIRO DEL PRODUCTO DE LA DEMOLICION, MANO DE OBRA, HERRAMIENTA Y EQUIPO PARA LA DEMOLICION.","M2",2000]
[null,"A.I.3","DEMOLICION Y RETIRO DE PIEDRA BOLA DE 10 CMS DE ESPESOR APROXIMADAMANTE, INCLUYE: ACOPIO, RETIRO DEL PRODUCTO DE LA DEMOLICION, MANO DE OBRA, HERRAMIENTA Y EQUIPO PARA LA DEMOLICION.","M2",660.8]
[null,"A.I.4","DEMOLICION Y RETIRO DE BANQUETA DE CONCRETO ESTAMPADO DE 10cm ESPESOR. INCLUYE: ACOPIO, RETIRO DEL PRODUCTO DE LA DEMOLICION, MANO DE OBRA, HERRAMIENTA Y EQUIPO PARA LA DEMOLICION.","M2",500]
[null,"A.I.5","DEMOLICION Y RETIRO DE GUARNICION TIPO  PECHO DE PALOMA  DE CONCRETO, INCLUYE: ACOPIO, RETIRO DEL PRODUCTO DE LA DEMOLICION, MANO DE OBRA, HERRAMIENTA Y EQUIPO PARA LA DEMOLICION.","ML",38]
[null,"A.I.6","DEMOLICIONES Y RETIRO DE PAVIMENTO A BASE DE PIEDRA LAJA NEGRA.INCLUYE:ACOPIO, RETIRO DEL PRODUCTO DE LA DEMOLICION, MANO DE OBRA, HERRAMIENTA Y EQUIPO PARA LA DEMOLICION.","M2",217.75]
[null,"A.I.7","DEMOLICION Y RETIRO DE MURO DE PIEDRA DE LA REGION  DE SECCION DE 80CM ALTURA X 30CMS. ANCHO,  INCLUYE: ACOPIO, RETIRO DEL PRODUCTO DE LA DEMOLICION, MANO DE OBRA, HERRAMIENTA Y EQUIPO PARA LA DEMOLICION.","M3",14]
[null,"A.I.8","DEMOLICION Y RETIRO DE BANCA A BASE DE MURO DE BLOCK Y LOSA  DE CONCRETO DE 5cm. ESPESOR SECCION DE 3.50x0.30M.  INCLUYE: ACOPIO, RETIRO DEL PRODUCTO DE LA DEMOLICION, MANO DE OBRA, HERRAMIENTA Y EQUIPO PARA LA DEMOLICION.","PZA",10]
[null,"A.I.9","DEMOLICIÓN DE BASE PARA BUSTO DEL GRAL. JUAN M.SALVATIERRA DE SECCION DE 1.10X1.10X01.50 MTS .  INCLUYE: ACOPIO, RETIRO DEL PRODUCTO DE LA DEMOLICION, MANO DE OBRA, HERRAMIENTA Y EQUIPO PARA LA DEMOLICION.","PZA",1]
[null,"A.I.10","RETIRO, RESGUARDO Y REUBICACIÓN DE BUSTO DEL GRAL. JUAN M.SALVATIERRA INCLUYE: MANO DE OBRA, HERRAMIENTA Y EQUIPO PARA LA DEMOLICION.","PZA",1]
[null,"A.I.11","RETIRO Y REUBICACIÓN DE MACETERA DE BARRO DE 0.60 A 1.20 MTS. DE ALTURA, INCLUYE: ACARREOS, MANO DE OBRA, EQUIPO Y HERRAMIENTA.","PZA",6]
[null,"A.I.12","RETIRO Y RESGUARDO DE LUMINARIAS DEL ALUMBRADO PUBLICO DE 14 A 5M  DE ALTURA, INCLUYE: DESMONTAJE DE LAMPARA, CABLEADO, DEMOLICION DE BASE DE CONCRETO, REGISTRO A BASE DE BLOCK, MANO DE OBRA, EQUIPO Y HERRAMIENTA.","PZA",8]
[null,"A.I.13","DEMOLICION DE REGISTRO SANITARIOS A BASE DE BLOCK DE 40 CMS X 60 CMS DE SECCION, INCLUYE: ACOPIO Y RETIRO DEL PRODUCTO DE LA DEMOLICION AL SITIO DE TIRO DE LA CIUDAD, RETIRO DE TUBERIAS, MANO DE OBRA, HERRAMIENTA Y EQUIPO.","PZA",10]
[null,"A.I.14","DEMOLICION DE REGISTRO TELMEX A BASE DE BLOCK. INCLUYE: ACOPIO Y RETIRO DEL PRODUCTO DE LA DEMOLICION AL SITIO DE TIRO DE LA CIUDAD, RETIRO DE TUBERIAS, MANO DE OBRA, HERRAMIENTA Y EQUIPO.","PZA",2]
[null,"A.I.15","RETIRO Y REUBICACION DE POSTE DE TELMEX  INCLUYE: , ACOPIO Y RETIRO DEL PRODUCTO DE LA DEMOLICION AL SITIO DE TIRO DE LA CIUDAD, RETIRO DE CABELEADO, TUBERIAS, MANO DE OBRA, HERRAMIENTA Y EQUIPO.","PZA",2]
[null,"A.I.16","DEMOLICION DE REGISTRO ELECTRICO A BASE DE BLOCK. INCLUYE: ACOPIO Y RETIRO DEL PRODUCTO DE LA DEMOLICION AL SITIO DE TIRO DE LA CIUDAD, RETIRO DE TUBERIAS, MANO DE OBRA, HERRAMIENTA Y EQUIPO.","PZA",2]
[null,"A.I.17","RETIRO Y REUBICACION DE POSTE DE CFE, INCLUYE: , ACOPIO Y RETIRO DEL PRODUCTO DE LA DEMOLICION AL SITIO DE TIRO DE LA CIUDAD, RETIRO DE CABELEADO, TUBERIAS, MANO DE OBRA, HERRAMIENTA Y EQUIPO.","PZA",1]
[null,"A.I.18","RETIRO DE SEÑALAMIENTO VIAL.  INCLUYE: ACOPIO, RETIRO DEL PRODUCTO DE LA DEMOLICION, MANO DE OBRA, HERRAMIENTA Y EQUIPO PARA LA DEMOLICION.","PZA",1]
[null,"A.I.19","DEMOLICION Y RETIRO DE ACOMETIDA ELECTRICA.  INCLUYE: ACOPIO, RETIRO DEL PRODUCTO DE LA DEMOLICION, MANO DE OBRA, HERRAMIENTA Y EQUIPO PARA LA DEMOLICION.","PZA",2]
[null,"A.I.20","DEMOLICION DE ESCALINATAS. A BASE DE ESCALONES RECUBIERTOS DE PIEDRA NEGRA DE LA REGION  INCLUYE: DEMOLICION, ACOPIO, RETIRO DEL PRODUCTO DE LA DEMOLICION, MANO DE OBRA, HERRAMIENTA Y EQUIPO PARA LA DEMOLICION.","M2",25]
[null,"A.I.21","RETIRO Y REUBICACIÓN DE LETRERO CONMEMORATIVO A LA MISION DE LORETO .  INCLUYE: ACOPIO, RETIRO DEL PRODUCTO DE LA DEMOLICION, MANO DE OBRA, HERRAMIENTA Y EQUIPO PARA LA DEMOLICION.","PZA",1]
[null,"A.I.22","RETIRO Y REUBICACIÓN DE LETRERO TURISTICO A LA MISION  DE LORETO .  INCLUYE: ACOPIO, RETIRO DEL PRODUCTO DE LA DEMOLICION, MANO DE OBRA, HERRAMIENTA Y EQUIPO PARA LA DEMOLICION.","PZA",1]
[null,"A.I.23","RETIRO Y REUBICACIÓN DE ARBOLES DE 1 A 4 MTS. DE ALTURA, INCLUYE: MANO DE OBRA, EQUIPO, TRANSPLANTA FUERA DE LA OBRA, ENRAISADORES, FERTILIZANTES, GRUAS SI ES NECESARIA, Y HERRAMUENTA","PZA",8]
[null,"A.I.24","RETIRO Y REUBICACIÓN DE PALMERA. DE ALTURA, INCLUYE: MANO DE OBRA, EQUIPO, TRANSPLANTA FUERA DE LA OBRA, ENRAISADORES, FERTILIZANTES, GRUAS SI ES NECESARIA, Y HERRAMUENTA","PZA",2]
[null,"A.I.25","      SEÑALAMIENTO PREVENTIVO, A BASE DE POSTES PARA DELIMITAR DE 1.20 MTS DE ALTURA, COLOR NARANJA Y CON BASE DE CAUCHO, INCLUYE: CINTA BLANCA AUTOREFLEJANTES NECESARIA PARA DELIMITAR EL ÁREA REQUERIDA, ARGOLLA SUPERIOR PARA CINTA, CINTA AMARILLA CON LA LEYENDA DE PRECAUCIÓN, TRASLADOS, CARGA Y DESCARGAS, ACOMODOS EN TODO EL TRAMO, MANO DE OBRA Y TODO LO NECESARIO PARA SU CORRECTA EJECUCIÓN.","PZA",10]
[null,"A.I.26","SUMINISTRO Y COLOCACION DE TAPIALES PARA PROTECCION DE OBRA, A BASE DE POSTES DE MADERA DE PINO Y TRIPLAY DE MADERA DE PINO Y LONA VULCANIZABLE CON GRAFICOS DE ACUERDO A LA ZONA, INCLUYE: EQUIPO,  HERRAMIENTA, MAQUINARIA, MANO DE OBRA, LIMPIEZA Y TODO LO NECESARIO PARA LA CORRECTA EJECUCIÓN DE LOS TRABAJOS. P.U.O.T.","ML",200]
[null,"A.I.27","DESCABECE DE MURO DE  PIEDRA.   INCLUYE: ACOPIO, RETIRO DEL PRODUCTO DE LA DEMOLICION, MANO DE OBRA, HERRAMIENTA Y EQUIPO PARA LA DEMOLICION.","M3",10]
[null,"A.I.28","DEMOLICION DE ESCALINATAS Y RAMPAS  EXISTENTES A BASE DE PIEDRA.   INCLUYE: ACOPIO, RETIRO DEL PRODUCTO DE LA DEMOLICION, MANO DE OBRA, HERRAMIENTA Y EQUIPO PARA LA DEMOLICION.","M3",25]
[null,null,"SUB TOTAL : PRELIMINARES",null,null,null,null,null,null,null,null,null,null,null,null,null,null,null,2.31,2,{"$f":"T39*S39","v":4.62}]
[null,"A.II.","II.-SANEAMIENTO DE AGUA POTABLE"]
[null,"A.II.01","EXCAVACIÓN POR MEDIOS MECANICOS, EN ZANJAS, EN TERRENO CON CUALQUIER CLASIFICACION Y PROFUNDIDAD EN PRESENCIA DE AGUA O EN SECO, RETIRO DEL MATERIAL HASTA 4 M DE DISTANCIA HORIZONTAL, EL PRECIO UNITARIO INCLUYE: TRAZO Y NIVELACION, EQUIPO DE BOMBEO PARA ACHIQUE, OBRAS DE PROTECCION DE TALUDES DE ZANJA, TRASPALEO, SEÑALAMIENTO PREVENTIVO, LA MANO DE OBRA PARA EL APOYO EN LAS OPERACIONES MECÁNICAS, AFINE DE TALUDES Y FONDO DE ZANJA, LIMPIEZA, LA MAQUINARIA, HERRAMIENTA Y EL EQUIPO NECESARIOS PARA LA CORRECTA EJECUCIÓN DE LOS TRABAJOS. PUOT","M3",165]
[null,"A.II.02","EXCAVACIÓN POR MEDIOS MANUALES, EN ZANJAS, EN TERRENO TIPO 2 , RETIRO DEL MATERIAL HASTA 4 M DE DISTANCIA HORIZONTAL, EL PRECIO UNITARIO INCLUYE: TRAZO Y NIVELACION, OBRAS DE PROTECCION DE TALUDES DE ZANJA, TRASPALEO, SEÑALAMIENTO PREVENTIVO, AFINE DE TALUDES Y FONDO DE ZANJA, LIMPIEZA, LA MANO DE OBRA, EQUIPO Y HERRAMIENTA NECESARIOS PARA LA CORRECTA EJECUCIÓN DE LOS TRABAJOS. PUOT.","M3",47]
[null,"A.II.03","CONSTRUCCION Y FORMACION DE FILTRO CAPA DE 30cm. PARA CONTROLAR EL NIVEL FREATICO, EN EL LECHO BAJO DE TUBERIAS, COMO CAPA ROMPEDORA DE CAPILARIDAD, CON MATERIAL PETREO (FRAGMENTOS DE ROCA Y GRAVA), TAMAÑO MAXIMO DE 3/4\" A 1 1/2\", PARCIALMENTE TRITURADO, PROVENIENTE DE BANCO QUE CUMPLAN CON LAS ESPECIFICACIONES VIGENTES. INCLUYE: ACARREOS DENTRO DE LA OBRA, TENDIDO Y ACOMODO POR CAPAS, LOS MATERIALES, MANO DE OBRA, HERRAMIENTA Y EQUIPO NECESARIO.","M3",62]
[null,"A.II.04","CONSTRUCCION Y FORMACION DE FILTRO CAPA DE 15cm. PARA CONTROLAR EL NIVEL FREATICO, EN EL LECHO BAJO DE TUBERIAS, COMO CAPA ROMPEDORA DE CAPILARIDAD, CON ARENA DE ARROYO, PROVENIENTE DE BANCO QUE CUMPLAN CON LAS ESPECIFICACIONES VIGENTES. INCLUYE: ACARREOS DENTRO DE LA OBRA, TENDIDO Y ACOMODO POR CAPAS, LOS MATERIALES, MANO DE OBRA, HERRAMIENTA Y EQUIPO NECESARIO.","M3",31]
[null,"A.II.05","PLANTILLA COMPACTADA PARA  TUBERIA DE 3\"Ø, 6\"Ø y 8\"Ø, CON EQUIPO MECANICO DE 10 CM. DE ESPESOR EN ZANJAS, CON MATERIAL SELECCIONADO PRODUCTO DE BANCO LIBRE DE BOLEO MAYOR DE 3\". INCLUYE: CRIBADO DEL MATERIAL, ACARREOS DENTRO DE LA OBRA, INCORPORACIÓN DE HUMEDAD, COMPACTACION DEL 85% PROCTOR, MANO DE OBRA, , HERRAMIENTA Y EQUIPO NECESARIO. ","M3",25]
[null,"A.II.06","RELLENO COMPACTADO CON EQUIPO MECANICO MANUAL EN CAPAS DE 20 CM. EN CEPA, CON MATERIAL SELECCIONADO PRODUCTO DE BANCO (CRIBADO POR LA MALLA DE 2 1/2\") LIBRE DE BOLEO MAYOR DE 3\" , COMPACTADO AL 90% PROCTOR. INCLUYE: CRIBADO DEL MATERIAL, ACARREOS DENTRO DE LA OBRA, INCORPORACION DE HUMEDAD, MANO DE OBRA, HERRAMIENTA Y EQUIPO NECESARIO. ","M3",68]
[null,"A.II.07","RELLENO COMPACTADO CON EQUIPO MECANICO MANUAL EN CAPAS DE 20 CM. EN CEPA, CON MATERIAL SELECCIONADO PRODUCTO DE LA EXCAVACION (CRIBADO POR LA MALLA DE 2 1/2\") LIBRE DE BOLEO MAYOR DE 3\" , COMPACTADO AL 90% PROCTOR. INCLUYE: CRIBADO DEL MATERIAL, ACARREOS DENTRO DE LA OBRA, INCORPORACION DE HUMEDAD, MANO DE OBRA, HERRAMIENTA Y EQUIPO NECESARIO. ","M3",78]
[null,"A.II.08","TOMA DE AGUA POTABLE DE 6\"x1/2\" CON TUBO KITEC DE 1/2\" DE DIAMETRO. INCLUYE: ABRAZADERA DE PVC TIPO-II. C/VALVULA DE INSER.Y SACABOCADO INTEGRADO FLOTAP DE 6\"x3/4\", REDUCCION DE 3/4\" A 1/2\", INSERTOS Y CONECTORES PARA KITEC, TUBO KITEC DE 1/2\" DE DIAM. VALVULA DE ANGULO TIPO BOLA, VALVULA MUNICIPAL DE BLOQUEO SENCILLO,  MATERIALES, MANO DE OBRA Y HERRAMIENTA. PARA RED DE AGUA POTABLE DE PVC HIDRAULICO DE 6\" DE DIAMETRO. SONDEOS PARA LOCALIZACION DE LA TOMA, DEMOLICIONES NECESARIAS PARA SU INSTALACION, REPARACION PROVISIONAL DE TOMA DOMICILIARIA; INTERCONEXIONES EN TUBO DE COBRE, MANGUERA HIDRAULICA Y/O P.V.C. HIDRAULICO CED. 40 SEGUN SEA EL CASO. U.O.T. (LONGITUD DE 5.00 A 10.00 MTS.).","PZA",12]
[null,"A.II.09","TOMA DE AGUA POTABLE DE 6\"x3/4\" CON TUBO KITEC DE 3/4\" DE DIAMETRO. INCLUYE: ABRAZADERA DE PVC TIPO-II. C/VALVULA DE INSER.Y SACABOCADO INTEGRADO FLOTAP DE 6\"x3/4\", INSERTOS Y CONECTORES PARA KITEC, TUBO KITEC DE 3/4\" DE DIAM. VALVULA DE ANGULO TIPO BOLA, VALVULA MUNICIPAL DE BLOQUEO SENCILLO,  MATERIALES, MANO DE OBRA Y HERRAMIENTA. PARA RED DE AGUA POTABLE DE PVC HIDRAULICO DE 6\" DE DIAMETRO. SONDEOS PARA LOCALIZACION DE LA TOMA, DEMOLICIONES NECESARIAS PARA SU INSTALACION, REPARACION PROVISIONAL DE TOMA DOMICILIARIA; INTERCONEXIONES EN TUBO DE COBRE, MANGUERA HIDRAULICA Y/O P.V.C. HIDRAULICO CED. 40 SEGUN SEA EL CASO. U.O.T.(LONGITUD DE 5.00 A 10.00 MTS.).","PZA",1]
[null,"A.II.10","SUMINISTRO Y COLOCACION DE REGISTRO HIDRAULICO DE 40X54X31 CM DE PROFUNDIDAD, DE CONCRETO POLIMERICO FC=800 KG/CM2 INCLUYE: DEMOLICION Y RETIRO DEL REGISTRO EXISTENTE, TAPA Y CONTRAMARCO DE CONCRETO POLIMERICO REFORZADO CON FIBRA DE VIDRIO, EL CUERPO DEL REGISTRO SERA DE FIBRA DE VIDRIO CON ESPESOR DE 1/8\" ENTINTADO AL COLOR DEL PISO SEGUN MUESTRA AUTORIZADA CON GRABADO  EN TAPA CON LEYENDA QUE INDIQUE  SUPERVISION, FILTRO DE 10 CM DE ESPESOR DE GRAVA TMA 3/4\", CONSUMIBLES, EQUIPO, HERRAMIENTA, MANO DE OBRA Y TODO LO NECESARIO PARA LA CORRECTA EJECUCIÓN DE LOS TRABAJOS, COLOCADO SOBRE PLANTILLA DE MORTERO DE CEMENTO-ARENA 1:3 DE 6 CM. DE ESPEROR, PREVIO EL NIVELADO Y COMPACTACION DEL TERRENO NATURAL.","PZA",12]
[null,"A.II.11","REPOSICION DE TUBERIA DE ASBESTO DE 3\" DE DIAMETRO POR TUBERIA DE PVC. HIDRAULICO ANGER (RD-32.5) DE 3\" ØDE DIAMETRO. INCLUYE: TRAZO, NIVELACION, SUMINISTRO, INSTALACION, JUNTEO, LIMPIEZA,PRUEBA HIDRAULICA, INTERCONEXION A LA RED MUNICIPAL, SONDEO PARA LA LOCALIZACION DE TUBERIA, MANO DE OBRA Y HERRAMIENTA, U.O.T.","ML",24]
[null,"A.II.12","REPOSICION DE TUBERIA DE ASBESTO DE 6\" DE DIAMETRO POR TUBERIA DE PVC. HIDRAULICO ANGER (RD-32.5) DE 6\"Ø  DE DIAMETRO. INCLUYE: TRAZO, NIVELACION, SUMINISTRO, INSTALACION, JUNTEO, LIMPIEZA,PRUEBA HIDRAULICA, INTERCONEXION A LA RED MUNICIPAL, SONDEO PARA LA LOCALIZACION DE TUBERIA, MANO DE OBRA Y HERRAMIENTA, U.O.T.","ML",90]
[null,"A.II.13","REPOSICION DE TUBERIA DE ASBESTO DE 8\" DE DIAMETRO POR TUBERIA DE PVC. HIDRAULICO ANGER (RD-32.5) DE 8\"Ø  DE DIAMETRO. INCLUYE: TRAZO, NIVELACION, SUMINISTRO, INSTALACION, JUNTEO, LIMPIEZA,PRUEBA HIDRAULICA, INTERCONEXION A LA RED MUNICIPAL, SONDEO PARA LA LOCALIZACION DE TUBERIA, MANO DE OBRA Y HERRAMIENTA, U.O.T.","ML",90]
[null,"A.II.14","SUMINISTRO E INSTALACION VALVULA DE Fo.Fo. BRIDADA TIPO COMPUERTA VASTAGO FIJO DE 3\"  DE DIAMETRO                   ( 76.2mm). INCLUYE: MANIOBRAS, INSTALACION, LIMPIEZA, PRUEBA HIDRAULICA, MANO DE OBRA Y  HERRAMIENTA. ","PZA",1]
[null,"A.II.15","SUMINISTRO E INSTALACIÓN DE CRUZ  DE FoFo. DE 203.2mm  ( 8\") BRIDADA   INCLUYE:  . TUBERIA DE CONEXIÓN, ADAPTADOR,  CONEXIONES A LA  RED DE PROYECTO, CONSUMIBLES, MANO DE OBRA, EQUIPO, HERRAMIENTA.Y TODO LO NECESARIO PARA LA CORRECTA EJECUCIÓN DE LOS TRABAJOS.","PZA",1]
[null,"A.II.16","SUMINISTRO E INSTALACIÓN DE TEE DE FoFo.   ( 8\")   DE 203.2mm INCLUYE:  . TUBERIA DE CONEXIÓN, ADAPTADOR,  CONEXIONES A LA  RED DE PROYECTO, CONSUMIBLES, MANO DE OBRA, EQUIPO, HERRAMIENTA.Y TODO LO NECESARIO PARA LA CORRECTA EJECUCIÓN DE LOS TRABAJOS.","PZA",1]
[null,"A.II.17","SUMINISTRO E INSTALACIÓN DE TEE DE FoFo.  ( 6\") DE 152.4mm   INCLUYE:  . TUBERIA DE CONEXIÓN, ADAPTADOR,  CONEXIONES A LA  RED DE PROYECTO, CONSUMIBLES, MANO DE OBRA, EQUIPO, HERRAMIENTA.Y TODO LO NECESARIO PARA LA CORRECTA EJECUCIÓN DE LOS TRABAJOS.","PZA",1]
[null,"A.II.18","SUMINISTRO E INSTALACION DE TEE DE FO.FO. 6\" x 4\" DE DIAMETRO.  152.40mm, INCLUYE: MANIOBRAS, INSTALACION, LIMPIEZA, PRUEBA HIDRAULICA, MANO DE OBRA Y HERRAMIENTA","PZA",1]
[null,"A.II.19","SUMINISTRO E INSTALACIÓN DE REDUCCIÓN CAMPANA DE FoFo.   DE 203.2mm X 76.2mm ( 8\"x3\")  INCLUYE:  . TUBERIA DE CONEXIÓN, ADAPTADOR,  CONEXIONES A LA  RED DE PROYECTO, CONSUMIBLES, MANO DE OBRA, EQUIPO, HERRAMIENTA.Y TODO LO NECESARIO PARA LA CORRECTA EJECUCIÓN DE LOS TRABAJOS.","PZA",1]
[null,"A.II.20","SUMINISTRO E INSTALACIÓN DE REDUCCIÓN CAMPANA DE FoFo.  DE 152.4mm X 76.2mm ( 6\"x 3\")  INCLUYE:  . TUBERIA DE CONEXIÓN, ADAPTADOR,  CONEXIONES A LA  RED DE PROYECTO, CONSUMIBLES, MANO DE OBRA, EQUIPO, HERRAMIENTA.Y TODO LO NECESARIO PARA LA CORRECTA EJECUCIÓN DE LOS TRABAJOS.","PZA",1]
[null,"A.II.21","SUMINISTRO E INSTALACIÓN DE REDUCCIÓN CAMPANA DE FoFo.  DE 152.4mm X 76.2mm ( 6\"x 4\")  INCLUYE:  . TUBERIA DE CONEXIÓN, ADAPTADOR,  CONEXIONES A LA  RED DE PROYECTO, CONSUMIBLES, MANO DE OBRA, EQUIPO, HERRAMIENTA.Y TODO LO NECESARIO PARA LA CORRECTA EJECUCIÓN DE LOS TRABAJOS.","PZA",1]
[null,"A.II.22","SUMINISTRO E INSTALACION DE EXTREMIDAD CAMPANA  DE PVC. 3\" DE DIAMETRO. INCLUYE: MANIOBRAS, INSTALACION, LIMPIEZA, PRUEBA HIDRAULICA, MANO DE OBRA Y HERRAMIENTA.","PZA",1]
[null,"A.II.23","SUMINISTRO E INSTALACION DE EXTREMIDAD ESPIGA  DE PVC. 3\" DE DIAMETRO. INCLUYE: MANIOBRAS, INSTALACION, LIMPIEZA, PRUEBA HIDRAULICA, MANO DE OBRA Y HERRAMIENTA.","PZA",1]
[null,"A.II.24","SUMINISTRO E INSTALACIÓN DE JUNTA UNIVERSAL PARA TUBERIA DE  76.2 mm. ( 3\"Ø) , INCLUYE: TUBERIA DE CONEXIÓN, ADAPTADOR,  CONEXIONES A LA  RED DE PROYECTO, CONSUMIBLES, MANO DE OBRA, EQUIPO, HERRAMIENTA.Y TODO LO NECESARIO PARA LA CORRECTA EJECUCIÓN DE LOS TRABAJOS.","PZA",2]
[null,"A.II.25","SUMINISTRO E INSTALACIÓN DE JUNTA UNIVERSAL PARA TUBERIA DE 152.4 mm. ( 6\"Ø) , INCLUYE: TUBERIA DE CONEXIÓN, ADAPTADOR,  CONEXIONES A LA  RED DE PROYECTO, CONSUMIBLES, MANO DE OBRA, EQUIPO, HERRAMIENTA.Y TODO LO NECESARIO PARA LA CORRECTA EJECUCIÓN DE LOS TRABAJOS.","PZA",2]
[null,"A.II.26","SUMINISTRO E INSTALACIÓN DE JUNTA UNIVERSAL PARA TUBERIA DE 203.2 mm. ( 8\"Ø) , INCLUYE: TUBERIA DE CONEXIÓN, ADAPTADOR,  CONEXIONES A LA  RED DE PROYECTO, CONSUMIBLES, MANO DE OBRA, EQUIPO, HERRAMIENTA.Y TODO LO NECESARIO PARA LA CORRECTA EJECUCIÓN DE LOS TRABAJOS.","PZA",2]
[null,"A.II.27","SUMINISTRO E INSTALACION DE EMPAQUE DE NEOPRENO DE 3\" DE DIAMETRO. INCLUYE: MANIOBRAS, INSTALACION, LIMPIEZA, PRUEBA HIDRAULICA, MANO DE OBRA Y HERRAMIENTA.","PZA",3]
[null,"A.II.28","SUMINISTRO E INSTALACION DE EMPAQUE DE NEOPRENO DE 6\" DE DIAMETRO. INCLUYE: MANIOBRAS, INSTALACION, LIMPIEZA, PRUEBA HIDRAULICA, MANO DE OBRA Y HERRAMIENTA.","PZA",4]
[null,"A.II.29","SUMINISTRO E INSTALACION DE EMPAQUE DE NEOPRENO DE 8\" DE DIAMETRO. INCLUYE: MANIOBRAS, INSTALACION, LIMPIEZA, PRUEBA HIDRAULICA, MANO DE OBRA Y HERRAMIENTA.","PZA",4]
[null,"A.II.30","SUMINISTRO E INSTALACION DE EMPAQUE DE PLOMO DE 3\" DE DIAMETRO. INCLUYE: MANIOBRAS, INSTALACION, LIMPIEZA, PRUEBA HIDRAULICA, MANO DE OBRA Y HERRAMIENTA.","PZA",1]
[null,"A.II.31","SUMINISTRO E INSTALACION DE EMPAQUE DE PLOMO DE 6\" DE DIAMETRO. INCLUYE: MANIOBRAS, INSTALACION, LIMPIEZA, PRUEBA HIDRAULICA, MANO DE OBRA Y HERRAMIENTA.","PZA",1]
[null,"A.II.32","SUMINISTRO E INSTALACION DE EMPAQUE DE PLOMO DE 8\" DE DIAMETRO. INCLUYE: MANIOBRAS, INSTALACION, LIMPIEZA, PRUEBA HIDRAULICA, MANO DE OBRA Y HERRAMIENTA.","PZA",1]
[null,"A.II.33","SUMINISTRO E INSTALACION DE COPLE DE REPARACION DE PVC. HID. ANGER DE 6\" DE DIAMETRO. INCLUYE: MANIOBRAS, INSTALACION, LIMPIEZA, PRUEBA HIDRAULICA, MANO DE OBRA Y HERRAMIENTA.","PZA",1]
[null,"A.II.34","SUMINISTRO E INSTALACION DE COPLE DE REPARACION DE PVC. HID. ANGER DE 8\" DE DIAMETRO. INCLUYE: MANIOBRAS, INSTALACION, LIMPIEZA, PRUEBA HIDRAULICA, MANO DE OBRA Y HERRAMIENTA.","PZA",1]
[null,"A.II.35","SUMINISTRO E INSTALACIÓN DE TORNILLO CON CABEZA Y TUERCA HEXAGONAL DE 76.2mm. ( 3\" = 5/8\"x 3\"1/4\")   INCLUYE:  CONEXIÓN, CONSUMIBLES, MANO DE OBRA, EQUIPO, HERRAMIENTA.Y TODO LO NECESARIO PARA LA CORRECTA EJECUCIÓN DE LOS TRABAJOS.","PZA",9]
[null,"A.II.36","SUMINISTRO E INSTALACIÓN DE TORNILLO CON CABEZA Y TUERCA HEXAGONAL DE 152mm. ( 6\" = 3/4 x 4\")   INCLUYE:  CONEXIÓN, CONSUMIBLES, MANO DE OBRA, EQUIPO, HERRAMIENTA.Y TODO LO NECESARIO PARA LA CORRECTA EJECUCIÓN DE LOS TRABAJOS.","PZA",12]
[null,"A.II.37","SUMINISTRO E INSTALACIÓN DE TORNILLO CON CABEZA Y TUERCA HEXAGONAL DE 203.2mm. ( 8\" = 3/4\"x 4\"1/2\")   INCLUYE:  CONEXIÓN, CONSUMIBLES, MANO DE OBRA, EQUIPO, HERRAMIENTA.Y TODO LO NECESARIO PARA LA CORRECTA EJECUCIÓN DE LOS TRABAJOS.",null,32]
[null,"A.II.38","SUMINISTRO Y COLOCACION DE MARCO CON TAPA DE Fo.Fo. DE 50 x 50 CM. TIPO PESADO. CON LEYENDA DE AGUA POTABLE Y LOGOTIPO DE DISEÑO DE TAPA CON LOGO  DEL GOBIERNO DE LORETO (  VER PLANO) . INCLUYE: LEYENDA DE AGUA POTABLE, MANIOBRAS, ACARREOS, MATERIAL, MANO DE OBRA Y HERRAMIENTA","PZA",1]
[null,"A.II.39","SUMINISTRO Y COLOCACION DE CONTRAMARCO SENCILLO DE 1.40 MTS. CON CANAL DE 4\" DE PERALTE. INCLUYE: MANIOBRAS, ACARREOS, MATERIAL, MANO DE OBRA Y HERRAMIENTA.","PZA",1]
[null,"A.II.40","ELABORACION DE TAPA PROVISIONAL DE MADERA PARA CAJA DE OPERACIÓN DE VALVULAS, SEGÚN PROYECTO. INCLUYE: COLOCACION, MATERIALES, MANO DE OBRA Y HERRAMIENTA.","PZA",1]
[null,"A.II.41","CONSTRUCCION DE ATRAQUES DE CONCRETO DE  F´C=200 KG/CM2 T.M.A. 3/4\" REV. NORMAL. ELABORADO EN OBRA. INCLUYE: ELABORACION, COLADO Y VIBRADO DE CONCRETO, CIMBRADO Y DESCIMBRADO, MATERIALES, MANO DE OBRA, HERRAMIENTA Y EQUIPO NECESARIO.","M3",0.5]
[null,"A.II.42","CONSTRUCCION DE CAJA DE OPERACION DE VALVULA TIPO 2  DE (1.28x1.18mm). MEDIDA INTERIOR,  A BASE DE BLOCK 15x20x40 CM, ACABADO COMUN. ASENTADO Y APLANADO INTERIOR FULIDO CON MORTERO DE CEMENTO-ARENA EN PROPORCION DE 1:3. CIMENTACION CON LOSA DE CONCRETO F'C=200 KG/CM². T.M.A. 3/4\", REV. NORMAL DE 10 CM DE ESPESOR, ARMADO CON VARILLA DEL No. 3 @ 10 CM AMBOS SENTIDOS. REFUERZO VERTICAL CON VARILLAS DEL No. 3 @ 60 CM EN CELDAS AHOGADAS CON CONCRETO F'C=150 KG/CM². T.M.A. 3/4\" REV. NORMAL. CADENA DE CERRAMIENTO CON CONCRETO F'C=150 KG/CM². T.M.A. 3/4\" REV. NORMAL DE 10 CM, DE 15x15 CM ARMADA CON 4 VARILLAS DEL No. 3 Y ESTRIBOS DE 1/4\" @ 20 CM. LOSA DE CONCRETO F'C=250 KG/CM². T.M.A. 3/4\" REV. NORMAL DE 15 CMS. DE ESPESOR. ARMADO CON VARILLA DEL No. 3 @ 15 CM AMBOS SENTIDOS. INCLUYE: EXCAVACION, RELLENO COMPACTADOAL 85% EN CAPAS DE 20 CM DE ESPESOR, HABILITADO, TRASLAPES, AMARRES DEL ACERO, CIMBRADO Y DESCIMBRADO CON MADERA DE PINO,  MATERIALES , MANO DE OBRA Y HERRAMIENTA. (SIN CONTRAMARCO Y MARCO CON TAPA DE Fo.Fo.)","PZA",1]
[null,"A.II.43","CONSTRUCCION DE CAJA DE OPERACION DE VALVULA TIPO 3 DE (1.96x1.76mm). MEDIDA INTERIOR,  A BASE DE BLOCK 15x20x40 CM, ACABADO COMUN. ASENTADO Y APLANADO INTERIOR FULIDO CON MORTERO DE CEMENTO-ARENA EN PROPORCION DE 1:3. CIMENTACION CON LOSA DE CONCRETO F'C=200 KG/CM². T.M.A. 3/4\", REV. NORMAL DE 10 CM DE ESPESOR, ARMADO CON VARILLA DEL No. 3 @ 10 CM AMBOS SENTIDOS. REFUERZO VERTICAL CON VARILLAS DEL No. 3 @ 60 CM EN CELDAS AHOGADAS CON CONCRETO F'C=150 KG/CM². T.M.A. 3/4\" REV. NORMAL. CADENA DE CERRAMIENTO CON CONCRETO F'C=150 KG/CM². T.M.A. 3/4\" REV. NORMAL DE 10 CM, DE 15x15 CM ARMADA CON 4 VARILLAS DEL No. 3 Y ESTRIBOS DE 1/4\" @ 20 CM. LOSA DE CONCRETO F'C=250 KG/CM². T.M.A. 3/4\" REV. NORMAL DE 15 CMS. DE ESPESOR. ARMADO CON VARILLA DEL No. 3 @ 15 CM AMBOS SENTIDOS. INCLUYE: EXCAVACION, RELLENO COMPACTADO AL 85% EN CAPAS DE 20 CM DE ESPESOR, HABILITADO, TRASLAPES, AMARRES DEL ACERO, CIMBRADO Y DESCIMBRADO CON MADERA DE PINO,  MATERIALES , MANO DE OBRA Y HERRAMIENTA. (SIN CONTRAMARCO Y MARCO CON TAPA DE Fo.Fo.)","PZA",1]
[null,"A.II.44","CORTE Y DESCABECE DE CAJA DE OPERACION DE VALVULAS PARA DAR NIVEL DE RASANTE Y PERMITIR LA LIBRE CIRCULACION DE MAQUINARIA. INCLUYE: CORTE CON CORTADORA DE DISCO, DEMOLICIONES NECESARIAS POR MEDIOS MANUALES, RECUPERACION DE LA TAPA DE Fo.Fo. EN SU CASO, ALMACENAJE, SUMINISTRO Y COLOCACION DE TAPA PROVISIONAL DE MADERA, CARGA Y ACARREO FUERA DE LA OBRA HASTA EL LUGAR INDICADO POR SUPERVISION, DE LOS MATERIALES PRODUCTO DE LA DEMOLICION, MATERIALES, SEÑALAMIENTO PREVENTIVO, MANO DE OBRA, HERRAMIENTA Y EQUIPO NECESARIO. (NOTA EL MARCO CON TAPA DE Fo.Fo. RECUPERADO SE DEBERA LLEVAR AL LUGAR INDICADO).","PZA",1]
[null,"A.II.45","TERMINACION DE CAJA DE OPERACION DE VALVULAS SEGUN PROYECTO HASTA NIVEL DE RASANTE DE PROYECTO.  PARA CAJA DE VALVULA TIPO 2 Y 5 , INCLUYE: CORTE CON CORTADORA DE DISCO, LOSA DE CONCRETO F'C=250 KG/CM² DE 10 CM. DE ESPESOR. ACABADO EXTERIOR RAYADO CON BROCHA DE PELO, ARMADA CON VAR. DEL No. 3 A CADA 10 CM. AMBOS SENTIDOS, MUROS DE BLOCK 15x20x40CM, ASENTADO CON MORTERO CEMENTO ARENA 1:5, APLANADO PULIDO INTERIOR, DESAZOLVE Y LIMPIEZA EN CASO NECESARIO, SUMINISTRO Y COLOCACION DE CONTRAMARCO Y MARCO CON TAPA DE Fo.Fo. DE 50x50 CM. TIPO PESADO CON LEYENDA DE AGUA POTABLE, MANIOBRAS, ACARREOS, CARGA Y RETIRO DE ESCOMBRO FUERA DE OBRA, EXCAVACION Y RELLENO COMPACTADO EN CAPAS DE 20 CM, AL 95% DE SU P.V.S.M. MATERIALES, SEÑALAMIENTO PREVENTIVO, MANO DE OBRA, HERRAMIENTA Y EQUIPO NECESARIO. ","PZA",1]
[null,"A.II.46","CARGA Y RETIRO DE MATERIAL MIXTO, SOBRANTE NO UTILIZABLE PRODUCTO DE LA EXCAVACION FUERA DE LA OBRA HASTA EL SITIO AUTORIZADO, SEGÚN INDICACIONES POR SUPERVISION, INCLUYE: ACARREOS DENTRO DE LA OBRA, MANO DE OBRA, HERRAMIENTA Y EQUIPO NECESARIO.","M3",90]
[null,"SUB TOTAL : SANEAMIENTO DE AGUA POTABLE"]
[null,"A.III.- SANEAMIENTO DE LA RED DE DRENAJE"]
[null,"A.III.1","EXCAVACIÓN POR MEDIOS MECANICOS, EN ZANJAS, EN TERRENO CON CUALQUIER CLASIFICACION Y PROFUNDIDAD EN PRESENCIA DE AGUA O EN SECO, RETIRO DEL MATERIAL HASTA 4 M DE DISTANCIA HORIZONTAL, EL PRECIO UNITARIO INCLUYE: TRAZO Y NIVELACION, EQUIPO DE BOMBEO PARA ACHIQUE, OBRAS DE PROTECCION DE TALUDES DE ZANJA, TRASPALEO, SEÑALAMIENTO PREVENTIVO, LA MANO DE OBRA PARA EL APOYO EN LAS OPERACIONES MECÁNICAS, AFINE DE TALUDES Y FONDO DE ZANJA, LIMPIEZA, LA MAQUINARIA, HERRAMIENTA Y EL EQUIPO NECESARIOS PARA LA CORRECTA EJECUCIÓN DE LOS TRABAJOS. PUOT.","M3",85]
[null,"A.III.2","EXCAVACIÓN POR MEDIOS MANUALES, EN ZANJAS, EN TERRENO CON CUALQUIER CLASIFICACION Y PROFUNDIDAD EN PRESENCIA DE AGUA O EN SECO, RETIRO DEL MATERIAL HASTA 4 M DE DISTANCIA HORIZONTAL, EL PRECIO UNITARIO INCLUYE: TRAZO Y NIVELACION, EQUIPO DE BOMBEO PARA ACHIQUE, OBRAS DE PROTECCION DE TALUDES DE ZANJA, TRASPALEO, SEÑALAMIENTO PREVENTIVO, AFINE DE TALUDES Y FONDO DE ZANJA, LIMPIEZA, LA MANO DE OBRA, EQUIPO Y HERRAMIENTA NECESARIOS PARA LA CORRECTA EJECUCIÓN DE LOS TRABAJOS. PUOT.","M3",62]
[null,"A.III.3","CONSTRUCCION Y FORMACION DE FILTRO PARA CONTROLAR EL NIVEL FREATICO, EN EL LECHO BAJO DE TUBERIAS, COMO CAPA ROMPEDORA DE CAPILARIDAD, CON MATERIAL PETREO (FRAGMENTOS DE ROCA Y GRAVA), TAMAÑO MAXIMO DE 1\" A 3\", PARCIALMENTE TRITURADO, PROVENIENTE DE BANCO, A SOLICITUD DE LA SUPERVISION QUE CUMPLAN CON LAS ESPECIFICACIONES VIGENTES. INCLUYE: ACARREOS DENTRO DE LA OBRA, TENDIDO Y ACOMODO POR CAPAS, LOS MATERIALES, MANO DE OBRA, HERRAMIENTA Y EQUIPO NECESARIO.","M3",21]
[null,"A.III.4","CONSTRUCCION Y FORMACION DE FILTRO CAPA DE 30cm. PARA CONTROLAR EL NIVEL FREATICO, EN EL LECHO BAJO DE TUBERIAS, COMO CAPA ROMPEDORA DE CAPILARIDAD, CON MATERIAL PETREO (FRAGMENTOS DE ROCA Y GRAVA), TAMAÑO MAXIMO DE 3/4\" A 1 1/2\", PARCIALMENTE TRITURADO, PROVENIENTE DE BANCO QUE CUMPLAN CON LAS ESPECIFICACIONES VIGENTES. INCLUYE: ACARREOS DENTRO DE LA OBRA, TENDIDO Y ACOMODO POR CAPAS, LOS MATERIALES, MANO DE OBRA, HERRAMIENTA Y EQUIPO NECESARIO.","M3",21]
[null,"A.III.5","CONSTRUCCION Y FORMACION DE FILTRO CAPA DE 15cm. PARA CONTROLAR EL NIVEL FREATICO, EN EL LECHO BAJO DE TUBERIAS, COMO CAPA ROMPEDORA DE CAPILARIDAD, CON ARENA DE ARROYO, PROVENIENTE DE BANCO QUE CUMPLAN CON LAS ESPECIFICACIONES VIGENTES. INCLUYE: ACARREOS DENTRO DE LA OBRA, TENDIDO Y ACOMODO POR CAPAS, LOS MATERIALES, MANO DE OBRA, HERRAMIENTA Y EQUIPO NECESARIO.","M3",11]
[null,"A.III.6","PLANTILLA COMPACTADA CON EQUIPO MECANICO DE 10 CM. DE ESPESOR EN ZANJAS, CON MATERIAL SELECCIONADO PRODUCTO DE BANCO LIBRE DE BOLEO MAYOR DE 1\". INCLUYE: CRIBADO DEL MATERIAL, ACARREOS DENTRO DE LA OBRA, INCORPORACION DE HUMEDAD, COMPACTACION DEL 85% PROCTOR, MANO DE OBRA, , HERRAMIENTA Y EQUIPO NECESARIO. ","M3",13]
[null,"A.III.7","RELLENO COMPACTADO CON EQUIPO MECANICO Y  MANUAL EN CAPAS DE 20 CM. EN CEPA, CON MATERIAL SELECCIONADO PRODUCTO DE BANCO (CRIBADO POR LA MALLA DE 2 1/2\") LIBRE DE BOLEO MAYOR DE 3\" , COMPACTADO AL 90% PROCTOR. INCLUYE: CRIBADO DEL MATERIAL, ACARREOS DENTRO DE LA OBRA, INCORPORACION DE HUMEDAD, MANO DE OBRA, HERRAMIENTA Y EQUIPO NECESARIO. ","M3",62]
[null,"A.III.8","RELLENO COMPACTADO CON EQUIPO MECANICO Y  MANUAL EN CAPAS DE 20 CM. EN CEPA, CON MATERIAL SELECCIONADO PRODUCTO DE LA EXCAVACION (CRIBADO POR LA MALLA DE 2 1/2\") LIBRE DE BOLEO MAYOR DE 3\" , COMPACTADO AL 90% PROCTOR. INCLUYE: CRIBADO DEL MATERIAL, ACARREOS DENTRO DE LA OBRA, INCORPORACION DE HUMEDAD, MANO DE OBRA, HERRAMIENTA Y EQUIPO NECESARIO. ","M3",71]
[null,"A.III.9","REPOSICIÓN DE TUBERIA DE ALBAÑAL DE CONCRETO DE 8\" DE DIAM. POR TUBERIA DE PVC SANITARIO CON COPLE INTEGRAL (SRD-35) DE 8\" DE DIAMETRO. CON PRESCENCIA DE AGUAS NEGRAS. INCLUYE: SUMINISTRO DE TUBO, MATERIAL, MANIOBRAS, EQUIPO PARA TAPONAMIENTO, CONEXION E INTERCONEXION DEL TUBO A POZOS DE VISITA (CONSTRUIDOS Y/O EXISTENTES),  MANO DE OBRA Y HERRAMIENTA, REPARACION PROVISIONAL DE DESCARGAS DOMICILIARIAS, SONDEO PARA LA LOCALIZACION DE TUBERIA, U.O.T.","ML",90]
[null,"A.III.10","SUMINISTRO E INSTALACION DE TUBO DE PVC SANITARIO CON COPLE INTEGRAL Y ANILLO   (SRD-35) DE 6\" DE DIAMETRO. PARA DESCARGA DOMICILIARIA. INCLUYE: SUMINISTRO DE TUBO, MANIOBRAS, ACARREO DE TUBO, JUNTEO, MATERIAL, MANO DE OBRA Y HERRAMIENTA. SONDEO PARA LA LOCALIZACION DE DESCARGA, P.U.O.T.","ML",80]
[null,"A.III.11","SUMINISTRO Y COLOCACION DE SILLETAS  DE P.V.C. SANITARIA  DE 8\" x 6\"  DE DIAMETRO, PARA CONEXION DE DESCARGA DOMICILIARIA A LA RED MUNICIPAL. INCLUYE: ABRAZADERAS GALVANIZADA DE 8\" DE DIAMETRO, PEGAMENTO, MATERIAL, MANO DE OBRA Y HERRAMIENTA.","PZA",10]
[null,"A.III.12","SUMINISTRO Y COLOCACION DE CODO 45º x 6\" DE DIAMETRO DE P.V.C. SANITARIO. PARA  DESCARGA  DOMICILIARIA.  INCLUYE: MANIOBRAS, EMPAQUES, MATERIALES, MANO DE OBRA Y HERRAMIENTA.","PZA",10]
[null,"A.III.13","REGISTRO SANITARIO DE 40X60X0.60m. A BASE DE BLOCK 15*20*40cm, FIRME DE 8CM DE ESPESOR FC=150KG/CM2, APLANADO PULIDO EN INTERIOR Y REPELLADO EN EXTERIOR. INCLUYE: DEMOLICIONES DE REGISTRO EXISTENTE DE SER NECESARIO, CARGA Y RETIRO DE MATERIAL NO UTILIZABLE FUERA DE LA OBRA, HASTA EL LUGAR INDICADO POR SUPERVISION, RELLENO COMPACTADO AL 85%  EN CAPAS DE 20 CM., MATERIALES, MANO DE OBRA Y HERRAMIENTA. EXCAVACION A MANO, MARCO,CONTRA MARCO DE HERRERIA TAPA DE CONCRETO,IMPERMEBILZANTE  A DOS MANOS  VAPORTITE 550, Y TODO LO NECESARIO PARA SU CORRECTA EJECUCION DE LOS TRABAJOS","PZA",10]
[null,"A.III.14","RENIVELACIÓN DE REGISTRO SANITARIO DE 40X60X0.60m. A BASE DE BLOCK A BASE DE BLOCK 15*20*40cm, FIRME DE 8CM  DE ESPESOR Fc=150KG/CM2, APLANADO PULIDO EN INTERIOR Y REPELLADO EN EXTERIOR. INCLUYE: DEMOLICIONES DE REGISTRO EXISTENTE DE SER NECESARIO, CARGA Y RETIRO DE MATERIAL NO UTILIZABLE FUERA DE LA OBRA, HASTA EL LUGAR INDICADO POR SUPERVISION, RELLENO COMPACTADO AL 85%  EN CAPAS DE 20 CM., MATERIALES, MANO DE OBRA Y HERRAMIENTA. EXCAVACION A MANO, MARCO,CONTRA MARCO DE HERRERIA TAPA DE CONCRETO,IMPERMEBILZANTE  A DOS MANOS  VAPORTITE 550, Y TODO LO NECESARIO PARA SU CORRECTA EJECUCION DE LOS TRABAJOS","PZA",1]
[null,"A.III.15","CONSTRUCCION DE POZO DE VISITA TIPO COMUN DE HASTA 2.20 M DE PROFUNDIDAD INTERIOR, LOSA DE CIMENTACION DE CONCRETO F´c=200 Kg/cm2. REV. NORMAL. T.M.A. 3/4\" DE 20 CM DE ESPESOR. ARMADA CON VARILLA CORRUGADA DEL No. 4 (1/2\") @ 15 CM EN AMBOS SENTIDOS, MEDIA CAÑA PULIDA DE LA 1/2 DEL DIAMETRO, Y CHAFLANES DE CONCRETO HASTA LA PARTE SUPERIOR DEL TUBO, MURO DE TABIQUE TIPO CUÑA DE 12 CM DE PERALTE. JUNTEADO Y APLANADO CON MORTERO DE CEMENTO-ARENA 1:4, APLANADO INTERIOR PULIDO, ANILLO PROTECTOR DE CONCRETO ARMADO  DE 20 CM DE ESPESOR PARA RECIBIR EL BROCAL, SUMINISTRO Y COL. DE ESCALERA MARINA A BASE DE VARILLA CORRUGADA DEL No.8 (1\"). HUELLA DE 50 CM. CON UNA SEPARACION @ 40 CM (CON PRIMER ANTICORROSIVO). MATERIALES, MANO DE OBRA Y HERRAMIENTA. INCLUYE: EXCAVACION, RELLENO COMPACTADO AL 95% EN CAPAS DE 20 CM (NO INCLUYE BROCAL DE Fo.Fo.)","PZA",1]
[null,"A.III.16","ELABORACION DE TAPA PROVISIONAL DE  MADERA PARA POZO DE VISITA PARA PERMITIR EL TRANSITO DEL EQUIPO DE CONSTRUCCION. INCL. COLOCACION, MATERIALES, MANO DE OBRA Y HERRAMIENTA.","PZA",1]
[null,"A.III.17","CORTE Y DESCABECE DE POZO DE VISITA PARA DAR NIVEL DE RASANTE Y PERMITIR LA LIBRE CIRCULACION DE MAQUINARIA. INCLUYE: CORTE CON CORTADORA DE DISCO, DEMOLICIONES NECESARIAS POR MEDIOS MANUALES Y/O MECANICAS, EN MUROS DE TABIQUE, BLOCK, CONCRETO (CON O SIN ARMADO), RECUPERACION DEL BROCAL Y TAPA DE FoFo. EN SU CASO, ACARREOS, ALMACENAJE, LIMPIEZA, CARGA Y ACARREO FUERA DE LA OBRA HASTA EL LUGAR INDICADO POR SUPERVISION, DE LOS MATERIALES PRODUCTO DE LA DEMOLICION, MATERIALES, SEÑALAMIENTO PREVENTIVO, MANO DE OBRA, HERRAMIENTA Y EQUIPO NECESARIO. (NOTA EL BROCAL DE Fo.Fo. RECUPERADO SE DEBERA LLEVAR AL LUGAR INDICADO).","PZA",1]
[null,"A.III.18","TERMINACION DE POZO DE VISITA HASTA NIVEL DE PROYECTO. INCLUYE: CORTE CON CORTADORA DE DISCO, LOSA DE 1.20x1.20 MTS. CON CONCRETO F'C=250 KG/CM² DE 15 CM. DE ESPESOR. ACABADO EXTERIOR RAYADO CON BROCHA DE PELO, ARMADA CON VAR. DEL No. 3 A CADA 10 CM. AMBOS SENTIDOS, VARILLA CORRUGA SOLDADA AL PERIMETRO DEL BROCAL PARA AMARRE DEL ARMADO DE LA PARRILLA, ELEVAR LOS MUROS DEL POZO HASTA EL NIVEL ADECUADO PARA RECIBIR EL BROCAL, MURO DE TABIQUE, CUÑA ASENTADO CON MORTERO CEM-ARENA 1:4, Y/O CONCRETO, DESAZOLVE Y LIMPIEZA EN CASO NECESARIO, SUMINISTRO Y COLOCACION DE BROCAL DE Fo.Fo. PARA POZO DE VISITA, HABILITADO, ARMADO, TRASLAPES, GANCHOS, CARGA Y RETIRO FUERA DE OBRA, DE ESCOMBRO Y DE LOS MATERIALES NO UTILIZABLES, HASTA EL LUGAR INDICADO, EXCAVACION Y RELLENO COMPACTADO EN CAPAS DE 20 CM, AL 95% DE SU P.V.S.M. LOS MATERIALES, SEÑALAMIENTO PREVENTIVO, LA MANO DE OBRA, HERRAMIENTA Y EQUIPO NECESARIO.","PZA",1]
[null,"A.III.19","DEMOLICION DE POZO DE VISITA TIPO COMUN HASTA 2.50 MTS DE PROFUNDIDAD, POR NO DAR NIVELES Y/O ALINEACION DE LA RED DE ALCANTARILLADO DE PROYECTO, INCLUYE: CARGA Y RETIRO DE ESCOMBRO FUERA DE LA OBRA HASTA EL LUGAR INDICADO POR LA SUPERVISION, MANO DE OBRA, HERRAMIENTA Y EQUIPO NECESARIO.","PZA",1]
[null,"A.III.20","SUMINISTRO Y COLOCACION DE BROCAL DE Fo.Fo. CIEGO TIPO TRAFICO PESADO PARA POZO DE VISITA, INCLUYE: LOSA DE 1.20x1.20 M CON CONCRETO F'C= 250 KG/CM2 DE 10 CM DE ESPESOR. ACABADO ESTAMPADO SEGUN DISEÑO , ARMADA CON VARILLA CORRUGADA DEL No.3 @ 10 CM AMBOS SENTIDOS, VARILLA CORRUGADA DEL No.3 SOLDADA AL PERIMETRO DEL BROCAL PARA AMARRE DEL ARMADO DE LA PARILLA, CARGA Y RETIRO DEL MATERIAL NO UTILIZABLE FUERA DE OBRA, HASTA LUGAR INDICADO, ACARREOS, GANCHOS, TRASLAPES, HABILITADO Y ARMADO, CIMBRA EN FRONTERAS, CORTE CON CORTADORA DE DISCO DE ACUERDO A SECCION, MANIOBRAS, MATERIAL, MANO DE OBRA Y HERRAMIENTA. ACABADO RAYADO CON BROCHA DE PELO DEL CONCRETO. ","PZA",1]
[null,"A.III.21","SUMINISTRO Y COLOCACION DE SEÑALAMIENTO PARA DESVIACION DEL TRANSITO VEHICULAR COMO MEDIDA DE PROTECCION CON LEYENDA: MAXIMO 30 Km/Hrs, HOMBRES TRABAJANDO, MAQUINAS TRABAJANDO, PRECAUCION Y DESVIACION. FABRICADO EN LAMINA REFLEJANTE CON APLICACION  DE PINTURA REFLECTIVA. INCLUYE: MATERIALES, MANO DE OBRA, HERRAMIENTA Y EQUIPO NECESARIO. (DURANTE EL TIEMPO QUE SEA NECESARIO).","PZA",4]
[null,"A.III.22","SUMINISTRO Y COLOCACION DE SEÑALAMIENTO NOCTURNO TIPO FLECHERO LUMINOSO ALIMENTACION SOLAR PARA DESVIACION DEL TRANSITO VEHICULAR COMO MEDIDA DE PROTECCION. INCLUYE MATERIALES, ACARREOS.  (MANTENIMIENTO DURANTE EL TIEMPO QUE SEA NECESARIO).","PZA",3]
[null,"A.III.23","CARGA Y RETIRO DE MATERIAL MIXTO, SOBRANTE NO UTILIZABLE PRODUCTO DE LA EXCAVACION FUERA DE LA OBRA HASTA EL SITIO INDICADO POR SUPERVISION, SEGÚN INDICACIONES POR SUPERVISION, INCLUYE: ACARREOS DENTRO DE LA OBRA, MANO DE OBRA, HERRAMIENTA Y EQUIPO NECESARIO.","M3",75]
[null,null,null,null,null,null,null,null,null,null,null,null,null,null,null,null,null,null,2.31,2,{"$f":"T112*S112","v":4.62}]
[null," A.IV. INSTALACIÓN ELECTRICA"]
[null,"A.IV.1","LUMINARIO  PARA ALUMBRADO PÚBLICO, LUMINARIO PUNTA DE POSTE TOWNGUIDE DE 101W CON FLUJO LUMINOSO DE 9942 LM,  CCT 4000K, 120-277V~ CURVA LE5 TIPO V , ARMADURA EN COLOR NEGRO  MODELO 912400459048 PBDP103-101W128LED4K-MP-PC-C-LE5-UNIV-RCD-BKST,  MARCA PHILIPS, CARCASA DE ALUMINIO,  IP66, PROTECCION CONTRA SOBRETENSIONES DE 4kV A 10kV, TEMPERATURA DE FUNCIONAMIENTO DE -40°C a 50°C, TEMPERATURA DE COLOR 4000K LUZ NEUTRA, DRIVER INTEGRADO PHILIPS INCLUYE: INSTALACIÒN Y CABLEADO EN POSTE DE  4m A 5.50m ., HERRAJES PARA FIJACIÓN DE LAMPARA EN POSTE, PINTURA DE FABRICA, CUADRILLA DE BANDEREROS,  DELIMITACION DE ÁREA DE TRABAJO A BASE DE CINTA PLASTICA DE PRECAUCIÓN (BASTA Y SUFICIENTE), INSTALACIÓN, CONEXION, PRUEBA DE PUESTA EN OPERACION, P.U.O.T. MANO DE OBRA, HERRAMIENTA Y EQUIPO, ASI COMO TODO LO NECESARIO PARA LA CORRECTA EJECUCIÓN DE LOS TRABAJOS.","PZA",14]
[null,"A.IV.2","SUMINISTRO, INSTALACIÒN Y CONEXIÓN DE LUMINARIO DE LED DE 40W TIPO CILINDRO BIDIRECCIONAL 5\" PARA PALMERA CON CANOPE 2 COB,  MARCA VENTOR  LINEA NAOS CLAVE IL2467LOO212UCZ. CON APERTURA DE 40° HACIA ARRIBA Y 20° HACIA ABAJO, DE 3000 K HACIA ARRIBA Y 4000K HACIA ABAJO,  INCLUYE: FIJACION  DOS  PIEZAS POR  PALMERA, AMARRADO CON  CINTURON NYLON , INSTALACIÒN Y CABLEADO EN PALMERAS, HERRAJES PARA FIJACION DE LAMPARA, INSTALACIÓN, CONEXION, PRUEBA DE PUESTA EN OPERACION, P.U.O.T. MANO DE OBRA, HERRAMIENTA Y EQUIPO, ASI COMO TODO LO NECESARIO PARA LA CORRECTA EJECUCIÓN DE LOS TRABAJOS.","pza",44]
[null,"A.IV.3","SUMINISTRO, INSTALACIÒN Y CONEXIÓN DE LUMINARIO ILUMINACION A BASE DE TIRA LED CON CUBIERTA IP68, MARCA ASTRO LED  LUZ CALIDA FC-43286 , EMISION LUMINOSA LUZ CALIDA WW( 2900-3100) 544 LM/M ( CARRETE CON 5ml)  24 volt cd , 8.64w/mewtro . INCLUYE: INCLUYE CONTROLADOR RGB,FUENTE DE PODER,  FIJACION A  BANCA  OCULTA  VER DETALLE , INSTALACIÒN Y CABLEADO , HERRAJES PARA FIJACION DE LAMPARA,INSTALACIÓN, CONEXION, PRUEBA DE PUESTA EN OPERACION, P.U.O.T. MANO DE OBRA, HERRAMIENTA Y EQUIPO, ASI COMO TODO LO NECESARIO PARA LA CORRECTA EJECUCIÓN DE LOS TRABAJOS.","ML",292]
[null,"A.IV.4","LUMINARIA LINEAL PARA EMPOTRAR , DISIPADOR DE ALUMINIO EXTRUIDO, PINTURA POLIESTER, FUENTE REMOTA INTEGRADA  CON IP67, CONECTOR FUENTE IP68 , CRISTAL TEMPLADO DE 6MM. MARCA VENTOR , MODELO GALENA, CLAVE IL5042 DE 12 LEDS (  649mm LONGITUD )  , ANODIZADO +GRAFITO ,  TIPO RGB-W  DMX RF  , LUZ MEDIA 60°,  INCLUYE: HOUSING,  FIJACION , INSTALACIÒN Y CABLEADO , HERRAJES PARA FIJACION DE LAMPARA,INSTALACIÓN, CONEXION, PRUEBA DE PUESTA EN OPERACION, P.U.O.T. MANO DE OBRA, HERRAMIENTA Y EQUIPO, ASI COMO TODO LO NECESARIO PARA LA CORRECTA EJECUCIÓN DE LOS TRABAJOS.","PZA",17]
[null,"A.IV.5","LUMINARIA LINEAL PARA EMPOTRAR , DISIPADOR DE ALUMINIO EXTRUIDO, PINTURA POLIESTER, FUENTE REMOTA INTEGRADA  CON IP67, CONECTOR FUENTE IP68 , CRISTAL TEMPLADO DE 6MM. MARCA VENTOR , MODELO GALENA, CLAVE  IL5043 DE 18 LEDS (  950mm LONGITUD )  , ANODIZADO +GRAFITO ,  TIPO RGB-W  DMX RF, LUZ DIFUSA 60°, PARA CONEXION REDIO FRECUENCIA,  INCLUYE:  FIJACION , INSTALACIÒN Y CABLEADO , HERRAJES PARA FIJACION DE LAMPARA,INSTALACIÓN, CONEXION, PRUEBA DE PUESTA EN OPERACION, P.U.O.T. MANO DE OBRA, HERRAMIENTA Y EQUIPO, ASI COMO TODO LO NECESARIO PARA LA CORRECTA EJECUCIÓN DE LOS TRABAJOS.","PZA",3]
[null,"A.IV.6","LUMINARIA LINEAL PARA EMPOTRAR , DISIPADOR DE ALUMINIO EXTRUIDO, PINTURA POLIESTER, FUENTE REMOTA INTEGRADA  CON IP65 , CRISTAL TEMPLADO DE 6MM. MARCA VENTOR , MODELO OREON, CLAVE IL2742 DE 12 LED , ANODIZADO +SATIN ,  TIPO RGB  DMX RF , LUZ DIFUSA , INCLUYE:  FIJACION , INSTALACIÒN Y CABLEADO , HERRAJES PARA FIJACION DE LAMPARA,INSTALACIÓN, CONEXION, PRUEBA DE PUESTA EN OPERACION, P.U.O.T. MANO DE OBRA, HERRAMIENTA Y EQUIPO, ASI COMO TODO LO NECESARIO PARA LA CORRECTA EJECUCIÓN DE LOS TRABAJOS.","PZA",20]
[null,"A.IV.7","LUMINARIA TIPO ARBORTANTE  MARCA HAMPTON BAY,  MODELO 7002, ACERO PINTADO , PANTALLA DE VIDRIO TRANSPARENTE 120v. COLOR NEGRO LED DE 50cm, ALTURA  INCLUYE: INSTALACIÓN, CONEXION, PRUEBA DE PUESTA EN OPERACION, P.U.O.T. MANO DE OBRA, HERRAMIENTA Y EQUIPO, ASI COMO TODO LO NECESARIO PARA LA CORRECTA EJECUCIÓN DE LOS TRABAJOS.","PZA",6]
[null,"A.IV.8","SUMINISTRO, INSTALACIÒN Y CONEXIÓN DE LUMINARIA DE SOBREPONER TIPO SPOT  CON 12 LEDS , 110v-220v,  EN ALUMINIO ANODIZADO + SATIN  . PROTECTOR CRISTAL ,  optica difuisa 60°,  CON VISERA , FIJADO EN BASE DE CONCRETO DE 15cmØ, DE 30cm. LONGITUD. COLOR DE LUZ RGB-W  DMXRF 20w  MARCA: VENTOR  INCLUYE CONOTROLADOR, INSTALACIÓN, CONEXION, PRUEBA DE PUESTA EN OPERACION, P.U.O.T. MANO DE OBRA, HERRAMIENTA Y EQUIPO, ASI COMO TODO LO NECESARIO PARA LA CORRECTA EJECUCIÓN DE LOS TRABAJOS.","PZA",12]
[null,"A.IV.9","SUMINISTRO, INSTALACIÒN Y CONEXIÓN DE LUMINARIA DE SOBREPONER TIPO SPOT  CON 12 LEDS , 110v-220v,  EN ALUMINIO ANODIZADO + SATIN  . PROTECTOR CRISTAL ,  optica difuisa 60°,  CON VISERA , FIJADO EN BASE DE CONCRETO DE 15cmØ, DE 30cm. LONGITUD. COLOR DE LUZ \"A\" AMBAR 2700°K (  UBICACION JARDINERAS ), MARCA: VENTOR  INCLUYE CONOTROLADOR, INSTALACIÓN, CONEXION, PRUEBA DE PUESTA EN OPERACION, P.U.O.T. MANO DE OBRA, HERRAMIENTA Y EQUIPO, ASI COMO TODO LO NECESARIO PARA LA CORRECTA EJECUCIÓN DE LOS TRABAJOS.","PZA",24]
[null,"A.IV.10","SUMINISTRO, INSTALACIÒN Y CONEXIÓN DE LUMINARIO  TIPO SPOT  CON 12 LEDS , MODELO: NIKOLA CLAVE: IL61-LO028, MARCA: VENTOR. INCLUYE CONTROLADOR RGB, INSTALACIÓN, CONEXION, PRUEBA DE PUESTA EN OPERACION, P.U.O.T. MANO DE OBRA, HERRAMIENTA Y EQUIPO, ASI COMO TODO LO NECESARIO PARA LA CORRECTA EJECUCIÓN DE LOS TRABAJOS.","PZA",5]
[null,"A.IV.11","SUMINISTRO, INSTALACIÒN Y CONEXIÓN DE CONSOLA DMX  512 CANALES,  2 UNIVERSOS CON 8 PUERTOS DE DISPARO ( SLESA-08), INCLUYE: PROGRAMACION DE ESCENAS, INSTALACIÒN Y CABLEADO. HERRAJES PARA FIJACION , INSTALACIÓN, CONEXION, PRUEBA DE PUESTA EN OPERACION, P.U.O.T. MANO DE OBRA, HERRAMIENTA Y EQUIPO, ASI COMO TODO LO NECESARIO PARA LA CORRECTA EJECUCIÓN DE LOS TRABAJOS.","PZA",1]
[null,"A.IV.12","SUMINISTRO, INSTALACIÒN Y CONEXIÓN DE FUENTE DE PODER 127V/220V, INCLUYE: INSTALACIÒN Y CABLEADO EN MURETE., HERRAJES PARA FIJACION , INSTALACIÓN, CONEXION, PRUEBA DE PUESTA EN OPERACION, P.U.O.T. MANO DE OBRA, HERRAMIENTA Y EQUIPO, ASI COMO TODO LO NECESARIO PARA LA CORRECTA EJECUCIÓN DE LOS TRABAJOS.","PZA",10]
[null,"A.IV.13","SUMINISTRO, INSTALACIÒN Y CONEXIÓN DE OPTO SPLITTER  RGB-DMX INCLUYE: INSTALACIÒN Y CABLEADO BLINDADO, CONECTORES. HERRAJES PARA FIJACION , INSTALACIÓN, CONEXION, PRUEBA DE PUESTA EN OPERACION, P.U.O.T. MANO DE OBRA, HERRAMIENTA Y EQUIPO, ASI COMO TODO LO NECESARIO PARA LA CORRECTA EJECUCIÓN DE LOS TRABAJOS.","PZA",5]
[null,"A.IV.14","SUMINISTRO, INSTALACIÒN Y CONEXIÓN DE TRASMISOR DE SEÑAL DMX RF INCLUYE: INSTALACIÒN Y CABLEADO BLINDADO, CONECTORES. HERRAJES PARA FIJACION , INSTALACIÓN, CONEXION, PRUEBA DE PUESTA EN OPERACION, P.U.O.T. MANO DE OBRA, HERRAMIENTA Y EQUIPO, ASI COMO TODO LO NECESARIO PARA LA CORRECTA EJECUCIÓN DE LOS TRABAJOS.","PZA",7]
[null,"A.IV.15","LUMINARIA EXTERIOR PARA BOLARDO  DE ACENTO / LUZ DE CORTESIA  CODIGO 5020-LED, COLOR ACERO INOXIDABLE,  PROTECCIÓN IP65  MARCA  CALUX DE 7W LEDS , VOLTAJE 100-240v, TEMPERATURA 3000K , CON 110° DE APERTURA, 473 lm.INCLUYE:I INSTALACIÓN, CONEXION, PRUEBA DE PUESTA EN OPERACION, P.U.O.T. MANO DE OBRA, HERRAMIENTA Y EQUIPO, ASI COMO TODO LO NECESARIO PARA LA CORRECTA EJECUCIÓN DE LOS TRABAJOS.","PZA",16]
[null,"A.IV.16","LUMINARIA EXTERIOR OUTDOOR PISO MODELO ATLANTIC II, CLAVE 07-7201-*,  DIRIGIBLE, MARCA ASTROLED LIGHTING, TIPO LED DE 25W,   DE ACENTO, COLOR ACERO INOXIDABLE, PROTECCIÓN IP67 25W LEDS , LUMENES 2200,  VOLTAJE 100-240v, TEMPERATURA 3000K , CON 110° DE APERTURA, 473 lm., INCLUYE: INSTALACIÓN, CONEXION, PRUEBA DE PUESTA EN OPERACION, P.U.O.T. MANO DE OBRA, HERRAMIENTA Y EQUIPO, ASI COMO TODO LO NECESARIO PARA LA CORRECTA EJECUCIÓN DE LOS TRABAJOS.","PZA",5]
[null,"A.IV.17","LUMINARIA EXTERIOR DE ACENTO / LUZ DE CORTESIA  PARA EMPOTRAR EN MURO CODIGO 8920-LED-GR, COLOR GRIS , PROTECCIÓN IP65  MARCA  CALUX DE 4W LEDS , VOLTAJE 100-240v, 3000K , CON 31° DE APERTURA,  INCLUYE: INSTALACIÓN, CONEXION, PRUEBA DE PUESTA EN OPERACION, P.U.O.T. MANO DE OBRA, HERRAMIENTA Y EQUIPO, ASI COMO TODO LO NECESARIO PARA LA CORRECTA EJECUCIÓN DE LOS TRABAJOS.","PZA",30]
[null,"A.IV.18","SUMINISTRO, INSTALACIÒN Y CONEXIÓN DE LUMINARIO TIPO REFLECTOR MARCA FORLIGHTING MODELO RE10 DE LED DE 200 WATTS COLOR GRIS. INCLUYE: BASE DE HERRERIA PARA MONTAR REFLECTOR, INSTALACIÒN Y CABLEADO EN POSTE DE 11m., HERRAJES PARA FIJACION DE LAMPARA Y POSTE, PINTURA ELECTROTASTICA DE FABRICA, INSTALACIÓN, CONEXION, PRUEBA DE PUESTA EN OPERACION, P.U.O.T. MANO DE OBRA, HERRAMIENTA Y EQUIPO, ASI COMO TODO LO NECESARIO PARA LA CORRECTA EJECUCIÓN DE LOS TRABAJOS.","PZA",2]
[null,"A.IV.19"," POSTE MODELO TOWNGUIDE CON UNA ALTURA TOTAL DE 4M.  INCLUYE: INSTALACIÒN Y CABLEADO HASTA 4 M., HERRAJES PARA FIJACION DE POSTE, PINTURA DE FABRICA, CUADRILLA DE BANDEREROS,  DELIMITACION DE ÁREA DE TRABAJO A BASE DE CINTA PLASTICA DE PRECAUCIÓN (BASTA Y SUFICIENTE), INSTALACIÓN, CONEXION, PRUEBA DE PUESTA EN OPERACION, P.U.O.T. MANO DE OBRA, HERRAMIENTA Y EQUIPO, ASI COMO TODO LO NECESARIO PARA LA CORRECTA EJECUCIÓN DE LOS TRABAJOS.","PZA",5]
[null,"A.IV.20"," POSTE MODELO TOWNGUIDE CON UNA ALTURA TOTAL DE 5.50 M.  INCLUYE: INSTALACIÒN Y CABLEADO HASTA 5.5 M., HERRAJES PARA FIJACION DE POSTE, PINTURA DE FABRICA, CUADRILLA DE BANDEREROS,  DELIMITACION DE ÁREA DE TRABAJO A BASE DE CINTA PLASTICA DE PRECAUCIÓN (BASTA Y SUFICIENTE), INSTALACIÓN, CONEXION, PRUEBA DE PUESTA EN OPERACION, P.U.O.T. MANO DE OBRA, HERRAMIENTA Y EQUIPO, ASI COMO TODO LO NECESARIO PARA LA CORRECTA EJECUCIÓN DE LOS TRABAJOS.","PZA",9]
[null,"A.IV.21"," CONSTRUCCIÓN E INSTALACIÓN DE BASE PIRAMIDAL  PARA POSTE DE ALUMBRADO CIMENTACIÓN TRAPEZOIDAL DE CONCRETO DE 40x40 EN CORONA Y 80x80 EN BASE, CON ALTURA DE 100 Cm., F´c=200 Kg/Cm2 ARMADA CON VARILLA N° 3 Y 4 SEGÚN SE INDICA EN PLANOS,  ANCLAS DE 3/4\" GALVANIZADAS, TUBO CONDUIT PARED GRUESA DE 3/4\" DE REGISTRO A PARTE SUPERIOR DE PEDESTAL ( VER DETALLE EN PLANO DE INSTALACIONES ), INCLUYE CARGO DIRECTO POR EL COSTO DE MANO DE OBRA Y MATERIALES REQUERIDOS, FLETE A OBRA, ACARREO, COPLE, TRAZO, CORTE, CIMBRA,  COLOCACIÓN, GUÍA DE ALAMBRE GALVANIZADO CALIBRE 14, FIJACIÓN, LIMPIEZA Y RETIRO DE SOBRANTES FUERA DE OBRA, EQUIPO DE SEGURIDAD, INSTALACIONES ESPECÍFICAS, DEPRECIACIÓN Y DEMÁS CARGOS DERIVADOS DEL USO DE EQUIPO Y HERRAMIENTA, EN CUALQUIER NIVEL. NOTA: LA BASE DEL POSTE DEBERA SER PRECOLADA FUERA DEL SITIO DE LA OBRA.","PZA",14]
[null,"A.IV.22","      REGISTROS DE FIBRA DE VIDRIO CON TAPA Y CONTRAMARCO DE CONCRETO POLIMERICO REFORZADO  CON FIBRA DE VIDRIO CON DIMENSIONES  33X 33 X 40 MTS, CUERPO DEL REGISTRO DE FIBRA DE VIDRIO  CON UN ESPESOR DE 1/8\" PERNOS DE ACERO INOXIDABLE DE 1/8\" PARA EL MANEJO DE LA TAPA PARA ALUMBRADO, EXCAVACIÓN, COMPACTACIÓN DE FONDO, RELLENO, CAMA DE GRAVA, NOMENCLATURA SEGÚN DISEÑO, MANO DE OBRA, HERRAMIENTA, EQUIPO, ASI COMO TODO LO NECESARIO PARA LA CORRECTA EJECUCIÓN DE LOS TRABAJOS.","PZA",15]
[null,"A.IV.23","SUMINISTRO Y COLOCACIÓN DE REGISTRO ELÉCTRICO DE 40 X 60 X 60 CM, PARA ALUMBRADO, CON MARCO Y CONTRAMARCO DE ACERO DE 1 3/4\" X 1 3/4\" X 3/16\" X 2\"X2\"X3/16\" CON GALVANIZADO POR INMERSION, TAPA COLADA EN SITIO DE ACUERDO A LOS ACABADOS DE BANQUETAS SEGÚN PROYECTO,  INCLUYE: SOLDADURA DE TAPAS AL CONTRAMARCO, EXCAVACIÓN, COMPACTACIÓN DE FONDO, RELLENO, CAMA DE GRAVA, NOMENCLATURA SEGÚN DISEÑO, MANO DE OBRA, HERRAMIENTA, EQUIPO, ASI COMO TODO LO NECESARIO PARA LA CORRECTA EJECUCIÓN DE LOS TRABAJOS.","PZA",3]
[null,"A.IV.24","SUMINISTRO Y COLOCACIÓN DE GABINETE HIMEL DE 40*30*20cm, PARA SISTEMAS RGBW DMX RF,  INCLUYE: SUJECION FIJACION  CONEXIONES , MANO DE OBRA, HERRAMIENTA, EQUIPO, ASI COMO TODO LO NECESARIO PARA LA CORRECTA EJECUCIÓN DE LOS TRABAJOS.","PZA",7]
[null,"A.IV.25","SUMINISTRO E INSTALACIÓN DE ACOMETIDA NORMA CFE, BASE DE MEDICIÓN, CAP. 125 AMPERES,  SISTEMA 1F-3H, INCLUYE : ITM 2 X 100; CONDUCTORES DE COBRE CALIBRE 2 AWG, VARILLA COOPERWELL 5/8 X 3 M, REGISTRO DE PLASTICO 10 PULG., INCADO DE VARILLA DE TIERRA, GRAPA, NIVELACIÓN, RANURADO, RESANADO,  HERRAJES, CONEXIÓN, PRUEBAS DE FUNCIONAMIENTO,  ETIQUETADO CON LEYENDA DE SEGURIDAD, ACABADOS FINALES, MANO DE OBRA, HERRAMIENTA Y TODO LO NECESARIO PARA LA CORRECTA EJECUCIÓN DE LOS TRABAJOS.","PZA.",1]
[null,"A.IV.26","SUMINISTRO E INSTALACIÓN DE CENTRO DE CARGA, MARCA SQUARE D, CAT. QO112ML125G, CAP. 125 AMPERES,  SISTEMA 1F-3H, 12 ESPACIOS, CON INTERRUPTOR PRINCIPAL O SIMILAR; INCLUYE : NIVELACIÓN, RANURADO,  HERRAJES, CONEXIÓN, PRUEBAS DE FUNCIONAMIENTO,  ETIQUETADO CON LEYENDA DE SEGURIDAD, ACABADOS FINALES, MANO DE OBRA, HERRAMIENTA Y TODO LO NECESARIO PARA LA CORRECTA EJECUCIÓN DE LOS TRABAJOS.","PZA.",1]
[null,"A.IV.27","SUMINISTRO E INSTALACIÓN DE  FOTOCELDA TIPO OJILO PARA CAJA 2 X 4, 127V/1200W; INCLUYE : NIVELACIÓN, RANURADO, HERRAJES, CONEXIÓN, CONECTORES TIPO CAPUCHA, TERMINALES PONCHABLE TIPO OJILLO, CINTA AISLANTE SUPER 33 3M,PRUEBAS DE FUNCIONAMIENTO,  ETIQUETADO CON LEYENDA DE SEGURIDAD, ACABADOS FINALES, MANO DE OBRA, HERRAMIENTA Y TODO LO NECESARIO PARA LA CORRECTA EJECUCIÓN DE LOS TRABAJOS.","PZA.",5]
[null,"A.IV.28","SUMINISTRO E INSTALACIÓN DE  FOTOCELDA CON MENSULA, 220V/1200W; INCLUYE : NIVELACIÓN, RANURADO, HERRAJES, CONEXIÓN, CONECTORES TIPO CAPUCHA, TERMINALES PONCHABLE TIPO OJILLO, CINTA AISLANTE SUPER 33 3M,PRUEBAS DE FUNCIONAMIENTO,  ETIQUETADO CON LEYENDA DE SEGURIDAD, ACABADOS FINALES, MANO DE OBRA, HERRAMIENTA Y TODO LO NECESARIO PARA LA CORRECTA EJECUCIÓN DE LOS TRABAJOS.","PZA.",1]
[null,"A.IV.29","SUMINSTRO E INSTALACIÓN DE INTERRUPTOR TERMOMAGNETICO MARCA SQUARE D, 2 POLOS, 15 AMPER, TIPO QO250, 10 KA O SIMILAR; INCLUYE : CONEXIÓN, IDENTIFICIÓN DE CABLEADO, PEINADO DE CABLES, PRUEBAS DE FUNCIONAMIENTO, LEYENDA Y ETIQUETA DE SEGURIDAD, MANO DE OBRA, HERRAMIENTA Y TODO LO NECESARIO PARA CORRECTA EJECUCIÓN DE LOS TRABAJOS.","PZA.",2]
[null,"A.IV.30","SUMINSTRO E INSTALACIÓN DE INTERRUPTOR TERMOMAGNETICO CON PROTECCIÓN FALLA A TIERRA TIPO GFCI, MARCA SQUARE D, 1 POLOS, 15 AMPER, TIPO QO115GFCI, 10 kA. O SIMILAR; INCLUYE : CONEXIÓN, IDENTIFICIÓN DE CABLEADO, PEINADO DE CABLES, PRUEBAS DE FUNCIONAMIENTO, LEYENDA Y ETIQUETA DE SEGURIDAD, MANO DE OBRA, HERRAMIENTA Y TODO LO NECESARIO PARA CORRECTA EJECUCIÓN DE LOS TRABAJOS.","PZA.",1]
[null,"A.IV.31","SUMINSTRO E INSTALACIÓN DE INTERRUPTOR TERMOMAGNETICO, MARCA SQUARE D, 1 POLOS, 15 AMPER, TIPO QO115, 10 kA. O SIMILAR; INCLUYE : CONEXIÓN, IDENTIFICIÓN DE CABLEADO, PEINADO DE CABLES, PRUEBAS DE FUNCIONAMIENTO, LEYENDA Y ETIQUETA DE SEGURIDAD, MANO DE OBRA, HERRAMIENTA Y TODO LO NECESARIO PARA CORRECTA EJECUCIÓN DE LOS TRABAJOS.","PZA.",8]
[null,"A.IV.32","SUMINSTRO E INSTALACIÓN DE GABINETE NEMA 3R; INCLUYE : MONTAJE,NIVELACIÓN, MANO DE OBRA, HERRAMIENTA Y TODO LO NECESARIO PARA CORRECTA EJECUCIÓN DE LOS TRABAJOS.","PZA.",1]
[null,"A.IV.33","SUMINSTRO E INSTALACIÓN DE CONTACTO DUPLEX MARCA LEVITON 127V/15A, NEMA 15-5R, INCLUYE : TAPA, CONEXIÓN, IDENTIFICIÓN DE CABLEADO, TERMINALES PONCHABLES, TERMINALES TIPO CAPUCHO, PRUEBAS DE FUNCIONAMIENTO, LEYENDA Y ETIQUETA DE SEGURIDAD, MANO DE OBRA, HERRAMIENTA Y TODO LO NECESARIO PARA CORRECTA EJECUCIÓN DE LOS TRABAJOS.","PZA.",2]
[null,"A.IV.34","SUMINSTRO E INSTALACIÓN DE CONTACTO DUPLEX MARCA LEVITON 250V/30A 2P-3H TIPO L6 30 R , , INCLUYE : TAPA, CONEXIÓN, IDENTIFICIÓN DE CABLEADO, TERMINALES PONCHABLES, TERMINALES TIPO CAPUCHO, PRUEBAS DE FUNCIONAMIENTO, LEYENDA Y ETIQUETA DE SEGURIDAD, MANO DE OBRA, HERRAMIENTA Y TODO LO NECESARIO PARA CORRECTA EJECUCIÓN DE LOS TRABAJOS.","PZA",3]
[null,"A.IV.35","SUMINISTRO Y TENDIDO DE CABLE VULCANEL M.R. PARA DISTRIBUCION SUBTERRANEA TRIPLEX , FORMADO POR CONDUCTOR DE FASE DE ALUMINIO DURO COMPACTO  CLASE B, AISLAMIENTO A BASE DE POLIETILENO DE CADENA CRUZADA (XLP) COLOR NEGRO E IDENTIFICADO POR MEDIO DE CEJAS, TEMPERATURA DE OPERACION  75 °C, TENSION DE OPERACION DE 600 V, REUNIDOS DE FORMA CONCENTRICA JUNTO CON UN CONDUCTOR MENSAJERO DE ALUMINIO DURO  COMPACTO CLASE B, AISLAMIENTO DE POLIETILENO DE CADENA CRUZADA (XLP) COLOR  BLANCO.  CALIBRES 2 - 2/0 + 1 - 1","ML",100]
[null,"A.IV.36","SUMINISTRO E INSTALACIÓN DE CABLE DE COBRE CALIBRE 8 AWG (8,37 MM²), AISLAMIENTO TIPO THHW - LS, 600 V, 75/90°C  MARCA VIAKON O SIMILAR; INCLUYE : IDENTIFICACIÓN DE CABLEADO, GUIADO, RECORTE, CINTA AISLANTE, CONECTORES BIPARTIDO, CONEXIONES, MANO DE OBRA, HERRAMIENTA Y TODO LO NECESARIO PARA CORRECTA EJECUCIÓN DE LOS TRABAJOS.","ML",750]
[null,"A.IV.37","SUMINISTRO E INSTALACIÓN DECABLE DE COBRE CALIBRE 10 AWG (5,26 MM²), AISLAMIENTO TIPO THHW - LS,  600 V, 75/90°C. MARCA VIAKON O SIMILAR; INCLUYE : IDENTIFICACIÓN DE CABLEADO, GUIADO, RECORTE, CINTA AISLANTE, CONECTORES BIPARTIDO, CONEXIONES, MANO DE OBRA, HERRAMIENTA Y TODO LO NECESARIO PARA CORRECTA EJECUCIÓN DE LOS TRABAJOS.","ML",850]
[null,"A.IV.38","SUMINISTRO E INSTALACIÓN DECABLE DE COBRE CALIBRE 12 AWG (3,31 MM²), AISLAMIENTO TIPO THHW - LS, 600 V, 75/90°C. MARCA VIAKON O SIMILAR; INCLUYE : IDENTIFICACIÓN DE CABLEADO, GUIADO, RECORTE, CINTA AISLANTE, CONECTORES BIPARTIDO, CONEXIONES, MANO DE OBRA, HERRAMIENTA Y TODO LO NECESARIO PARA CORRECTA EJECUCIÓN DE LOS TRABAJOS.","ML",1150]
[null,"A.IV.39","SUMINISTRO E INSTALACIÓN DE CABLE 3 HILOS CALIBRE 22 PARA COMUNICACION  ENTRE CADA LUMINARIO. MARCA VENTOR O SIMILAR; INCLUYE : IDENTIFICACIÓN DE CABLEADO, GUIADO, RECORTE, CINTA AISLANTE, CONECTORES BIPARTIDO, CONEXIONES, MANO DE OBRA, HERRAMIENTA Y TODO LO NECESARIO PARA CORRECTA EJECUCIÓN DE LOS TRABAJOS.","ML",200]
[null,"A.IV.40","SUMINISTRO E INSTALACIÓN TUBO  CONDUIT PVC  RIGIDO CED. 40, DÍAMETRO 2 PLGS (53 MM²), MARCA CARLON O SIMILAR, INCLUYE : CURVAS, CONECTORES Y ACCESORIOS ADECUADO, FIJACIÓN, NIVELACIÓN, CORTES Y  RETIRO DE ESCOMBRO, MANO DE OBRA, HERRAMIENTA Y TODO LO NECESARIO PARA CORRECTA EJECUCIÓN DE LOS TRABAJOS.","ML",100]
[null,"A.IV.41","SUMINISTRO E INSTALACIÓN TUBO  CONDUIT PVC  RIGIDO CED. 40, DÍAMETRO 1 PLGS (27 MM²), MARCA CARLON O SIMILAR, INCLUYE : CURVAS, CONECTORES Y ACCESORIOS ADECUADO, FIJACIÓN, NIVELACIÓN, CORTES Y  RETIRO DE ESCOMBRO, MANO DE OBRA, HERRAMIENTA Y TODO LO NECESARIO PARA CORRECTA EJECUCIÓN DE LOS TRABAJOS.","ML",450]
[null,"A.IV.42","SUMINISTRO E INSTALACIÓN TUBO  CONDUIT PVC  RIGIDO CED. 40, DÍAMETRO 3/4 PLGS (21 MM²), MARCA CARLON O SIMILAR, INCLUYE : CURVAS, CONECTORES Y ACCESORIOS ADECUADO, FIJACIÓN, NIVELACIÓN, CORTES Y  RETIRO DE ESCOMBRO, MANO DE OBRA, HERRAMIENTA Y TODO LO NECESARIO PARA CORRECTA EJECUCIÓN DE LOS TRABAJOS.","ML",150]
[null,"A.IV.43","SUMINISTRO E INSTALACIÓN TUBO  CONDUIT PVC  RIGIDO CED. 40, DÍAMETRO 1/2 PLGS (16 MM²), MARCA CARLON O SIMILAR, INCLUYE : CURVAS, CONECTORES Y ACCESORIOS ADECUADO, FIJACIÓN, NIVELACIÓN, CORTES Y  RETIRO DE ESCOMBRO, MANO DE OBRA, HERRAMIENTA Y TODO LO NECESARIO PARA CORRECTA EJECUCIÓN DE LOS TRABAJOS.","ML",400]
[null,"A.IV.44","SALIDA ELÉCTRICA 220 VOLTS PARA LUMINARIAS,  INCLUYE : GUIADO, TERMINALES PONCHABLES, CONECTORES TIPO CAPUCHA, CONECTORES TIPO OJILLO , CINTA VULCANIZABLE, CINTA AISLANTE, IDENTIFICACIÓN DE CABLEADO, CORTE Y RETIRO DE DESPERDICIO, COCA, MANO DE OBRA, HERRAMIENTA Y TODO LO NECESARIO PARA LA CORRECTA EJECUCIÓN DE LOS TRABAJOS.","SAL",13]
[null,"A.IV.45","SALIDA ELÉCTRICA 220 VOLTS PARA LUMINARIAS,  INCLUYE : GUIADO, TERMINALES PONCHABLES, CONECTORES TIPO CAPUCHA, CONECTORES TIPO OJILLO , CINTA VULCANIZABLE, CINTA AISLANTE, IDENTIFICACIÓN DE CABLEADO, CORTE Y RETIRO DE DESPERDICIO, COCA, MANO DE OBRA, HERRAMIENTA Y TODO LO NECESARIO PARA LA CORRECTA EJECUCIÓN DE LOS TRABAJOS.","SAL",34]
[null,"A.IV.46","SALIDA ELÉCTRICA 127 VOLTS PARA LUMINARIAS, INCLUYE : CAJA OCTAGONAL O CAJA 4 X 4 GALVANIZADA, GUIADO, TERMINALES PONCHABLES, CONECTORES TIPO CAPUCHA, CONECTORES TIPO OJILLO, CINTA VULCANIZABLE, CINTA AISLANTE, IDENTIFICACIÓN DE CABLEADO, CORTE Y RETIRO DE DESPERDICIO, COCA, MANO DE OBRA, HERRAMIENTA Y TODO LO NECESARIO PARA LA CORRECTA EJECUCIÓN DE LOS TRABAJOS.","SAL",148]
[null,"A.IV.47","SALIDA ELÉCTRICA PARA CONTACTO DUPLEX 127V/15A, INCLUYE : GUIADO, TERMINALES PONCHABLES, CONECTORES TIPO CAPUCHA, CONECTORES TIPO OJILLO, CINTA VULCANIZABLE, CINTA AISLANTE, IDENTIFICACIÓN DE CABLEADO, CORTE Y RETIRO DE DESPERDICIO, COCA, MANO DE OBRA, HERRAMIENTA Y TODO LO NECESARIO PARA LA CORRECTA EJECUCIÓN DE LOS TRABAJOS.","SAL",3]
[null,"A.IV.48","SERVICIO DE DICTAMEN DE VERIFICACIÓN POR LA UNIDAD VERIFICACIÓN DE INSTALACIONES ELÉCTRICAS ACREDITADA POR LA ENTIDAD MEXICANA DE ACREDITACIÓN (EMA) A.C. , REFERENTA A LA NOM-001-SEDE-2012, NOM-013-ENER-2004, SEGÚN APLIQUEN.","LOTE",1]
[null,"A.IV.49","TRAMITES Y GESTIÓN ANTE LA COMISICIÓN FEDERAL DE ELECTRICIDAD (CFE) PARA LOS PERMISOS, AUTORIZACIONES Y PAGOS QUE ALLA LUGAR,  PREVIAS AL INICIO DE LA OBRA, ASÍ COMO LA ENTREGA FINAL DE LA MISMA.","LOTE",1]
[null,null,"SUB TOTAL DE INSTALACION ELECTRICA ",null,null,null,null,null,null,null,null,null,null,null,null,null,null,null,2.31,2,{"$f":"T163*S163","v":4.62}]
[null,"A.V.MEDIA TENSION "]
[null,"A.V.1","SUMINISTRO A COMPAÑÍA  DE ENERGIA ELECTRICA (CFE) DE MATERIALES PARA ADECUACION DE ESTRUCTURA GENERAL EN POSTE EXISTENTE, PARA CONSTRUCCION DE TAS3 . INCLUYE: CRUCETA GALVANIZADA PT200 (1) Y HERRAJES COMPLEMENTARIOS, CONECTOR DE LINEA VIVA (3), CONECTADOR TIPO ESTRIBO (3), CORTA CIRCUITO FUSIBLE 27KV (3), APARTARRAYO POLIMERICO 10 KV (3).","LOTE",1]
[null,"A.V.2","SUMINISTRO E INSTALACIÓN DE TUBERIA GALVANIZADA 4\" ROSCADA, INCLUYE: FLEJE DE ACERO INOX, MATERIAL DE FIJACIÓN , HERRAMIENTA MANO DE OBRA Y TODO LO NECESARIO PARA SU CORRECTA EJECUCIÓN.","PZA",2]
[null,"A.V.3","SUMINISTRO E INSTALACIÓN DE BOTA PREMOLDEADA TERMOCONTRACTIL 4\" CON 3 SALIDAS, INCLUYE: MATERIAL DE FIJACIÓN, HERRAMIENTA, MANO DE OBRA Y TODO LO NECESARIO PARA SU CORRECTA EJECUCIÓN","PZA",1]
[null,"A.V.4","SUMINISTRO E INSTALACIÓN DE TERMINAL  QTIII MCA. 3M, 15 KV PARA INTEMPERIE CAL 1/0 AWG CON PROTOCOLO O SIGLA 3, INCLUYE: MATERIAL DE FIJACIÓN, HERRAMIENTA, MANO DE OBRA Y TODO LO NECESARIO PARA SU CORRECTA EJECUCION.","PZA",3]
[null,"A.V.5","SUMINISTRO E INSTALACION DE CABLE DE MEDIA TENSIÓN XLP-AL 15 KV, 100% N.A, CAL. 1/0 AWG. INCLUYE  LIMPIEZA DE TUBERIA, GUIADO, CABLEADO, ACOMODO, ACARREOS, ACOMODOS, ENSINCHADO, HERRAMIENTA, MANO DE OBRA Y TODO LO NECESARIO PARA SU CORRECTA EJECUCION.","ML",45]
[null,"A.V.6","SUMINISTRO E INSTALACIÓN DE REGISTRO DE MEDIA TENSION TIPO 4 EN BANQUETA CON TAPA CUADRADA  (RMTB4-TC NORMA CFE), INCLUYE ACARREOS, EXCAVACIÓN, MANO DE OBRA, HERRAMIENTAS, ACCESORIOS DE MOTAJE Y TODO LO NECESARIO PARA SU CORRECTA EJECUCIÓN.","PZA",1]
[null,"A.V.7","SUMINISTRO E INSTALACIÓN DE CAJA DERIVADORA OCC 4 VIAS, 15 KVA 200 AMP, MARCA CHARDON O SIMILAR EN CALIDAD CON SIGLA3 (APROBACION LAPEM-CFE), INCLUYE: ACCESORIOS DE FIJACION, MATERIAL, HERRAMIENTA, MANO DE OBRA Y TODO LO NECESARIO PARA SU CORRECTA EJECUCIÓN.","PZA",3]
[null,"A.V.8","SUMINISTRO E INSTALACIÓN DE CODO OCC, 15 KV, 200A, CAL 1/0 AWG MARCA CHARDON CON PRUEBA DE INTERCAMBIABIALIDAD LAPEM-CFE, INCLUYE MATERIAL DE INSTALACION, HERRAMIENTAS, MANO DE OBRA Y TODO LO NECESARIO PARA SU CORRECTA EJECUCIÓN.","PZA",5]
[null,"A.V.9","SUMINISTRO E INSTALACION DE ADAPTADOR PARA TIERRA 15 KV, 200A, CAL 1/0 AWG MARCA CHARDON, NORMA LAPEM-CFE, INCLUYE MATERIAL DE INSTALACION, HERRAMIENTAS, MANO DE OBRA Y TODO LO NECESARIO PARA SU CORRECTA EJECUCIÓN.","PZA",5]
[null,"A.V.10","SUMINISTRO E INSTALACIÓN DE BOQUILLA ESTACIONARIA SENCILLA CLASE 15 KV, 200 A, MARCA ELASTIMOLD, NORMA LAPEM-CFE. INCLUYE MATERIAL DE INSTALACIÓN, HERRAMIENTAS, MANO DE OBRA Y TODO LO NECESARIO PARA SU CORRECTA EJECUCIÓN.","PZA",3]
[null,"A.V.11","SUMINISTRO E INSTALACIÓN DE TAPÓN AISLADO OCC, CLASE 15 KV, 200 A, APROBACION LAPEM-CFE. INCLUYE MATERIAL DE INSTALACIÓN, HERRAMIENTAS, MANO DE OBRA Y TODO LO NECESARIO PARA SU CORRECTA EJECUCIÓN.","PZA",7]
[null,"A.V.12","SUMINISTRO E INSTALACIÓN DE PUESTA A TIERRA  CON VARILLA DE TIERRA PROTOCOLIZADA POR CFE CFE56100.16, CONDUCTOR DE COBRE DESNUDO TEMPLE SEMIDURO CAL 4 AWG Y SU CONEXION.INCLUYE HERRAMIENTA, MANO DE OBRA Y TODO LO NECESARIO PARA SU CORRECTA EJECUCIÓN.","PZA",1]
[null,"A.V.13","SUMINISTRO E INSTALACION DE CORREDERA DE LAMINA GALVANIZADA 0.60 MTS CON PROTOCOLO CFE 2T400-48, INCLUYE: ACCESORIOS DE INSTALACIÓN, HERRAMIENTA MANO DE OBRA Y TODO LO NECESARIO PARA SU CORRECTA EJECUCIÓN.","PZA",4]
[null,"A.V.14","SUMINISTRO E INSTALACIÓN DE MENSULAS GALVANIZADA 0.25 MTRS CON PROTOCOLO CFE2D100-17  INCLUYE: ACCESORIOS DE INSTALACIÓN, HERRAMIENTA MANO DE OBRA Y TODO LO NECESARIO PARA SU CORRECTA EJECUCIÓN.","PZA",12]
[null,"A.V.15","SUMINISTRO E INSTALACIÓN DE AISLADORES PARA CONDUCTORES ELECTRICOS DE NEOPRENO CON SIGLA 3. INCLUYE: ACCESORIOS DE INSTALACIÓN, HERRAMIENTA MANO DE OBRA Y TODO LO NECESARIO PARA SU CORRECTA EJECUCIÓN.","PZA",36]
[null,null,"OBRA CIVIL"]
[null,"A.V.16","SUMINISTROS Y CONSTRUCCIÓN DE BANCO DE DUCTOS TIPO P4B, PRIMARIO 4 CANALIZACIONES 3\", POLIETILENO DE ALTA DENSIDAD CORRUGADO (PADC), INCLUYE EXCAVACIÓN TENDIDO DE DUCTOS, RELLENADO Y COMPACTADO, CAMA DE ARENA (EN CASO DE SER NECESARIO), MANO DE OBRA, HERRAMIENTA, MAQUINARIA Y TODO LO NECESARIO PARA SU CORRECTA EJECUCIÓN.","ML",167]
[null,"A.V.17","SUMINISTROS Y CONSTRUCCIÓN DE BANCO DE DUCTOS TIPO  P4B/S3B, PRIMARIO 4 CANALIZACIONES 3\"+ SECUNDARIO 3 CANALIZACIONES 3\" POLIETILENO DE ALTA DENSIDAD CORRUGADO (PADC) EN BANQUETA, INCLUYE EXCAVACIÓN TENDIDO DE DUCTOS, RELLENADO Y COMPACTACIÓN, MANO DE OBRA, HERRAMIENTA, MAQUINARIA Y TODO LO NECESARIO PARA SU CORRECTA EJECUCIÓN.","ML",22]
[null,"A.V.18","SUMINISTROS Y CONSTRUCCIÓN DE BANCO DE DUCTOS TIPO  P4B/S2B, PRIMARIO 4 CANALIZACIONES 3\"+ SECUNDARIO 2 CANALIZACIONES 3\" EN BANQUETA, INCLUYE EXCAVACIÓN TENDIDO DE DUCTOS, RELLENADO Y COMPACTACIÓN, MANO DE OBRA, HERRAMIENTA, MAQUINARIA Y TODO LO NECESARIO PARA SU CORRECTA EJECUCIÓN.","ML",47]
[null,"A.V.19","SUMINISTROS Y CONSTRUCCIÓN DE BANCO DE DUCTOS TIPO  P4B/S1B Y P4B/S1A, PRIMARIO 4 CANALIZACIONES 3\"+ SECUNDARIO 1 CANALIZACION 3\",POLIETILENO DE ALTA DENSIDAD CORRUGADO (PADC), INCLUYE EXCAVACIÓN TENDIDO DE DUCTOS, RELLENADO Y COMPACTACIÓN, MANO DE OBRA, HERRAMIENTA, MAQUINARIA Y TODO LO NECESARIO PARA SU CORRECTA EJECUCIÓN.","ML",37]
[null,"A.V.20","SUMINISTROS Y CONSTRUCCIÓN DE BANCO DE DUCTOS TIPO  P4B/A1B ,PRIMARIO 4 CANALIZACIONES 3\"+ ACOMETIDA 1 CANALIZACION 2\",POLIETILENO DE ALTA DENSIDAD CORRUGADO (PADC) , INCLUYE EXCAVACIÓN TENDIDO DE DUCTOS, RELLENADO Y COMPACTACIÓN, MANO DE OBRA, HERRAMIENTA, MAQUINARIA Y TODO LO NECESARIO PARA SU CORRECTA EJECUCIÓN.","ML",15]
[null,"A.V.21","SUMINISTROS Y CONSTRUCCIÓN DE BANCO DE DUCTOS TIPO  S3A (1) ,SECUNDARIO 2 CANALIZACIONES 3\"+ 1 CANALIZACION 2\", POLIETILENO DE ALTA DENSIDAD CORRUGADO (PADC), INCLUYE EXCAVACIÓN TENDIDO DE DUCTOS, RELLENADO Y COMPACTACIÓN, MANO DE OBRA, HERRAMIENTA, MAQUINARIA Y TODO LO NECESARIO PARA SU CORRECTA EJECUCIÓN.","ML",10]
[null,"A.V.22","SUMINISTROS Y CONSTRUCCIÓN DE BANCO DE DUCTOS TIPO  S2B  (1) Y A2B (1), 2 CANALIZACION 3\"+ 2 CANALIZACIÓNES 2\", POLIETILENO DE ALTA DENSIDAD CORRUGADO (PADC), INCLUYE EXCAVACIÓN, TENDIDO DE DUCTOS, CINTA \"PELIGRO ALTA TENSION\", RELLENADO Y COMPACTACIÓN, MANO DE OBRA, HERRAMIENTA, MAQUINARIA Y TODO LO NECESARIO PARA SU CORRECTA EJECUCIÓN.","ML",65]
[null,"A.V.23","SUMINISTROS Y CONSTRUCCIÓN DE BANCO DE DUCTOS TIPO  S1B (1), S1A Y A1B (1),1 CANALIZACIONES 3\",POLIETILENO DE ALTA DENSIDAD CORRUGADO (PADC), INCLUYE EXCAVACIÓN TENDIDO DE DUCTOS, CINTA \"PELIGRO ALTA TENSION\", RELLENADO Y COMPACTACIÓN, MANO DE OBRA, HERRAMIENTA, MAQUINARIA Y TODO LO NECESARIO PARA SU CORRECTA EJECUCIÓN.","ML",91]
[null,"A.V.24","SUMINISTROS Y CONSTRUCCIÓN DE BANCO DUCTOS TIPO S1B, A1B Y A1A ,1 CANALIZACION 2\", POLIETILENO DE ALTA DENSIDAD CORRUGADO (PADC), INCLUYE EXCAVACIÓN TENDIDO DE DUCTOS,  CINTA \"PELIGRO ALTA TENSION\", RELLENADO Y COMPACTACIÓN, MANO DE OBRA, HERRAMIENTA, MAQUINARIA Y TODO LO NECESARIO PARA SU CORRECTA EJECUCIÓN.","ML",219]
[null,"A.V.25","SUMINISTROS Y CONSTRUCCIÓN DE BANCO DE DUCTOS TIPO A4B, ACOMETIDA 4 CANALIZACIONES 2\", POLIETILENO DE ALTA DENSIDAD CORRUGADO (PADC) EN BANQUETA, INCLUYE EXCAVACIÓN TENDIDO DE DUCTOS,  CINTA \"PELIGRO ALTA TENSION\", RELLENADO Y COMPACTACIÓN, MANO DE OBRA, HERRAMIENTA, MAQUINARIA Y TODO LO NECESARIO PARA SU CORRECTA EJECUCIÓN.","ML",2]
[null,"A.V.26","SUMINISTROS Y CONSTRUCCIÓN DE BANCO DE DUCTOS TIPO A3B, ACOMETIDA 3 CANALIZACIONES 2\", POLIETILENO DE ALTA DENSIDAD CORRUGADO (PADC) EN BANQUETA, INCLUYE EXCAVACIÓN TENDIDO DE DUCTOS,  CINTA \"PELIGRO ALTA TENSION\", RELLENADO Y COMPACTACIÓN, MANO DE OBRA, HERRAMIENTA, MAQUINARIA Y TODO LO NECESARIO PARA SU CORRECTA EJECUCIÓN.","ML",14]
[null,"A.V.27","SUMINISTROS Y CONSTRUCCIÓN DE BANCO DE DUCTOS TIPO A2B, ACOMETIDA 2 CANALIZACIONES 2\", POLIETILENO DE ALTA DENSIDAD CORRUGADO (PADC) EN BANQUETA, INCLUYE EXCAVACIÓN TENDIDO DE DUCTOS, RELLENADO Y COMPACTACIÓN, MANO DE OBRA, HERRAMIENTA, MAQUINARIA Y TODO LO NECESARIO PARA SU CORRECTA EJECUCIÓN.","ML",20]
[null,"A.V.28","SUMINISTRO E INSTALACIÓN DE REGISTRO MEDIA TENSIÓN EN BANQUETA TIPO 3 CON BASE PARA TRANSFORMADOR MONOFASICO NORMA CFE-BTMRMTB3, INCLUYE: ACARREOS, EXCAVACIÓN, RELLENADO Y COMPACTADO, MANO DE OBRA, HERRAMIENTAS, ACCESORIOS DE MOTAJE Y TODO LO NECESARIO PARA SU CORRECTA EJECUCIÓN.","PZA",5]
[null,"A.V.29","SUMINISTRO E INSTALACIÓN DE REGISTRO PARA BAJA TENSIÓN EN BANQUETA TIPO 1 (RBTB-1), INCLUYE ACARREOS, MANO DE OBRA, HERRAMIENTAS, ACCESORIOS DE MONTAJE Y TODO LO NECESARIO PARA SU CORRECTA EJECUCIÓN","PZA",16]
[null,null,"OBRA ELECTRICA "]
[null,"A.V.30","SUMINISTRO E INSTALACION DE CORREDERA DE LAMINA GALVANIZADA 0.60 MTS CON PROTOCOLO CFE 2T400-48, INCLUYE: ACCESORIOS DE INSTALACIÓN, HERRAMIENTA MANO DE OBRA Y TODO LO NECESARIO PARA SU CORRECTA EJECUCIÓN.","PZA",20]
[null,"A.V.31","SUMINISTRO E INSTALACIÓN DE MENSULAS GALVANIZADA 0.25 MTRS CON PROTOCOLO CFE2D100-17  INCLUYE: ACCESORIOS DE INSTALACIÓN, HERRAMIENTA MANO DE OBRA Y TODO LO NECESARIO PARA SU CORRECTA EJECUCIÓN.","PZA",60]
[null,"A.V.32","SUMINISTRO E INSTALACIÓN DE AISLADORES PARA CONDUCTORES ELECTRICOS DE NEOPRENO CON PROTOCOLO, INCLUYE: ACCESORIOS DE INSTALACIÓN, HERRAMIENTA MANO DE OBRA Y TODO LO NECESARIO PARA SU CORRECTA EJECUCIÓN.","PZA",180]
[null,"A.V.33","SUMINISTRO E INSTALACIÓN DE ELECTRODO DE PUESTA A TIERRA EN REGISTROS PARA TRANSFORMADOR CON VARILLA DE TIERRA PROTOCOLIZADA POR CFE CFE56100.16,INCLUYE HERRAMIENTA, MANO DE OBRA Y TODO LO NECESARIO PARA SU CORRECTA EJECUCIÓN.","PZA",25]
[null,"A.V.34","SUMINISTRO E INSTALACIÓN DE CONDUCTOR DE COBRE DESNUDO CAL. 1/0 AWG PARA EL SISTEMA DE TIERRA, INCLUYE: EXCAVACION TENDIDO DE CONDUCTOR, RELLENADO Y COMPACTADO, HERRAMIENTA, MANO DE OBRA Y TODO LO NECESARIO PARA SU CORRECTA EJECUCIÓN.","ML",75]
[null,"A.V.35","SUMINISTRO Y EJECUCION DE SOLDADURA EXOTERMICA #90, INCLUYE: PREPARACION DE ELEMENTOS DE SISTEMA DE TIERRA ( VARILLA Y CONDUCTOR) REALIZACION DE MANIOBRAS DE SOLDADURA, CARTUCHO DE SOLDADURA EXOTERMICA #90, MANO DE OBRA.","PZA",30]
[null,"A.V.36","SUMINISTRO DE MOLDE PARA SOLDADURA EXOTERMICA, INCLUYE MOLDE PARA VARILLA EN \"T\" PARA CABLE CAL. 1/0 AWG, MOLDE PARA CABLE CAL. 1/0, PINZAS PARA MOLDES Y CHISPERO.","PZA",1]
[null,"A.V.37","SUMINISTRO E INSTALACIÓN DE ELECTRODO DE PUESTA A TIERRA EN REGISTROS DE BAJA TENSIÓN PARA TERMINACIÓN DE CIRCUITO CON VARILLA DE TIERRA PROTOCOLIZADA POR CFE CFE56100.16,INCLUYE HERRAMIENTA, TERMINAL PARA VARILLA DE TIERRA REFORZADO, MANO DE OBRA Y TODO LO NECESARIO PARA SU CORRECTA EJECUCIÓN.","PZA",13]
[null,"A.V.38","SUMINISTRO E INSTALACIÓN DE TRANSFORMADOR MONOFASICO TIPO PEDESTAL 13200YT/7620 - 240/120V, 100 KVA, NORMA K0000, MARCA PROLEC, INCLUYE ACARREOS, ACCESORIOS DE MONTAJE, MANO DE OBRA, HERRAMIENTA Y TODO LO NECESARIO PARA SU CORRECTA EJECUCIÓN.","PZA",4]
[null,"A.V.39","SUMINISTRO E INSTALACIÓN DE TRANSFORMADOR MONOFASICO TIPO PEDESTAL 13200YT/7620 - 240/120V, 50 KVA, NORMA K0000, MARCA PROLEC, INCLUYE ACARREOS, ACCESORIOS DE MONTAJE, MANO DE OBRA, HERRAMIENTA Y TODO LO NECESARIO PARA SU CORRECTA EJECUCIÓN.","PZA",1]
[null,"A.V.40","SUMINISTRO E INSTALACION DE CODO OCC, 15 KV, 200A, CAL 1/0 AWG MARCA CHARDON CON PRUEBA DE INTERCAMBIABIALIDAD LAPEM-CFE, INCLUYE MATERIAL DE INSTALACION, HERRAMIENTAS, MANO DE OBRA Y TODO LO NECESARIO PARA SU CORRECTA EJECUCIÓN.","PZA",10]
[null,"A.V.41","SUMINISTRO E INSTALACION DE ADAPTADOR PARA TIERRA 15 KV, 200A, CAL 1/0 AWG MARCA CHARDON, NORMA LAPEM-CFE, INCLUYE MATERIAL DE INSTALACION, HERRAMIENTAS, MANO DE OBRA Y TODO LO NECESARIO PARA SU CORRECTA EJECUCIÓN.","PZA",10]
[null,"A.V.42","SUMINISTRO E INSTALACION DE INSERTO SENCILLO OCC 15 KV, 200A,  MARCA CHARDON, NORMA LAPEM-CFE Y SIGLAS 03 INCLUYE MATERIAL DE INSTALACIÓN, HERRAMIENTAS, MANO DE OBRA Y TODO LO NECESARIO PARA SU CORRECTA EJECUCIÓN.","PZA",10]
[null,"A.V.43","SUMINISTRO E INSTALACION DE INDICADOR DE FALLA MARCA FISHER PIERCE, 15KV-35KV200A, INCLUYE MATERIAL DE INSTALACIÓN, HERRAMIENTAS, MANO DE OBRA Y TODO LO NECESARIO PARA SU CORRECTA EJECUCIÓN.","PZA",5]
[null,"A.V.44","SUMINISTRO E INSTALACION DE BOQUILLA ESTACIONARIA 15 KV, 200A,  MARCA ELASTIMOLD, NORMA LAPEM-CFE  INCLUYE MATERIAL DE INSTALACIÓN, HERRAMIENTAS, MANO DE OBRA Y TODO LO NECESARIO PARA SU CORRECTA EJECUCIÓN.","PZA",5]
[null,"A.V.45","SUMINISTRO E INSTALACION DE TAPÓN AISLADO OCC, 15 KV, 200A, NORMA LAPEM-CFE. INCLUYE MATERIAL DE INSTALACIÓN, HERRAMIENTAS, MANO DE OBRA Y TODO LO NECESARIO PARA SU CORRECTA EJECUCIÓN.","PZA",5]
[null,"A.V.46","SUMINISTRO E INSTALACIÓN DE TERMINAL ZAPATA BIMETALICA DE DOS BARRENOS, MARCA HOMAC, CUMPLE CON LAS ESPECIFICACIONES ANSI C119.4 CAL.3/0 AWG, CON SIGLA 3. INCLUYE: MATERIAL DE INSTALACION, TORNILLERIA, PONCHADO, HERRAMIENTAS, ACCESORIOS, MANO DE OBRA Y TODO LO NECESARIO PARA SU CORRECTA EJECUCIÓN.","PZA",20]
[null,"A.V.47","SUMINISTRO E INSTALACIÓN DE TERMINAL ZAPATA BIMETALICA DE DOS BARRENOS, MARCA HOMAC, CUMPLE CON LAS ESPECIFICACIONES ANSI C119.4 CAL.1/0 AWG, CON SIGLA 3. INCLUYE: MATERIAL DE INSTALACION, HERRAMIENTAS, ACCESORIOS, MANO DE OBRA Y TODO LO NECESARIO PARA SU CORRECTA EJECUCIÓN.","PZA",14]
[null,"A.V.48","SUMINISTRO E INSTALACIÓN DE TERMINAL ZAPATA BIMETALICA DE DOS BARRENOS, MARCA HOMAC, CUMPLE CON LAS ESPECIFICACIONES ANSI C119.4 CAL.2 AWG, CON SIGLA 3. INCLUYE: MATERIAL DE INSTALACION, HERRAMIENTAS, ACCESORIOS, MANO DE OBRA Y TODO LO NECESARIO PARA SU CORRECTA EJECUCIÓN.","PZA",7]
[null,"A.V.49","SUMINISTRO E INSTALACIÓN DE TERMINAL ZAPATA BIMETALICA DE DOS BARRENOS, MARCA HOMAC, CUMPLE CON LAS ESPECIFICACIONES ANSI C119.4 CAL.4 AWG CON SIGLA 3., INCLUYE: MATERIAL DE INSTALACION, HERRAMIENTAS, ACCESORIOS, MANO DE OBRA Y TODO LO NECESARIO PARA SU CORRECTA EJECUCIÓN.","PZA",7]
[null,"A.V.50","SUMINISTRO E INSTALACION DE CABLE DE MEDIA TENSIÓN XLP-AL 15 KV, 100% N.A, CAL. 1/0 AWG. INCLUYE  LIMPIEZA DE TUBERIA, GUIADO, CABLEADO, ACOMODO, ACARREOS, ACOMODOS, ENSINCHADO, HERRAMIENTA, MANO DE OBRA Y TODO LO NECESARIO PARA SU CORRECTA EJECUCION.","ML",371]
[null,"A.V.51","SUMINISTRO E INSTALACION DE CABLE CIRCUITOS SECUNDARIO CON CABLE TRIPLEX XLP, DRS, 600V CONFIGURACION 2X3/0+1X1/0 CON PROTOCOLO CFE. INCLUYE CABLE, HERRAMIENTA, MANO DE OBRA Y TODO LO NECESARIO PARA SU CORRECTA EJECUCIÓN.","ML",420]
[null,"A.V.52","SUMINISTRO E INSTALACION DE CABLE CIRCUITOS SECUNDARIO CON CABLE TRIPLEX XLP.DRS 600V CONFIGURACION 2X1/0+1X2 CON PROTOCOLO CFE, INCLUYE CABLE, HERRAMIENTA, MANO DE OBRA Y TODO LO NECESARIO PARA SU CORRECTA EJECUCIÓN.","ML",100]
[null,"A.V.53","SUMINISTRO E INSTALACION DE CABLE CIRCUITOS SECUNDARIO CON CABLE TRIPLEX XLP.DRS 600V CONFIGURACION 2X2+1X4 CON PROTOCOLO CFE, INCLUYE CABLE, HERRAMIENTA, MANO DE OBRA Y TODO LO NECESARIO PARA SU CORRECTA EJECUCIÓN.","ML",113]
[null,"A.V.54","SUMINISTRO Y CABLEADO DE CIRCUITO DE ACOMETIDA CON CABLE TRIPLEX XLP.DRS CONFIGURACION 2X4+1X4 CON PROTOCOLO CFE, INCLUYE CABLE, HERRAMIENTA, MANO DE OBRA Y TODO LO NECESARIO PARA SU CORRECTA EJECUCIÓN.","ML",462]
[null,"A.V.55","SUMINISTRO E INSTALACION DE CABLE DE COBRE DESNUDO CAL. 1/0 AWG QUE FUNGE COMO NEUTRO CORRIDO, ENTERRADO E INTERCONECTADO A LOS SISTEMAS DE PUESTA A TIERRA DE LOS TRANSFORMADORES INCLUYE: CONDUCTOR DE COBRE CAL 1/0 AWG, SOLDADURA EXOTERMICA EN CADA PUNTO DE CONEXIÓN, HERRAMIENTAS MANO DE OBRA Y TODO LO NECESARIO PARA SU CORRECTA EJECUCION. ","ML",230]
[null,"A.V.56","SUMINISTRO E INSTALACION DE CONECTORES BIMETALICOS TIPO RAB ( PULPOS) 4 VIAS CAL. 12-350, 600V, MARCA HOMAC, INCLUYE : MATERIAL DE INSTALACIÓN, HERRAMIENTA MANO DE OBRA Y TODO LO NECESARIO PARA SU CORRECTA EJECUCIÓN.","PZA",21]
[null,"A.V.57","SUMINISTRO E INSTALACION DE CONECTORES BIMETALICOS TIPO RAB ( PULPOS) 6 VIAS CAL. 12-350, 600V, MARCA HOMAC, INCLUYE : MATERIAL DE INSTALACIÓN, HERRAMIENTA MANO DE OBRA Y TODO LO NECESARIO PARA SU CORRECTA EJECUCIÓN.","PZA",30]
[null,"A.V.58","SUMINISTRO E INSTALACION DE CONECTORES BIMETALICOS TIPO RAB ( PULPOS) 8 VIAS CAL. 12-350, 600V,MARCA HOMAC, INCLUYE : MATERIAL DE INSTALACIÓN, HERRAMIENTA MANO DE OBRA Y TODO LO NECESARIO PARA SU CORRECTA EJECUCIÓN.","PZA",6]
[null,"A.V.59","SUMINISTRO E INSTALACIÓN DE ZAPATA PONCHABLE Y MANGA TERMOCONTRACTIL PARA CONEXIÓN EN PULPOS CAL 4 AWG., INCLUYE MATERIAL DE INSTALACIÓN, HERRAMIENTA, MANO DE OBRA Y TODO LO NECESARIO PARA SU CORRECTA EJECUCIÓN.","PZA",124]
[null,"A.V.60","SUMINISTRO E INSTALACIÓN DE ZAPATA PONCHABLE Y MANGA TERMOCONTRACTIL PARA CONEXIÓN EN PULPOS CAL 2 AWG., INCLUYE MATERIAL DE INSTALACIÓN, HERRAMIENTA, MANO DE OBRA Y TODO LO NECESARIO PARA SU CORRECTA EJECUCIÓN.","PZA",16]
[null,"A.V.61","SUMINISTRO E INSTALACIÓN DE ZAPATA PONCHABLE Y MANGA TERMOCONTRACTIL PARA CONEXIÓN EN PULPOS CAL 1/0 AWG., INCLUYE MATERIAL DE INSTALACIÓN, HERRAMIENTA, MANO DE OBRA Y TODO LO NECESARIO PARA SU CORRECTA EJECUCIÓN.","PZA",35]
[null,"A.V.62","SUMINISTRO E INSTALACIÓN DE ZAPATA PONCHABLE Y MANGA TERMOCONTRACTIL PARA CONEXIÓN EN PULPOS CAL 3/0 AWG., INCLUYE MATERIAL DE INSTALACIÓN, HERRAMIENTA, MANO DE OBRA Y TODO LO NECESARIO PARA SU CORRECTA EJECUCIÓN.","PZA",30]
[null,"A.V.63","SUMINISTRO E INSTALACIÓN DE BASE DE MEDICIÓN SENCILLA SUBTERRANA  2F-3H, 4X100A CON QUITA TERMINAL, INCLUYE: DESMONTE DE BASE DE MEDICIÓN ACTUAL, MATERIAL DE FIJACIÓN, HERRAMIENTA, MANO DE OBRAR Y TODO LO NECESARIO PARA SU CORRECTA EJECUCIÓN.","PZA",29]
[null,"A.V.64","SUMINISTRO E INSTALACIÓN DE BASE DE MEDICIÓN DOBLE  SUBTERRANA  2F-3H, 4X100A CON QUITA TERMINAL, INCLUYE: DESMONTE DE BASE DE MEDICIÓN ACTUAL, MATERIAL DE FIJACIÓN, HERRAMIENTA, MANO DE OBRAR Y TODO LO NECESARIO PARA SU CORRECTA EJECUCIÓN.","PZA",10]
[null,null,"RETIRO DE SISTEMA ELECTRICO AEREO"]
[null,"A.V.65","RETIRO DE POSTE DE MADERA CON ESTRUCTURA RD30-TS3, No. 180388, INCLUYE: MANIOBRA CON MAQUINARIA, HERRAMIENTA, MANO DE OBRA, ACARREO DESDE EL SITIO DE OBRA HASTA LUGAR DETERMINADO POR CFE Y TODO LO NECESARIO PARA SU CORRECTA EJECUCIÓN.","PZA",1]
[null,"A.V.66","RETIRO DE POSTE DE MADERA CON ESTRUCTURA TS30, No. 140807, INCLUYE: MANIOBRA CON MAQUINARIA, HERRAMIENTA, MANO DE OBRA, ACARREO DESDE EL SITIO DE OBRA HASTA LUGAR DETERMINADO POR CFE Y TODO LO NECESARIO PARA SU CORRECTA EJECUCIÓN.","PZA",1]
[null,"A.V.67","RETIRO DE POSTE DE MADERA CON ESTRUCTURA  RD30-TS3/2CCF/1TR2B (50kVA) CON TRANSFORMADOR TIPO POSTE DE 50KVA, No. 140918, IINCLUYE: MANIOBRA CON MAQUINARIA, HERRAMIENTA, MANO DE OBRA, ACARREO DESDE EL SITIO DE OBRA HASTA LUGAR DETERMINADO POR CFE Y TODO LO NECESARIO PARA SU CORRECTA EJECUCIÓN..","PZA",1]
[null,"A.V.68","RETIRO DE POSTES DE MADERA CON ACCESORIOS DE SECUNDARIO Y POSTE RETENIDA,INCLUYE: MANIOBRA CON MAQUINARIA, HERRAMIENTA, MANO DE OBRA, ACARREO DESDE EL SITIO DE OBRA HASTA LUGAR DETERMINADO POR CFE Y TODO LO NECESARIO PARA SU CORRECTA EJECUCIÓN..","PZA",4]
[null,"A.V.69","RETIRO DE LINEA PRIMARIA ÁEREA DE DISTRIBUCIÓN ELECTRICA 3F-3H, INCLUYE: MANIOBRA CON MAQUINARIA, HERRAMIENTA, MANO DE OBRA, ACARREO DESDE EL SITIO DE OBRA HASTA LUGAR DETERMINADO POR CFE Y TODO LO NECESARIO PARA SU CORRECTA EJECUCIÓN.","ML",130]
[null,"A.V.70","RETIRO DE LINEA SECUNDARIA ÁEREA DE DISTRIBUCIÓN ELECTRICA 3F-4H, INCLUYE: MANIOBRA CON MAQUINARIA, HERRAMIENTA, MANO DE OBRA, ACARREO DESDE EL SITIO DE OBRA HASTA LUGAR DETERMINADO POR CFE Y TODO LO NECESARIO PARA SU CORRECTA EJECUCIÓN.","ML",240]
[null,null,"EVALUACION Y MANTTO TRAMO ETAPA I Y GESTIONES GENERALES CFE."]
[null,"A.V.71","PRUEBAS DE LABORATORIO A TRANSFORMADOR PEDESTAL MONOFASICO EXISTENTE (NUNCA EN OPERACIÓN). INCLUYE RELACION DE TRANSFORMACION, RESISTENCIA DE AISLAMIENTO, RESISITIVIDAD Y RIGIDEZ DEL ACEITE, COLORIMETRIA, REPORTE TECNICO, USO DE EQUIPOS CALIBRADOS, TRASLADOS, PERSONAL, EQUIPO DE SEGURIDAD Y LO NECESARIO PARA SU CORRECTA EJECUCION.","SVC",8]
[null,"A.V.72","PRUEBAS DE LABORATORIO A CABLEADO DE MEDIA TENSION EXISTENTE (NUNCA ENERGIZADO). INCLUYE ENTREGA DE REPORTE TECNICO, USO DE EQUIPO VLF CON CALIBRACION VIGENTE, TRASLADOS, PERSONAL, EQUIPO DE SEGURIDAD Y LO NECESARIO PARA SU CORRECTA EJECUCION.","SVC",3]
[null,"A.V.73","MANTENIMIENTO, LIMPIEZA Y ETIQUETADO DE CABLES (PARA ENTREGA CFE) EN REGISTROS DE MEDIA TENSION TIPO 3, TIPO 4 O CON TRANSFORMADOR, INCLUYE RETIRO DE AGUA, SELLADO DE DUCTOS CON POLIURETANO, ENSINCHADO DE CABLES, AJUSTE DE SOPORTES (CORREDERAS, MENSULAS), LIMPIEZA DE CONDUCTORES, LIMPIEZA DE TRANSFORMADOR (EN CASO DE APLICAR), EQUIPO DE SEGURIDAD, PERSONAL, Y LO NECESARIO PARA SU CORRECTA EJECUCION.","SVC",18]
[null,"A.V.74","MANTENIMIENTO Y LIMPIEZA DE REGISTROS DE BAJA TENSION. INCLUYE RETIRO DE AGUA, SELLADO DE DUCTOS CON POLIURETANO, ENSINCHADO DE CABLES, LIMPIEZA DE CONDUCTORES, EQUIPO DE SEGURIDAD, PERSONAL, Y LO NECESARIO PARA SU CORRECTA EJECUCION.","SVC",10]
[null,"A.V.75","GESTION Y ENTREGA DE OBRAS ETAPA 1 Y ETAPA 2 A CFE HASTA SU ENERGIZACION. INCLUYE TRAMITES, PLANOS, MEMORIAS, ELABORACION DE PLANO DEPRORED, INVENTARIOS FISICOS VALORIZADOS, ACTAS Y LO NECESARIO PARA SU CORRECTA RECEPCION.","SVC",1]
[null,null,"SUB TOTAL :  INSTALACION DE MEDIA TENSION "]
[null,"A.VI.RED DE TELEFONIA "]
[null,"A.VI.1","SUMINISTRO E INSTALACION DE CANALIZACION TELEFONICA TIPO 5H4, INCLUYE, ESCAVACION, RELLENO, SEPARADORES, PLANTILLA DE 10 CMS. DE ESPESOR, COMPACTACION CON MATERIAL PRODUCTO DE LA EXCAVAXION, MANO DE OBRA, HERRAMIENTA, CINTA DE ALIZACION Y EQUIPO.(VER PLANO TEL-01)","ML",160]
[null,"A.VI.2","SUMINISTRO E INSTALACION DE CANALIZACION TELEFONICA TIPO 2H4, INCLUYE, ESCAVACION, RELLENO, SEPARADORES, PLANTILLA DE 10 CMS. DE ESPESOR, COMPACTACION CON MATERIAL PRODUCTO DE LA EXCAVAXION, MANO DE OBRA, HERRAMIENTA, CINTA DE ALIZACION Y EQUIPO.(VER PLANO TEL-01)","ML",50]
[null,"A.VI.3","SUMINISTRO E INSTALACION DE CANALIZACION TELEFONICA TIPO 7H4+3, INCLUYE, ESCAVACION, RELLENO, SEPARADORES, PLANTILLA DE 10 CMS. DE ESPESOR, COMPACTACION CON MATERIAL PRODUCTO DE LA EXCAVAXION, MANO DE OBRA, HERRAMIENTA, CINTA DE ALIZACION Y EQUIPO.(VER PLANO TEL-01)","ML",50]
[null,"A.VI.4","FABRICACION DE ENCOFRADO EN CRUCE DE VIALIDADES DE F´C=150 KG/CM2 DE SECCION DE 60 CMS DE ANCHO X 40 CMS DE ALTO, INCLUYE: MANO DE OBRA, EQUIPO, HERRAMIENTA Y MATERIALES ","M3",5]
[null,"A.VI.5","FABRICACION DE POZO TIPO L2T DE 1.33 X 0.68 X 0.73 CMS DE ALTURA FABRICADOS EN OBRA CON ACERO DE REFUERZO TIPO MALLA LAC 6X6-4X4 Y 6X6-6X6 CON F´C=220 KG/CM2, INCLUYE. CIMBRA, HERRAJES PARA POZO, RECUBRIMIENTO MINIMO DE 3 CMS., CURADO, DESIMBRADO, MANO DE OBRA, EQUIPO Y HERRAMIENTA.(VER PLANO TEL-01)","PZA",1]
[null,"A.VI.6","FABRICACION DE POZO TIPO L3T DE 1.63 X 0.68 X 0.76 CMS DE ALTURA FABRICADOS EN OBRA CON ACERO DE REFUERZO TIPO MALLA LAC 6X6-4X4 Y 6X6-6X6 CON F´C=220 KG/CM2, INCLUYE. CIMBRA, HERRAJES PARA POZO, RECUBRIMIENTO MINIMO DE 3 CMS., CURADO, DESIMBRADO, MANO DE OBRA, EQUIPO Y HERRAMIENTA.(VER PLANO TEL-01)","PZA",1]
[null,"A.VI.7","SUMINISTRO E INSTALACION DE RADIALES DE DE PVC DE 1\" DIAMETRO CEDUAL 40 PARA TODOS LOS SERVICOS PARTICULARES, INCLUYE: EXCAVACION, RELLENO CON PRODUCTO DE LA EXCAVACION, CONEXIÓN A LA RED SUBTERRANEA, MANO DE OBRA, EQUIPO, PIEZAS PARA UNION Y CONECION, HERRAMIENTA Y EQUIPO PARA SU COLOCACION.","ML",160]
[null,"A.VI.8","SUMINISTRO Y COLOCACION DE REGISTRO  DE 63X73X68 DE CONCRETO POLIMERICO FC=800 KG/CM2 INCLUYE: TAPA Y CONTRAMARCO DE CONCRETO POLIMERICO REFORZADO CON FIBRA DE VIDRIO, EL CUERPO DEL REGISTRO SERA DE FIBRA DE VIDRIO CON ESPESOR DE 1/8\" ENTINTADO AL COLOR DEL PISO SEGUN MUESTRA AUTORIZADA CON GRABADO  EN TAPA CON LEYENDA QUE INDIQUE  SUPERVISION,FILTRO DE 10 CM DE ESPESOR DE GRAVA TMA 3/4\", CONSUMIBLES, EQUIPO, HERRAMIENTA, MANO DE OBRA Y TODO LO NECESARIO PARA LA CORRECTA EJECUCIÓN DE LOS TRABAJOS.","PZA",8]
[null,null,"SUB TOTAL :  RED DE TELEFONIA "]
[null,"A.VII.","GUARNICIONES"]
[null,"A.VII.1","DEMOLICION DE GUARNICIONES DE CONCRETO EXISTENTES . INCLUYE: CARGA Y RETIRO DE ESCOMBRO FUERA DE LA OBRA HASTA EL LUGAR INDICADO POR LA SUPERVISION, LA MANO DE OBRA, HERRAMIENTA Y EQUIPO NECESARIO.","ML",10]
[null,"A.VII.2","EXCAVACION A MANO EN TERRENO CON CUALQUIER CLASIFICACION Y PROFUNDIDAD DE 20 A 50 CMS . INCLUYE: TRAZO, NIVELACION, AFINE DE FONDO Y TALUDES, RETIRO DE MATERIAL,  MATERIALES, MANO DE OBRA, HERRAMIENTA Y EQUIPO NECESARIO.","M3",46.32]
[null,"A.VII.3","FABRICACIÓN DE GUARNICIÓN DE CONCRETO TIPO PECHO DE PALOMA DE 15X20x40 CM. DE CONCRETO SIMPLE DE F'C= 200kg/cm², ACABADO APARENTE Y BOLEADOS EN FILOS SUPERIORES. INCLUYE: CONFINAMIENTO, PRUEBAS DE LABORATORIO, BOLEADO DE FILOS SUPERIORES, MATERIALES, CIMBRA METÁLICA, CURADO, VIBRADO A SISTEMA MECÁNICO, EQUIPO, MANO DE OBRA, HERRAMIENTA Y TODO LO NECESARIO PARA LA CORRECTA EJECUCIÓN DE LOS TRABAJOS.","ML",46]
[null,"A.VII.4","FABRICACIÓN DE GUARNICIÓN  TIPO CAJETE DE JARDINERAS, A BASE DE CONCRETO DE 20x20 CM. RESISTENCIA DE F'C= 200 KG/CM2, COLOR APARENTE ACABADO PULIDO CON PUNTAS BOLEADAS. INCLUYE:APLICACION DE SISTEMA SELLADOR DE SUPERFICIES A BASE DE PRIMER NEARSEAL10 Y SELLADOR DE POLIURETANO DURAFLOOR 750 A DOS MANOS,  PRUEBAS DE LABORATORIO,  BOLEADO DE FILOS SUPERIORES, MATERIALES, CIMBRA METÁLICA, CURADO, VIBRADO A SISTEMA MECÁNICO, EQUIPO, MANO DE OBRA, HERRAMIENTA Y TODO LO NECESARIO PARA LA CORRECTA EJECUCIÓN DE LOS TRABAJOS.","ML",120]
[null,"A.VII.5","FABRICACIÓN DE GUARNICIÓN  TIPO CAJETE DE JARDINERAS, A BASE DE CONCRETO DE 30x30 CM. RESISTENCIA DE F'C= 200 KG/CM2, COLOR APARENTE ACABADO PULIDO CON PUNTAS BOLEADAS. INCLUYE:APLICACION DE SISTEMA SELLADOR DE SUPERFICIES A BASE DE PRIMER NEARSEAL10 Y SELLADOR DE POLIURETANO DURAFLOOR 750 A DOS MANOS,  PRUEBAS DE LABORATORIO,  BOLEADO DE FILOS SUPERIORES, MATERIALES, CIMBRA METÁLICA, CURADO, VIBRADO A SISTEMA MECÁNICO, EQUIPO, MANO DE OBRA, HERRAMIENTA Y TODO LO NECESARIO PARA LA CORRECTA EJECUCIÓN DE LOS TRABAJOS.","ML",30]
[null,"A.VII.6","CONFINAMIENTO DE GUARNICION CON MATERIAL SELECCIONADO PRODUCTO DE LA EXCAVACION, LIBRE DE BOLEOS DE MAS DE 3\", INCLUYE MANO DE OBRA Y HERRAMIENTA.","M3",{"$f":"(E260+E259+E258)*0.24","v":47.04}]
[null,"A.VII.7","SUMINISTRO Y APLICACIÓN DE PINTURA VINILICA AHULADA MARCA COMERCIAL EN CALIDAD Y PRECIO, EN COLOR BLANCO, AMARILLO O ROJO (PREVIAMENTE AUTORIZADO). INCLUYE: PREPARACION DE LA SUPERFICIE, LIMPIEZA, MATERIALES, MANO DE OBRA Y HERRAMIENTA.","ML",46]
[null,null,"SUB TOTAL DE GUARNICIONES"]
[null,"A.VIII"," CONSTRUCCION DE BANQUETAS"]
[null,"A.VIII.1","TRAZO Y NIVELACION DE TERRACERIAS, AL AMPARO DE ESTE CONCEPTO EL CONTRATISTA DE ACUERDO A LOS PLANOS DE PROYECTO QUE LE SEAN SUMINISTRADOS, HARA EL TRAZO Y NIVELACION CON EQUIPO DE TOPOGRAFIA DE LOS EJES, LIMITES Y DETALLES CONSTRUCTIVOS DE LOS TRABAJOS. DEBERA COLOCAR REFERENCIAS FIJAS, FUERA DE LAS AREAS DE LOS TRABAJOS PARA ASEGURAR LOS ALINEAMIENTOS Y NIVELES. INCLUYE: LOS MATERIALES, MANO DE OBRA, HERRAMIENTA Y EQUIPO NECESARIO.","M2",2250]
[null,"A.VIII.2","CORTE DE TERRENO POR MEDIOS MECANICOS O MANUALES SEGÚN SE NECESITE. INCLUYE: ACARREOS DENTRO DE LA OBRA Y FUERA DE LA OBRA AL TIRADERO MUNICIPAL O DONDE SUPERVICION AUTORISE, MANO DE OBRA, HERRAMIENTA Y EQUIPO NECESARIO. ","M3",{"$f":"E265*0.2","v":450}]
[null,"A.VIII.3","RELLENO COMPACTADO CON EQUIPO MECANICO MANUAL EN CAPAS DE 20 CM. EN CEPA, CON MATERIAL SELECCIONADO PRODUCTO DE BANCO, COMPACTADO AL 90% PROCTOR. INCLUYE: CRIBADO DEL MATERIAL, ACARREOS DENTRO DE LA OBRA, INCORPORACION DE HUMEDAD, MANO DE OBRA, HERRAMIENTA Y EQUIPO NECESARIO. ","M3",780]
[1,"A.VIII.4","FABRICACIÓN DE BANQUETAS DE CONCRETO PREMEZCLADO DE 10 CM. DE ESPESOR CON UNA RESISTENCIA DE F'C=200 KG/CM2, CON COLOR INTEGRAL COLOR AMARILLO  EN PROPORCION Y DOSIFICACION SOLICITADA POR SUPERVISION CON DESMOLDANTE NEGRO CON ESTAMPADO CON MOLDE MODELO BOARDWALK WITH KNOTS DE 6\" BW600S MARCA PROLINE O SIMILAR EN CALIDAD, REFORZADA CON MALLA ELECTROSOLDADA 6-6/10-10  INCLUYE: SILLETA PLASTICA CALZADORA , DOS MANOS DE RECUBRIMIENTO ANTICORROSIVO AMERCOAT COLOR BLANCO PARA SU MEJOR IDENTIFICACION, ACABADO FINAL DESBASTADO CON AGREGADO EXPUESTO DE MANERA UNIFORME, TRAZO DE LOS TRABAJOS, T.M.A 1/2\", VIBRADO, EQUIPO TOPOGRÁFICO SEGÚN DISEÑO, CORTE DE LOSAS CON DISCO DE DIAMANTE AL 1/3 DEL ESPESOR DE LA LOSA,   APLICACIÓN DE ESPUMA DE POLIETILENO DE CELDA CERRADA CLOSED CELL BACKER ROD COMO RESPALDO Y JUNTEADOR BASE POLIURETANO, AUTONIVELANTE, DESBASTABLE, APLICACION DE SISTEMA SELLADOR DE SUPERFICIES A BASE DE PRIMER NEARSEAL10 Y SELLADOR DE POLIURETANO DURAFLOOR 750 A DOS MANOS,  SE UTILIZARÁ CIMBRA METALICA MACHIMBRADA (NO SE ACEPTARÁ CIMBRA DE MADERA), COLADO, VIBRADO, DESCIMBRADO, CURADO DURANTE LOS PRIMEROS 7 DÍAS DESPUÉS DEL COLADO, TENDIDO REGLEADO, EQUIPO, HERRAMIENTA, CONSUMIBLES,  MANO DE OBRA, VIGILANCIA Y CUIDADO DE CONCRETO POR 24 HORAS DESPUÉS DEL COLADO Y TODO LO NECESARIO PARA LA CORRECTA EJECUCIÓN DE LOS TRABAJOS. (P.U.O.T.) NOTA: EL LICITANTE DEBERA DE CONSIDERAR LAS PRUEBAS DE LABORATORIO RESPECTIVAS EFECTUADAS POR UN LABORATORIO EXTERNO AL MISMO Y PRESENTARSE AL MOMENTO DE REALIZAR EL TRAMITE PARA EL PAGO DE ESTIMACIONES.\n","M2",400]
[2,"A.VIII.5","FABRICACIÓN DE BANQUETAS DE CONCRETO PREMEZCLADO DE 10 CM. DE ESPESOR CON UNA RESISTENCIA DE F'C=200 KG/CM2, CON COLOR INTEGRAL COLOR GRIS PLATA  EN PROPORCION Y DOSIFICACION SOLICITADA POR SUPERVISION CON DESMOLDANTE GRIS CON ESTAMPADO CON MOLDE MODELO ASHLAR NEW ENGLAND SLATE AS100  DE 24\"X24\", MARCA PROLINE O SIMILAR EN CALIDAD, REFORZADA CON MALLA ELECTROSOLDADA 6-6/10-10  INCLUYE: SILLETA PLASTICA CALZADORA , DOS MANOS DE RECUBRIMIENTO ANTICORROSIVO AMERCOAT COLOR BLANCO PARA SU MEJOR IDENTIFICACION, ACABADO FINAL DESBASTADO CON AGREGADO EXPUESTO DE MANERA UNIFORME, TRAZO DE LOS TRABAJOS, T.M.A 1/2\", VIBRADO, EQUIPO TOPOGRÁFICO SEGÚN DISEÑO, CORTE DE LOSAS CON DISCO DE DIAMANTE AL 1/3 DEL ESPESOR DE LA LOSA,   APLICACIÓN DE ESPUMA DE POLIETILENO DE CELDA CERRADA CLOSED CELL BACKER ROD COMO RESPALDO Y JUNTEADOR BASE POLIURETANO, AUTONIVELANTE, DESBASTABLE, APLICACION DE SISTEMA SELLADOR DE SUPERFICIES A BASE DE PRIMER NEARSEAL10 Y SELLADOR DE POLIURETANO DURAFLOOR 750 A DOS MANOS,  SE UTILIZARÁ CIMBRA METALICA MACHIMBRADA (NO SE ACEPTARÁ CIMBRA DE MADERA), COLADO, VIBRADO, DESCIMBRADO, CURADO DURANTE LOS PRIMEROS 7 DÍAS DESPUÉS DEL COLADO, TENDIDO REGLEADO, EQUIPO, HERRAMIENTA, CONSUMIBLES,  MANO DE OBRA, VIGILANCIA Y CUIDADO DE CONCRETO POR 24 HORAS DESPUÉS DEL COLADO Y TODO LO NECESARIO PARA LA CORRECTA EJECUCIÓN DE LOS TRABAJOS. (P.U.O.T.) NOTA: EL LICITANTE DEBERA DE CONSIDERAR LAS PRUEBAS DE LABORATORIO RESPECTIVAS EFECTUADAS POR UN LABORATORIO EXTERNO AL MISMO Y PRESENTARSE AL MOMENTO DE REALIZAR EL TRAMITE PARA EL PAGO DE ESTIMACIONES.\n","M2",460]
[3,"A.VIII.6","FABRICACIÓN DE BANQUETAS DE CONCRETO PREMEZCLADO DE 10 CM. DE ESPESOR CON UNA RESISTENCIA DE F'C=200 KG/CM2, CON COLOR INTEGRAL COLOR AMARILLO  EN PROPORCION Y DOSIFICACION SOLICITADA POR SUPERVISION CON DESMOLDANTE NEGRO CON ESTAMPADO CON MOLDE MODELO SQUARE TILE GRANITE SETS 4X4\"  ST 400 DE 32X32\", MARCA PROLINE O SIMILAR EN CALIDAD, REFORZADA CON MALLA ELECTROSOLDADA 6-6/10-10  INCLUYE: SILLETA PLASTICA CALZADORA , DOS MANOS DE RECUBRIMIENTO ANTICORROSIVO AMERCOAT COLOR BLANCO PARA SU MEJOR IDENTIFICACION, ACABADO FINAL DESBASTADO CON AGREGADO EXPUESTO DE MANERA UNIFORME, TRAZO DE LOS TRABAJOS, T.M.A 1/2\", VIBRADO, EQUIPO TOPOGRÁFICO SEGÚN DISEÑO, CORTE DE LOSAS CON DISCO DE DIAMANTE AL 1/3 DEL ESPESOR DE LA LOSA,   APLICACIÓN DE ESPUMA DE POLIETILENO DE CELDA CERRADA CLOSED CELL BACKER ROD COMO RESPALDO Y JUNTEADOR BASE POLIURETANO, AUTONIVELANTE, DESBASTABLE, APLICACION DE SISTEMA SELLADOR DE SUPERFICIES A BASE DE PRIMER NEARSEAL10 Y SELLADOR DE POLIURETANO DURAFLOOR 750 A DOS MANOS,  SE UTILIZARÁ CIMBRA METALICA MACHIMBRADA (NO SE ACEPTARÁ CIMBRA DE MADERA), COLADO, VIBRADO, DESCIMBRADO, CURADO DURANTE LOS PRIMEROS 7 DÍAS DESPUÉS DEL COLADO, TENDIDO REGLEADO, EQUIPO, HERRAMIENTA, CONSUMIBLES,  MANO DE OBRA, VIGILANCIA Y CUIDADO DE CONCRETO POR 24 HORAS DESPUÉS DEL COLADO Y TODO LO NECESARIO PARA LA CORRECTA EJECUCIÓN DE LOS TRABAJOS. (P.U.O.T.) NOTA: EL LICITANTE DEBERA DE CONSIDERAR LAS PRUEBAS DE LABORATORIO RESPECTIVAS EFECTUADAS POR UN LABORATORIO EXTERNO AL MISMO Y PRESENTARSE AL MOMENTO DE REALIZAR EL TRAMITE PARA EL PAGO DE ESTIMACIONES.\n","M2",600]
[4,"A.VIII.7","FABRICACIÓN DE BANQUETAS DE CONCRETO PREMEZCLADO DE 10 CM. DE ESPESOR CON UNA RESISTENCIA DE F'C=200 KG/CM2, CON COLOR INTEGRAL COLOR MANDARINA  EN PROPORCION Y DOSIFICACION SOLICITADA POR SUPERVISION CON ACABADO PULIDO, REFORZADA CON MALLA ELECTROSOLDADA 6-6/10-10  INCLUYE: SILLETA PLASTICA CALZADORA , DOS MANOS DE RECUBRIMIENTO ANTICORROSIVO AMERCOAT COLOR BLANCO PARA SU MEJOR IDENTIFICACION, ACABADO FINAL DESBASTADO CON AGREGADO EXPUESTO DE MANERA UNIFORME, TRAZO DE LOS TRABAJOS, T.M.A 1/2\", VIBRADO, EQUIPO TOPOGRÁFICO SEGÚN DISEÑO, CORTE DE LOSAS CON DISCO DE DIAMANTE AL 1/3 DEL ESPESOR DE LA LOSA,   APLICACIÓN DE ESPUMA DE POLIETILENO DE CELDA CERRADA CLOSED CELL BACKER ROD COMO RESPALDO Y JUNTEADOR BASE POLIURETANO, AUTONIVELANTE, DESBASTABLE, APLICACION DE SISTEMA SELLADOR DE SUPERFICIES A BASE DE PRIMER NEARSEAL10 Y SELLADOR DE POLIURETANO DURAFLOOR 750 A DOS MANOS,  SE UTILIZARÁ CIMBRA METALICA MACHIMBRADA (NO SE ACEPTARÁ CIMBRA DE MADERA), COLADO, VIBRADO, DESCIMBRADO, CURADO DURANTE LOS PRIMEROS 7 DÍAS DESPUÉS DEL COLADO, TENDIDO REGLEADO, EQUIPO, HERRAMIENTA, CONSUMIBLES,  MANO DE OBRA, VIGILANCIA Y CUIDADO DE CONCRETO POR 24 HORAS DESPUÉS DEL COLADO Y TODO LO NECESARIO PARA LA CORRECTA EJECUCIÓN DE LOS TRABAJOS. (P.U.O.T.) NOTA: EL LICITANTE DEBERA DE CONSIDERAR LAS PRUEBAS DE LABORATORIO RESPECTIVAS EFECTUADAS POR UN LABORATORIO EXTERNO AL MISMO Y PRESENTARSE AL MOMENTO DE REALIZAR EL TRAMITE PARA EL PAGO DE ESTIMACIONES.\n","M2",135]
[null,"A.VIII.8","FABRICACIÓN DE BANQUETAS DE CONCRETO PREMEZCLADO DE 10 CM. DE ESPESOR CON UNA RESISTENCIA DE F'C=200 KG/CM2, COLOR APARENTE CON ACABADO PULIDO, REFORZADA CON MALLA ELECTROSOLDADA 6-6/10-10  INCLUYE: SILLETA PLASTICA CALZADORA , DOS MANOS DE RECUBRIMIENTO ANTICORROSIVO AMERCOAT COLOR BLANCO PARA SU MEJOR IDENTIFICACION, ACABADO FINAL DESBASTADO CON AGREGADO EXPUESTO DE MANERA UNIFORME, TRAZO DE LOS TRABAJOS, T.M.A 1/2\", VIBRADO, EQUIPO TOPOGRÁFICO SEGÚN DISEÑO, CORTE DE LOSAS CON DISCO DE DIAMANTE AL 1/3 DEL ESPESOR DE LA LOSA,   APLICACIÓN DE ESPUMA DE POLIETILENO DE CELDA CERRADA CLOSED CELL BACKER ROD COMO RESPALDO Y JUNTEADOR BASE POLIURETANO, AUTONIVELANTE, DESBASTABLE, APLICACION DE SISTEMA SELLADOR DE SUPERFICIES A BASE DE PRIMER NEARSEAL10 Y SELLADOR DE POLIURETANO DURAFLOOR 750 A DOS MANOS,  SE UTILIZARÁ CIMBRA METALICA MACHIMBRADA (NO SE ACEPTARÁ CIMBRA DE MADERA), COLADO, VIBRADO, DESCIMBRADO, CURADO DURANTE LOS PRIMEROS 7 DÍAS DESPUÉS DEL COLADO, TENDIDO REGLEADO, EQUIPO, HERRAMIENTA, CONSUMIBLES,  MANO DE OBRA, VIGILANCIA Y CUIDADO DE CONCRETO POR 24 HORAS DESPUÉS DEL COLADO Y TODO LO NECESARIO PARA LA CORRECTA EJECUCIÓN DE LOS TRABAJOS. (P.U.O.T.) NOTA: EL LICITANTE DEBERA DE CONSIDERAR LAS PRUEBAS DE LABORATORIO RESPECTIVAS EFECTUADAS POR UN LABORATORIO EXTERNO AL MISMO Y PRESENTARSE AL MOMENTO DE REALIZAR EL TRAMITE PARA EL PAGO DE ESTIMACIONES.\n","M2",160]
[5,"A.VIII.9","FABRICACION DE ROSETON  DE ROSA DE LOS VIENTOS DE 5.00 DE DIAMETRO DE CONCRETO PREMEZCLADO DE 10 CM. DE ESPESOR CON UNA RESISTENCIA DE F'C=200 KG/CM2, CON COLOR INTEGRAL EN COLORES VARIOS  EN PROPORCION Y DOSIFICACION SOLICITADA POR SUPERVISION CON ACABADO PULIDO, REFORZADA CON MALLA ELECTROSOLDADA 6-6/10-10  INCLUYE: SILLETA PLASTICA CALZADORA , DOS MANOS DE RECUBRIMIENTO ANTICORROSIVO AMERCOAT COLOR BLANCO PARA SU MEJOR IDENTIFICACION, ACABADO FINAL DESBASTADO CON AGREGADO EXPUESTO DE MANERA UNIFORME, TRAZO DE LOS TRABAJOS, T.M.A 1/2\", VIBRADO, EQUIPO TOPOGRÁFICO SEGÚN DISEÑO, CORTE DE LOSAS CON DISCO DE DIAMANTE AL 1/3 DEL ESPESOR DE LA LOSA,   APLICACIÓN DE ESPUMA DE POLIETILENO DE CELDA CERRADA CLOSED CELL BACKER ROD COMO RESPALDO Y JUNTEADOR BASE POLIURETANO, AUTONIVELANTE, DESBASTABLE, APLICACION DE SISTEMA SELLADOR DE SUPERFICIES A BASE DE PRIMER NEARSEAL10 Y SELLADOR DE POLIURETANO DURAFLOOR 750 A DOS MANOS,  SE UTILIZARÁ CIMBRA METALICA MACHIMBRADA (NO SE ACEPTARÁ CIMBRA DE MADERA), COLADO, VIBRADO, DESCIMBRADO, CURADO DURANTE LOS PRIMEROS 7 DÍAS DESPUÉS DEL COLADO, TENDIDO REGLEADO, EQUIPO, HERRAMIENTA, CONSUMIBLES,  MANO DE OBRA, VIGILANCIA Y CUIDADO DE CONCRETO POR 24 HORAS DESPUÉS DEL COLADO Y TODO LO NECESARIO PARA LA CORRECTA EJECUCIÓN DE LOS TRABAJOS. (P.U.O.T.) NOTA: EL LICITANTE DEBERA DE CONSIDERAR LAS PRUEBAS DE LABORATORIO RESPECTIVAS EFECTUADAS POR UN LABORATORIO EXTERNO AL MISMO Y PRESENTARSE AL MOMENTO DE REALIZAR EL TRAMITE PARA EL PAGO DE ESTIMACIONES.\n","M2",18]
[null,"A.VIII.10","FABRICACIÓN DE RAMPA DE CONCRETO 10 CM. DE ESPESOR CON UNA RESISTENCIA DE F'C=200 KG/CM2, COLOR INTEGRAL AMARILLO REFORZADA CON MALLA ELECTROSOLDADA 6,6 / 10,10, ACABADO FINAL ESCOBILADO FINO CON BROCHA.   INCLUYE: DENTELLÓNES DE 15 X 20 CM CON VAR. 3/8\" Y ESTRIBOS # 2 @ 20 CM COLOCADO EN INICIO Y FINAL DE DESARROLLO DE RAMPA,MARCA DE DISCAPACITADOS BAJO RELIEVE, TRAZO DE LOS TRABAJOS,  T.M.A 1/2\", VIBRADO, EQUIPO TOPOGRÁFICO SEGÚN DISEÑO, CORTE DE LOSAS CON DISCO DE DIAMANTE AL 1/3 DEL ESPESOR DE LA LOSA, APLICACIÓN DE ESPUMA DE POLIETILENO DE CELDA CERRADA CLOSED CELL BACKER ROD, COMO RESPALDO PARA SELLADORES ELASTOMÉRICOS, APLICACION DE SISTEMA SELLADOR DE SUPERFICIES A BASE DE PRIMER NEARSEAL10 Y SELLADOR DE POLIURETANO DURAFLOOR 750 A DOS MANOS,RELLENO, CONFINAMIENTO CON MATERIAL PRODUCTO DE LA EXCAVACIÓN, COMPACTACIÓN AL 90% PROCTOR, AFINE, CIMBRADO, COLADO, VIBRADO, DESCIMBRADO, CURADO DURANTE LOS PRIMEROS 7 DÍAS DESPUÉS DEL COLADO, TENDIDO REGLEADO, EQUIPO, HERRAMIENTA, CONSUMIBLES,  MANO DE OBRA, VIGILANCIA Y CUIDADO DE CONCRETO POR 24 HORAS DESPUÉS DEL COLADO Y TODO LO NECESARIO PARA LA CORRECTA EJECUCIÓN DE LOS TRABAJOS. (P.U.O.T.)\nNOTA: EL LICITANTE DEBERA DE CONSIDERAR LAS PRUEBAS DE LABORATORIO RESPECTIVAS EFECTUADAS POR UN LABORATORIO EXTERNO AL MISMO Y PRESENTARSE AL MOMENTO DE REALIZAR EL TRAMITE PARA EL PAGO DE ESTIMACIONES.","M2",37]
[null,"A.VIII.11","FABRICACIÓN DE RAMPA DE CONCRETO 10 CM. DE ESPESOR CON UNA RESISTENCIA DE F'C=200 KG/CM2, COLOR INTEGRAL AMARILLO REFORZADA CON MALLA ELECTROSOLDADA 6,6 / 10,10, ACABADO FINAL ESCOBILADO FINO CON BROCHA.   INCLUYE: DENTELLÓNES DE 15 X 20 CM CON VAR. 3/8\" Y ESTRIBOS # 2 @ 20 CM COLOCADO EN INICIO Y FINAL DE DESARROLLO DE CADA RAMPA, DESCANSOS, MARCA DE DISCAPACITADOS BAJO RELIEVE, TRAZO DE LOS TRABAJOS,  T.M.A 1/2\", VIBRADO, EQUIPO TOPOGRÁFICO SEGÚN DISEÑO, CORTE DE LOSAS CON DISCO DE DIAMANTE AL 1/3 DEL ESPESOR DE LA LOSA, APLICACIÓN DE ESPUMA DE POLIETILENO DE CELDA CERRADA CLOSED CELL BACKER ROD, COMO RESPALDO PARA SELLADORES ELASTOMÉRICOS, APLICACION DE SISTEMA SELLADOR DE SUPERFICIES A BASE DE PRIMER NEARSEAL10 Y SELLADOR DE POLIURETANO DURAFLOOR 750 A DOS MANOS,RELLENO, CONFINAMIENTO CON MATERIAL PRODUCTO DE LA EXCAVACIÓN, COMPACTACIÓN AL 90% PROCTOR, AFINE, CIMBRADO, COLADO, VIBRADO, DESCIMBRADO, CURADO DURANTE LOS PRIMEROS 7 DÍAS DESPUÉS DEL COLADO, TENDIDO REGLEADO, EQUIPO, HERRAMIENTA, CONSUMIBLES,  MANO DE OBRA, VIGILANCIA Y CUIDADO DE CONCRETO POR 24 HORAS DESPUÉS DEL COLADO Y TODO LO NECESARIO PARA LA CORRECTA EJECUCIÓN DE LOS TRABAJOS. (P.U.O.T.)\nNOTA: EL LICITANTE DEBERA DE CONSIDERAR LAS PRUEBAS DE LABORATORIO RESPECTIVAS EFECTUADAS POR UN LABORATORIO EXTERNO AL MISMO Y PRESENTARSE AL MOMENTO DE REALIZAR EL TRAMITE PARA EL PAGO DE ESTIMACIONES.","M2",43]
[null,"A.VIII.12","CONSTRUCCION DE ESCALERAS  A BASE DE CONCRETO CON COLOR INTEGRAL COLOR AMARILLO  EN PROPORCION Y DOSIFICACION SOLICITADA POR SUPERVISION CON DESMOLDANTE NEGRO CON ESTAMPADO CON MOLDE MODELO BOARDWALK WITH KNOTS DE 6\" BW600S MARCA PROLINE O SIMILAR EN CALIDAD,  ARMADO CON RAMPAS DE 10 CMS. DE ESPESOR ARMADO CON MALLA 6.6-10.10 CON HUELLAS DE 30 CMS. Y PERALTES  17-18 CMS. DE ALTURA ARMADO CON VARILLA DEL #3 @ 30 CMS  Y REFUERZO EN FILO CON VAR. DEL #3.  CON UN F'C= 200 kg/cm².INCLUYE:  TRAZO DE LOS TRABAJOS,  T.M.A 1/2\", VIBRADO, EQUIPO TOPOGRÁFICO SEGÚN DISEÑO, CORTE DE LOSAS CON DISCO DE DIAMANTE AL 1/3 DEL ESPESOR DE LA LOSA, APLICACIÓN DE ESPUMA DE POLIETILENO DE CELDA CERRADA CLOSED CELL BACKER ROD, COMO RESPALDO PARA SELLADORES ELASTOMÉRICOS, APLICACION DE SISTEMA SELLADOR DE SUPERFICIES A BASE DE PRIMER NEARSEAL10 Y SELLADOR DE POLIURETANO DURAFLOOR 750 A DOS MANOS,RELLENO, CONFINAMIENTO CON MATERIAL PRODUCTO DE LA EXCAVACIÓN, COMPACTACIÓN AL 90% PROCTOR, AFINE, CIMBRADO, COLADO, VIBRADO, DESCIMBRADO, CURADO DURANTE LOS PRIMEROS 7 DÍAS DESPUÉS DEL COLADO, TENDIDO REGLEADO, EQUIPO, HERRAMIENTA, CONSUMIBLES,  MANO DE OBRA, VIGILANCIA Y CUIDADO DE CONCRETO POR 24 HORAS DESPUÉS DEL COLADO Y TODO LO NECESARIO PARA LA CORRECTA EJECUCIÓN DE LOS TRABAJOS. (P.U.O.T.)\nNOTA: EL LICITANTE DEBERA DE CONSIDERAR LAS PRUEBAS DE LABORATORIO RESPECTIVAS EFECTUADAS POR UN LABORATORIO EXTERNO AL MISMO Y PRESENTARSE AL MOMENTO DE REALIZAR EL TRAMITE PARA EL PAGO DE ESTIMACIONES.","ML",80]
[null,"A.VIII.13","CONSTRUCCION DE ESCALERAS  A BASE DE CONCRETO ACABADO PULIDO,  ARMADO CON RAMPAS DE 10 CMS. DE ESPESOR ARMADO CON MALLA 6.6-10.10 CON HUELLAS DE 30 CMS. Y PERALTES  17-18 CMS. DE ALTURA ARMADO CON VARILLA DEL #3 @ 30 CMS  Y REFUERZO EN FILO CON VAR. DEL #3.  CON UN F'C= 200 kg/cm².INCLUYE:  TRAZO DE LOS TRABAJOS,  T.M.A 1/2\", VIBRADO, EQUIPO TOPOGRÁFICO SEGÚN DISEÑO, CORTE DE LOSAS CON DISCO DE DIAMANTE AL 1/3 DEL ESPESOR DE LA LOSA, APLICACIÓN DE ESPUMA DE POLIETILENO DE CELDA CERRADA CLOSED CELL BACKER ROD, COMO RESPALDO PARA SELLADORES ELASTOMÉRICOS, APLICACION DE SISTEMA SELLADOR DE SUPERFICIES A BASE DE PRIMER NEARSEAL10 Y SELLADOR DE POLIURETANO DURAFLOOR 750 A DOS MANOS,RELLENO, CONFINAMIENTO CON MATERIAL PRODUCTO DE LA EXCAVACIÓN, COMPACTACIÓN AL 90% PROCTOR, AFINE, CIMBRADO, COLADO, VIBRADO, DESCIMBRADO, CURADO DURANTE LOS PRIMEROS 7 DÍAS DESPUÉS DEL COLADO, TENDIDO REGLEADO, EQUIPO, HERRAMIENTA, CONSUMIBLES,  MANO DE OBRA, VIGILANCIA Y CUIDADO DE CONCRETO POR 24 HORAS DESPUÉS DEL COLADO Y TODO LO NECESARIO PARA LA CORRECTA EJECUCIÓN DE LOS TRABAJOS. (P.U.O.T.)\nNOTA: EL LICITANTE DEBERA DE CONSIDERAR LAS PRUEBAS DE LABORATORIO RESPECTIVAS EFECTUADAS POR UN LABORATORIO EXTERNO AL MISMO Y PRESENTARSE AL MOMENTO DE REALIZAR EL TRAMITE PARA EL PAGO DE ESTIMACIONES.","ML",104]
[null,"A.VIII.14","CONSTRUCCION DE ESCALERAS  A BASE DE CONCRETO CON COLOR INTEGRAL COLOR AMARILLO  EN PROPORCION Y DOSIFICACION SOLICITADA POR SUPERVISION CON DESMOLDANTE NEGRO CON ESTAMPADO CON MOLDE MODELO BOARDWALK WITH KNOTS DE 6\" BW600S MARCA PROLINE O SIMILAR EN CALIDAD,  ARMADO CON RAMPAS DE 10 CMS. DE ESPESOR ARMADO CON MALLA 6.6-10.10 CON HUELLAS VARIABLES DE CMS. Y PERALTES  17-18 CMS. DE ALTURA ARMADO CON VARILLA DEL #3 @ 30 CMS  Y REFUERZO EN FILO CON VAR. DEL #3.  CON UN F'C= 200 kg/cm².INCLUYE:  TRAZO DE LOS TRABAJOS,  T.M.A 1/2\", VIBRADO, EQUIPO TOPOGRÁFICO SEGÚN DISEÑO, CORTE DE LOSAS CON DISCO DE DIAMANTE AL 1/3 DEL ESPESOR DE LA LOSA, APLICACIÓN DE ESPUMA DE POLIETILENO DE CELDA CERRADA CLOSED CELL BACKER ROD, COMO RESPALDO PARA SELLADORES ELASTOMÉRICOS, APLICACION DE SISTEMA SELLADOR DE SUPERFICIES A BASE DE PRIMER NEARSEAL10 Y SELLADOR DE POLIURETANO DURAFLOOR 750 A DOS MANOS,RELLENO, CONFINAMIENTO CON MATERIAL PRODUCTO DE LA EXCAVACIÓN, COMPACTACIÓN AL 90% PROCTOR, AFINE, CIMBRADO, COLADO, VIBRADO, DESCIMBRADO, CURADO DURANTE LOS PRIMEROS 7 DÍAS DESPUÉS DEL COLADO, TENDIDO REGLEADO, EQUIPO, HERRAMIENTA, CONSUMIBLES,  MANO DE OBRA, VIGILANCIA Y CUIDADO DE CONCRETO POR 24 HORAS DESPUÉS DEL COLADO Y TODO LO NECESARIO PARA LA CORRECTA EJECUCIÓN DE LOS TRABAJOS. (P.U.O.T.)\nNOTA: EL LICITANTE DEBERA DE CONSIDERAR LAS PRUEBAS DE LABORATORIO RESPECTIVAS EFECTUADAS POR UN LABORATORIO EXTERNO AL MISMO Y PRESENTARSE AL MOMENTO DE REALIZAR EL TRAMITE PARA EL PAGO DE ESTIMACIONES.","M2",25]
[null,"A.VIII.15","CONSTRUCCION DE DESCANSO  A BASE DE CONCRETO CON COLOR INTEGRAL AMARILLO ACABADO PULIDO, DE 10 CMS. DE ESPESOR ARMADO CON MALLA 6.6-10.10 CON UN F'C= 200 kg/cm².INCLUYE:  TRAZO DE LOS TRABAJOS,  T.M.A 1/2\", VIBRADO, EQUIPO TOPOGRÁFICO SEGÚN DISEÑO, CORTE DE LOSAS CON DISCO DE DIAMANTE AL 1/3 DEL ESPESOR DE LA LOSA, APLICACIÓN DE ESPUMA DE POLIETILENO DE CELDA CERRADA CLOSED CELL BACKER ROD, COMO RESPALDO PARA SELLADORES ELASTOMÉRICOS, APLICACION DE SISTEMA SELLADOR DE SUPERFICIES A BASE DE PRIMER NEARSEAL10 Y SELLADOR DE POLIURETANO DURAFLOOR 750 A DOS MANOS,RELLENO, CONFINAMIENTO CON MATERIAL PRODUCTO DE LA EXCAVACIÓN, COMPACTACIÓN AL 90% PROCTOR, AFINE, CIMBRADO, COLADO, VIBRADO, DESCIMBRADO, CURADO DURANTE LOS PRIMEROS 7 DÍAS DESPUÉS DEL COLADO, TENDIDO REGLEADO, EQUIPO, HERRAMIENTA, CONSUMIBLES,  MANO DE OBRA, VIGILANCIA Y CUIDADO DE CONCRETO POR 24 HORAS DESPUÉS DEL COLADO Y TODO LO NECESARIO PARA LA CORRECTA EJECUCIÓN DE LOS TRABAJOS. (P.U.O.T.)\nNOTA: EL LICITANTE DEBERA DE CONSIDERAR LAS PRUEBAS DE LABORATORIO RESPECTIVAS EFECTUADAS POR UN LABORATORIO EXTERNO AL MISMO Y PRESENTARSE AL MOMENTO DE REALIZAR EL TRAMITE PARA EL PAGO DE ESTIMACIONES.","M2",21]
[null,null,"SUB TOTAL DE BANQUETAS "]
[null,"A.IX.","CONSTRUCCION DE VIALIDAD "]
[null,"A.IX.1","TRAZO Y NIVELACION DE TERRACERIAS PARA VIALIDADES   CON EQUIPO DE TOPOGRAFIA DE LOS EJES, LIMITES Y DETALLES CONSTRUCTIVOS DE LOS TRABAJOS. DEBERA COLOCAR REFERENCIAS FIJAS, FUERA DE LAS AREAS DE LOS TRABAJOS PARA ASEGURAR LOS ALINEAMIENTOS Y NIVELES. INCLUYE: LOS MATERIALES, MANO DE OBRA, HERRAMIENTA Y EQUIPO NECESARIO.","M2",{"$f":"E288+E289+E290+E291+E292+E294","v":1296}]
[null,"A.IX.2","CORTE DE TERRENO POR MEDIOS MECANICOS. INCLUYE: ACARREOS DENTRO DE LA OBRA Y FUERA DE LA OBRA AL TIRADERO MUNICIPAL O DONDE SUPERVICION AUTORISE, MANO DE OBRA, HERRAMIENTA Y EQUIPO NECESARIO. ","M3",{"$f":"E282*0.4","v":518.4}]
[null,"A.IX.3","RELLENO COMPACTADO CON EQUIPO MECANICO MANUAL EN CAPAS DE 20 CM. EN CEPA, CON MATERIAL SELECCIONADO PRODUCTO DE BANCO, COMPACTADO AL 90% PROCTOR. INCLUYE: CRIBADO DEL MATERIAL, ACARREOS DENTRO DE LA OBRA, INCORPORACION DE HUMEDAD, MANO DE OBRA, HERRAMIENTA Y EQUIPO NECESARIO. ","M3",{"$f":"E282*0.2","v":259.2}]
[null,"A.IX.4","TRATAMIENTO DE LA SUBRASANTE, INCLUYE: ESCARIFICADO, APERTURA DE CAJA, PAPEO DEL MATERIAL MAYOR A 3\" MANUAL, FORMACION DE LA CAPA SUBRASANTE, INCORPORACION DE HUMEDAD OPTIMA, TENDIDO, AFINE Y COMPACTACION AL 95% DE SU PVSM, CON UN ESPESOR DE 10CM, CARGA Y ACARREOS, INCLUYE LA MANO DE OBRA Y EQUIPO NECESARIO. (P.U.O.T.)","M3",{"$f":"E282*0.2","v":259.2}]
[null,"A.IX.5","CONSTRUCCION  DE  BASE  HIDRAULICA  CON  MATERIAL PETREO A TAMAÑO MAXIMO DE 1 1/2\", PARCIALMENTE TRITURADO PROVENIENTE DE BANCO. INCLUYE: ACARREOS, INCORPORACION DE HUMEDAD, HOMOGENIZACION, TENDIDO, AFINE Y COMPACTACION AL 100% DE SU PVSM, ESPESOR DE 15 CM. COMPACTOS, LIMPIEZA PREVIA DEL AREA, MANO DE OBRA, MATERIALES, HERRAMIENTA, EQUIPO NECESARIO.","M3",{"$f":"E282*0.2","v":259.2}]
[null,"A.IX.6","RIEGO DE IMPREGNACION CON ASFALTO FM-1 Y/O FR-3 REBAJADO AL 8% EN VOLUMEN CON DIESEL, EN PROPORCIÓN DE 1.5 LTS/M² (NO SE ACEPTARA EL USO DE EMULSIONES). INCLUYE: LIMPIEZA PREVIA DE LA SUPERFICIE (RETIRO FUERA DE LA OBRA DE LOS MATERIALES PRODUCTO DE LA MISMA), CARGA, CALENTADO, FLETE, ACARREOS Y APLICACIÓN DEL ASFALTO, EN CASO DE SER NECESARIO SE REALIZARA UN ARENEO EN LAS ZONAS DONDE NO PENETRE LA IMPREGNACIÓN, EN UN TIEMPO NO MENOR DE 24 HRS., DESPUÉS DEL RIEGO, LOS MATERIALES, MANO DE OBRA, HERRAMIENTA, EQUIPO NECESARIO. . P.U.O.T..\nNOTA: AL EFECTUAR ESTE CONCEPTO, DEBERA CUIDARSE NO MANCHAR LAS GUARNICIONES Y BANQUETAS, EN CUYO CASO SE TENDRAN QUE LIMPIAR SEGUN INDICACIONES DE LA SUPERVISION DE OBRA","M2",{"$f":"E282","v":1296}]
[null,"A.IX.7","CONSTRUCCIÓN DE PAVIMENTO EN ARROYO VIAL A BASE DE CONCRETO DE 18 CM. DE ESPESOR CON CONCRETO HIDRÁULICO MR-42, T.M.A. 1 1/2\",  CON COLOR INTEGRAL EN GRIS PLATA, ACABADO FINAL EN  ESTAMPADO CON MOLDE MODELO ASHLAR NEW ENGLAND SLATE AS100  DE 24\"X24\", MARCA PROLINE O SIMILAR EN CALIDAD. INCLUYE: DESMOLDANTE EN COLOR GRIS, APLICACION DE SISTEMA SELLADOR DE SUPERFICIES A BASE DE PRIMER NEARSEAL10 Y SELLADOR DE POLIURETANO DURAFLOOR 750 A DOS MANOS, PASAJUNTAS LONGITUDINALES DE VARILLA CORRUGADA DE 1/2\" X 70 CM @ 75 CM. DE SEPARACIÓN A CENTROS, PASAJUNTAS TRANSVERSALES DE VARILLA LISA DE 3/4\" X 46 CM @ 30 CM. DE SEPARACIÓN, CANASTILLA METALICA, JUNTAS FRÍAS CON APLICACIÓN DE SELLADOR AUTONIVELANTE PARA SELLAR EL CORTE Y CINTILLA DE POLIURETANO (BACKER-ROD), VIGILANCIA Y CUIDADO DE CONCRETO POR 24 HORAS DESPUÉS DEL COLADO, MANO DE OBRA, EQUIPO, HERRAMIENTA, AFINE, CIMBRA, DESCIMBRADO, VIDRADO, RODILLO VIBRATORIO, CORTE CON DISCO Y MATERIALES. (P.U.O.T.)","M2",640]
[null,"A.IX.8","CONSTRUCCIÓN DE PAVIMENTO EN ARROYO VIAL A BASE DE CONCRETO DE 18 CM. DE ESPESOR CON CONCRETO HIDRÁULICO MR-42, T.M.A. 1 1/2\",  CON COLOR INTEGRAL EN MANDARINA, ACABADO FINAL EN  ESTAMPADO EN MOLDE SQUARE TILE GRANITE SETS 4X4\"  ST 400 DE 32X32\", MARCA PROLINE O SIMILAR EN CALIDAD. INCLUYE: DESMOLDANTE EN COLOR GRIS,APLICACION DE SISTEMA SELLADOR DE SUPERFICIES A BASE DE PRIMER NEARSEAL10 Y SELLADOR DE POLIURETANO DURAFLOOR 750 A DOS MANOS, PASAJUNTAS LONGITUDINALES DE VARILLA CORRUGADA DE 1/2\" X 70 CM @ 75 CM. DE SEPARACIÓN A CENTROS, PASAJUNTAS TRANSVERSALES DE VARILLA LISA DE 3/4\" X 46 CM @ 30 CM. DE SEPARACIÓN, CANASTILLA METALICA, JUNTAS FRÍAS CON APLICACIÓN DE SELLADOR AUTONIVELANTE PARA SELLAR EL CORTE Y CINTILLA DE POLIURETANO (BACKER-ROD), VIGILANCIA Y CUIDADO DE CONCRETO POR 24 HORAS DESPUÉS DEL COLADO, MANO DE OBRA, EQUIPO, HERRAMIENTA, AFINE, CIMBRA, DESCIMBRADO, VIDRADO, RODILLO VIBRATORIO, CORTE CON DISCO Y MATERIALES. (P.U.O.T.)","M2",225]
[null,"A.IX.9","CONSTRUCCIÓN DE PAVIMENTO EN ARROYO VIAL A BASE DE CONCRETO DE 18 CM. DE ESPESOR CON CONCRETO HIDRÁULICO MR-42, T.M.A. 1 1/2\",  CON COLOR INTEGRAL EN MANDARINA, ACABADO FINAL PULIDO DE 1.20 M DE ANCHO. INCLUYE:  APLICACION DE SISTEMA SELLADOR DE SUPERFICIES A BASE DE PRIMER NEARSEAL10 Y SELLADOR DE POLIURETANO DURAFLOOR 750 A DOS MANOS,, PASAJUNTAS LONGITUDINALES DE VARILLA CORRUGADA DE 1/2\" X 70 CM @ 75 CM. DE SEPARACIÓN A CENTROS, PASAJUNTAS TRANSVERSALES DE VARILLA LISA DE 5/8\" X 46 CM @ 30 CM. DE SEPARACIÓN, CANASTILLA METALICA, JUNTAS FRÍAS CON APLICACIÓN DE SELLADOR AUTONIVELANTE PARA SELLAR EL CORTE Y CINTILLA DE POLIURETANO (BACKER-ROD), CURADO CON PRODUCTO LÍQUIDO BASE AGUA Y PARAFINA DE PIGMENTACIÓN BLANCA CON APLICACIÓN CON ASPERSIÓN DURANTE 72 HORAS, VIGILANCIA Y CUIDADO DE CONCRETO POR 24 HORAS DESPUÉS DEL COLADO, MANO DE OBRA, EQUIPO, HERRAMIENTA, AFINE, CIMBRA, DESCIMBRADO, VIDRADO, CORTE CON DISCO Y MATERIALES. (P.U.O.T.)","M2",80]
[null,"A.IX.10","CONSTRUCCIÓN DE PAVIMENTO EN ARROYO VIAL A BASE DE CONCRETO DE 18 CM. DE ESPESOR CON CONCRETO HIDRÁULICO MR-42, T.M.A. 1 1/2\",  CON COLOR APARENTE, ACABADO FINAL PULIDO DE 1.20 M DE ANCHO. INCLUYE:  APLICACION DE SISTEMA SELLADOR DE SUPERFICIES A BASE DE PRIMER NEARSEAL10 Y SELLADOR DE POLIURETANO DURAFLOOR 750 A DOS MANOS, PASAJUNTAS LONGITUDINALES DE VARILLA CORRUGADA DE 1/2\" X 70 CM @ 75 CM. DE SEPARACIÓN A CENTROS, PASAJUNTAS TRANSVERSALES DE VARILLA LISA DE 3/4\" X 46 CM @ 30 CM. DE SEPARACIÓN, CANASTILLA METALICA, JUNTAS FRÍAS CON APLICACIÓN DE SELLADOR AUTONIVELANTE PARA SELLAR EL CORTE Y CINTILLA DE POLIURETANO (BACKER-ROD), VIGILANCIA Y CUIDADO DE CONCRETO POR 24 HORAS DESPUÉS DEL COLADO, MANO DE OBRA, EQUIPO, HERRAMIENTA, AFINE, CIMBRA, DESCIMBRADO, VIDRADO, RODILLO VIBRATORIO, CORTE CON DISCO Y MATERIALES. (P.U.O.T.)","M2",280]
[null,"A.IX.11","CONSTRUCCIÓN DE CENEFA EN ARROYO VIAL A BASE DE CONCRETO DE 18 CM. DE ESPESOR CON CONCRETO HIDRÁULICO MR-42, T.M.A. 1 1/2\",  CON COLOR INTEGRAL EN GRIS OSCURO, ACABADO FINAL PULIDO. INCLUYE:  APLICACION DE SISTEMA SELLADOR DE SUPERFICIES A BASE DE PRIMER NEARSEAL10 Y SELLADOR DE POLIURETANO DURAFLOOR 750 A DOS MANOS, PASAJUNTAS LONGITUDINALES DE VARILLA CORRUGADA DE 1/2\" X 70 CM @ 75 CM. DE SEPARACIÓN A CENTROS, PASAJUNTAS TRANSVERSALES DE VARILLA LISA DE 3/4\" X 46 CM @ 30 CM. DE SEPARACIÓN, CANASTILLA METALICA, JUNTAS FRÍAS CON APLICACIÓN DE SELLADOR AUTONIVELANTE PARA SELLAR EL CORTE Y CINTILLA DE POLIURETANO (BACKER-ROD), VIGILANCIA Y CUIDADO DE CONCRETO POR 24 HORAS DESPUÉS DEL COLADO, MANO DE OBRA, EQUIPO, HERRAMIENTA, AFINE, CIMBRA, DESCIMBRADO, VIDRADO, RODILLO VIBRATORIO, CORTE CON DISCO Y MATERIALES. (P.U.O.T.)","ML",31]
[null,"A.IX.12","SUMINISTRO Y COLOCACION DE GUÍA TACTIL PREFABRICADA COLOR GRIS A BASE DE CONCRETO POLIMERICO, EN LOSETAS DE 30X30CM,  BAJO RELIEVE EN BANQUETAS DE 30 CM DE ANCHO CON ENTRECALLES DE 3 CM DE ANCHO Y BAJO RELIEVE DE  2 CM,COLOCADA Y ASENTADA SOBRE CONCRETO MEDIANTE ADHESIVO EPOXICO, INCLUYE: COLOCACION DE ESCANTILLON METÁLICO PARA PREPARACION DE SUPERFICIE, EQUIPO TOPOGRAFICO PARA EL TRAZO SEGUN DISEÑO, CIMBRADO CON CIMBRA METÁLICA MACHIMBRADA (NO SE ACEPTARÁ CIMBRA DE MADERA), EQUIPO, HERRAMIENTA, CONSUMIBLES,  MANO DE OBRA, Y TODO LO NECESARIO PARA LA CORRECTA EJECUCIÓN DE LOS TRABAJOS.  (P.U.O.T.)\n","ML",100]
[null,"A.IX.13","CONSTRUCCIÓN DE ROSETON  EN ARROYO VIAL A BASE DE CONCRETO DE 18 CM. DE ESPESOR CON CONCRETO HIDRÁULICO MR-42, T.M.A. 1 1/2\",  CON COLOR INTEGRAL COLORES VARIOS SEGUN DISEÑO, ACABADO FINAL PULIDO. INCLUYE:  APLICACION DE SISTEMA SELLADOR DE SUPERFICIES A BASE DE PRIMER NEARSEAL10 Y SELLADOR DE POLIURETANO DURAFLOOR 750 A DOS MANOS, PASAJUNTAS LONGITUDINALES DE VARILLA CORRUGADA DE 1/2\" X 70 CM @ 75 CM. DE SEPARACIÓN A CENTROS, PASAJUNTAS TRANSVERSALES DE VARILLA LISA DE 3/4\" X 46 CM @ 30 CM. DE SEPARACIÓN, CANASTILLA METALICA, JUNTAS FRÍAS CON APLICACIÓN DE SELLADOR AUTONIVELANTE PARA SELLAR EL CORTE Y CINTILLA DE POLIURETANO (BACKER-ROD), VIGILANCIA Y CUIDADO DE CONCRETO POR 24 HORAS DESPUÉS DEL COLADO, MANO DE OBRA, EQUIPO, HERRAMIENTA, AFINE, CIMBRA, DESCIMBRADO, VIDRADO, RODILLO VIBRATORIO, CORTE CON DISCO Y MATERIALES. (P.U.O.T.)","M2",40]
[null,"A.IX.14","SUMINISTRO Y COLOCACIÓN DE JUNTA DE DILATACIÓN ENTRE EL CONCRETO VIEJO Y EL CONCRETO NUEVO, PARA EVITAR LAS FALLAS POR DILATACIÓN Y CONTRACCIÓN A BASE DE CARTÓN ASFALTADO DE 1/2\" DE ESPESOR Y 15 CM DE ALTURA EN EL PERÍMETRO TOTAL, INCLUYE: LA FIJACIÓN CON CLAVO DE ACERO, CORTE DEL CARTÓN, DESPERDICIOS, ALINEACIÓN Y CUIDADO DURANTE EL COLADO, MATERIALES, MANO DE OBRA Y HERRAMIENTA","ML.",50]
[null,"A.IX.15","ESCANTILLON  DE SECCIÓN 18X23X73 CM. A BASE DE CONCRETO MR-42, T.M.A. DE 1 1/2\" CON VARILLA DE AMARRE CORRUGADA DE 1/2\", CON CABEZALEN ACABADO PULIDO. INCLUYE: RENIVELACIÓN DE ASFALTO, CONFINAMIENTO CON MATERIAL DE LA EXCAVACION, COMPACTACIÓN, RELLENO, MATERIALES, CIMBRA, VIBRADO, MANO DE OBRA, CORTE CON DISCO, HERRAMIENTA, DESCIMBRADO, CURADO CONSTANTE CON CON AGUA DURANTE LOS PRIMEROS SIETE DIAS DESPUES DEL COLADO Y LIMPIEZA. (P.U.O.T.)","ML",50]
[null,null,"SUB TOTAL DE VIALIDADES"]
[null,"A.X."," ALBAÑILERIA"]
[null,"A.X.1","FABRICACIÓN Y FORJADO DE BANCA DE SECCIONES IRREGULARES  (DTBAN-01-02-03-04) DE ANCHO VARIABLE Y UNA ALTURA DE 45 CMS   A BASE DE MURO DE BLOCK DE 20x20x40 CM., ARMADO CON CASTILLOS AHOGADOS CON VARILLA DEL #3 @ 80 CM. CELDA RELLENA CON CONCRETO F'C=150 KG/CM2 Y LOSA DE CONCRETO F'C=200 KG/CM2 DE 10 CMS DE ESPESOR ARMADA CON MALLA 6-6/10-10, CON ACABADO FINAL EN PULIDO CON SELLADOR ACRÍLICO, CADENA DE DESPLANTE FRENTE A PISO DE 55X20 CMS ARMADA CON 6 VAR. DE #3 @ 20CMS Y CADENA DE DESPLANTE EN JARDINERIA DE 20X20CMS ARMADA CON 4 VARILLAS DEL NO.3 Y ESTRIBOS DEL NO.2 @20 CMS , LOS CONCRETO SERAN DE  F'C=200 KG/CM2, PLANTILLA DE 5 CM DE ESPESOR CONCRETO F'C=100 KG/CM2. INCLUYE: SECCIÓN BAJO RELIEVE EN CADENA DE DESPLANTE DE PISO DE 5X10 CMS PARA COLOCACIÓN DE TIRA LED,  COLOCACION DE MURO DE BLOCK EN LADO DE JARDINERIA,  IMPERMEABILIZANTE EN CIMENTACIÓN, JUNTA CONSTRUCTIVA ENTRE MURO DE BLOCK Y LOSA, TRAZO DE LOS TRABAJOS, EXCAVACIÓN, CIMBRA, DESCIMBRADO, HABILITADO DE ARMADO, APLICACIÓN DE DOS MANOS DE PINTURA ANTICORROSIVA AMERCOAT EN EL ACERO DE REFUERZO, T.M.A 1/2\", AFINE, MANO DE OBRA, HERRAMIENTA, TRAZO, NIVELACIÓN, EXCAVACIÓN, RELLENO, COMPACTACIÓN AL 90% PROCTOR, MATERIALES, EQUIPO Y HERRAMIENTA. (P.U.O.T.)","M2",60]
[null,"A.X.2"," FABRICACIÓN Y FORJADO DE BANCA CON FORMA DE CRUZ (DTBAN-05) DE 50 CMS DE ANCHO Y UNA ALTURA DE 45 CMS   A BASE DE MURO DE BLOCK DE 20x20x40 CM. , ARMADO CON 4 CASTILLOS DE 20X50 CMS  CON 6 VARILLAS DEL NO. 3 Y ESTRIBOS DEL NO.2 @ 20 CMS, CON CASTILLOS AHOGADOS CON VARILLA DEL #3 @ 80 CM. CELDA RELLENA CON CONCRETO F'C=150 KG/CM2 Y LOSA DE CONCRETO F'C=200 KG/CM2 DE 10 CMS DE ESPESOR ARMADA CON MALLA 6-6/10-10, CON ACABADO FINAL EN PULIDO CON SELLADOR ACRÍLICO, CADENA DE DESPLANTE DE 20X55 CMS ARMADA CON 6 VAR. DE #3 @ 20CMS, CONCRETO F'C=200 KG/CM2, PLANTILLA DE 5 CM DE ESPESOR CONCRETO F'C=100 KG/CM2. INCLUYE: SECCIÓN BAJO RELIEVE EN CADENA DE DESPLANTE DE 5X10 CMS PARA COLOCACIÓN DE TIRA LED, IMPERMEABILIZANTE EN CIMENTACIÓN, JUNTA CONSTRUCTIVA ENTRE MURO DE BLOCK Y LOSA, TRAZO DE LOS TRABAJOS, EXCAVACIÓN, CIMBRA, DESCIMBRADO, HABILITADO DE ARMADO, APLICACIÓN DE DOS MANOS DE PINTURA ANTICORROSIVA AMERCOAT EN EL ACERO DE REFUERZO, T.M.A 1/2\", AFINE, MANO DE OBRA, HERRAMIENTA, TRAZO, NIVELACIÓN, EXCAVACIÓN, RELLENO, COMPACTACIÓN AL 90% PROCTOR, MATERIALES, EQUIPO Y HERRAMIENTA. (P.U.O.T.)","ML",22]
[null,"A.X.3"," FABRICACIÓN Y FORJADO DE BANCA CON RAMPA (DTBAN-06 Y DTBAN-07) DE 40 CMS DE ANCHO Y UNA ALTURA DE 45 CMS   A BASE DE MURO DOBLE DE BLOCK DE 20x20x40 CM., ARMADO CON 4 CASTILLOS DE 20X40 CMS  CON 4 VARILLAS DEL NO. 3 Y ESTRIBOS DEL NO.2 @ 20 CMS, CON CASTILLOS AHOGADOS CON VARILLA DEL #3 @ 80 CM. CELDA RELLENA CON CONCRETO F'C=150 KG/CM2 Y LOSA DE CONCRETO F'C=200 KG/CM2 DE 10 CMS DE ESPESOR ARMADA CON MALLA 6-6/10-10, CON ACABADO FINAL EN PULIDO CON SELLADOR ACRÍLICO, CADENA DE DESPLANTE EN L DE 55X40X20 CMS ARMADA CON 6 VAR. DE #3 @ 20CMS, CONCRETO F'C=200 KG/CM2, PLANTILLA DE 5 CM DE ESPESOR CONCRETO F'C=100 KG/CM2. INCLUYE: SECCIÓN BAJO RELIEVE EN CADENA DE DESPLANTE DE 5X10 CMS PARA COLOCACIÓN DE TIRA LED, IMPERMEABILIZANTE EN CIMENTACIÓN, JUNTA CONSTRUCTIVA ENTRE MURO DE BLOCK Y LOSA, TRAZO DE LOS TRABAJOS, EXCAVACIÓN, CIMBRA, DESCIMBRADO, HABILITADO DE ARMADO, APLICACIÓN DE DOS MANOS DE PINTURA ANTICORROSIVA AMERCOAT EN EL ACERO DE REFUERZO, T.M.A 1/2\", AFINE, MANO DE OBRA, HERRAMIENTA, TRAZO, NIVELACIÓN, EXCAVACIÓN, RELLENO, COMPACTACIÓN AL 90% PROCTOR, MATERIALES, EQUIPO Y HERRAMIENTA. (P.U.O.T.)","ML",26]
[null,"A.X.4"," FABRICACIÓN Y FORJADO DE BANCA CIRCULAR (DTBAN-08) DE 50 CMS DE ANCHO Y UNA ALTURA DE 45 CMS   A BASE DE MURO DE BLOCK DE 20x20x40 CM., ARMADO CON 4 CASTILLOS DE 20X40 CMS  CON 4 VARILLAS DEL NO. 3 Y ESTRIBOS DEL NO.2 @ 20 CMS, CON CASTILLOS AHOGADOS CON VARILLA DEL #3 @ 80 CM. CELDA RELLENA CON CONCRETO F'C=150 KG/CM2 Y LOSA DE CONCRETO F'C=200 KG/CM2 DE 10 CMS DE ESPESOR ARMADA CON MALLA 6-6/10-10, CON ACABADO FINAL EN PULIDO CON SELLADOR ACRÍLICO, CADENA DE DESPLANTE FRENTE A PISO DE 55X20 CMS ARMADA CON 6 VAR. DE #3 @ 20CMS Y CADENA DE DESPLANTE EN JARDINERIA DE 20X20CMS ARMADA CON 4 VARILLAS DEL NO.3 Y ESTRIBOS DEL NO.2 @20 CMS , LOS CONCRETO SERAN DE  F'C=200 KG/CM2, PLANTILLA DE 5 CM DE ESPESOR CONCRETO F'C=100 KG/CM2. INCLUYE: SECCIÓN BAJO RELIEVE EN CADENA DE DESPLANTE DE PISO DE 5X10 CMS PARA COLOCACIÓN DE TIRA LED,  COLOCACION DE MURO DE BLOCK EN LADO DE JARDINERIA,  IMPERMEABILIZANTE EN CIMENTACIÓN, JUNTA CONSTRUCTIVA ENTRE MURO DE BLOCK Y LOSA, TRAZO DE LOS TRABAJOS, EXCAVACIÓN, CIMBRA, DESCIMBRADO, HABILITADO DE ARMADO, APLICACIÓN DE DOS MANOS DE PINTURA ANTICORROSIVA AMERCOAT EN EL ACERO DE REFUERZO, T.M.A 1/2\", AFINE, MANO DE OBRA, HERRAMIENTA, TRAZO, NIVELACIÓN, EXCAVACIÓN, RELLENO, COMPACTACIÓN AL 90% PROCTOR, MATERIALES, EQUIPO Y HERRAMIENTA. (P.U.O.T.)","ML",11]
[null,"A.X.5","FABRICACIÓN Y FORJADO DE BANCA DE SECCIONES IRREGULARES  (DTBAN-09) DE ANCHO VARIABLE Y UNA ALTURA DE 54 CMS   A BASE DE MURO DE BLOCK DE 20x20x40 CM., ARMADO CON CASTILLOS AHOGADOS CON VARILLA DEL #3 @ 80 CM. CELDA RELLENA CON CONCRETO F'C=150 KG/CM2 Y LOSA DE CONCRETO F'C=200 KG/CM2 DE 10 CMS DE ESPESOR ARMADA CON MALLA 6-6/10-10, CON ACABADO FINAL EN PULIDO CON SELLADOR ACRÍLICO,CADENA DE DESPLANTE ARMADA CON 4 VARILLAS DEL NO.3 Y ESTRIBOS DEL NO.2 @20 CMS , LOS CONCRETO SERAN DE  F'C=200 KG/CM2, PLANTILLA DE 5 CM DE ESPESOR CONCRETO F'C=100 KG/CM2. INCLUYE: SECCIÓN BAJO RELIEVE EN CADENA DE DESPLANTE DE PISO DE 5X10 CMS PARA COLOCACIÓN DE TIRA LED,  IMPERMEABILIZANTE EN CIMENTACIÓN, JUNTA CONSTRUCTIVA ENTRE MURO DE BLOCK Y LOSA, TRAZO DE LOS TRABAJOS, EXCAVACIÓN, CIMBRA, DESCIMBRADO, HABILITADO DE ARMADO, APLICACIÓN DE DOS MANOS DE PINTURA ANTICORROSIVA AMERCOAT EN EL ACERO DE REFUERZO, T.M.A 1/2\", AFINE, MANO DE OBRA, HERRAMIENTA, TRAZO, NIVELACIÓN, EXCAVACIÓN, RELLENO, COMPACTACIÓN AL 90% PROCTOR, MATERIALES, EQUIPO Y HERRAMIENTA. (P.U.O.T.)","M2",9]
[null,"A.X.6","BOLARDO (BO-01) TIPO GRAPA  DE 130x50x135 cm. A BASE DE BLOCK DE 15X20X40 CMS JUNTEADO CON MORTERO CEMENTO ARENA REFORZADO CON  4 CASTLLOS DE 30X15 ARMADOS CON 4 VAR. DEL NO.3 Y ESTRIBOS DEL NO.2 @ 20 CMS, ACABADO PULIDO FINO , TERMINADO CON SELLADOR. INCLUYE: CADENA DE DESPLANTE DE 30X20 CMS ARMADA CON 4 VAR. NO.3  ESTRIBOS DEL NO.2  A  CADA 15 CMS F´C=250 KG/CM2 , CADENAS DE REMATE DE 30X15 CMS ARMADA CON 4 VAR. NO.3  ESTRIBOS DEL NO.2  A  CADA 20 CMS F´C=250 KG/CM2,DOBLE LOSA DE CONCRETO DE 7 CMS DE ESPESOR ARMADA CON MALLA-LAC 6-6/10-10 DE CONCRETO F´C=200KG/CM2,  TRAZO DE LOS TRABAJOS, EXCAVACIÓN, CIMBRA, DESCIMBRADO, HABILITADO DE ARMADO, APLICACIÓN DE DOS MANOS DE PINTURA ANTICORROSIVA AMERCOAT EN EL ACERO DE REFUERZO,  T.M.A 1/2\", AFINE, MANO DE OBRA, HERRAMIENTA, TRAZO, NIVELACIÓN, EXCAVACIÓN, RELLENO, COMPACTACIÓN AL 90% PROCTOR, MATERIALES, EQUIPO Y HERRAMIENTA. (P.U.O.T.)","PZA",4]
[null,"A.X.7","BOLARDO (BO-02) TIPO GRAPA DE 70x50x80 cm. A BASE DE CONCRETO F´C=250KG/CM2, ARMADO CON  VAR #3  @ 15 CMS EN AMBOS SENTIDOS. COLADO CON CIMBRA METALICA,ACABADO PULIDO FINO , TERMINADO CON SELLADOR. INCLUYE: CADENA DE DESPLANTE DE 70X30 CMS ARMADA CON 6 VAR. NO.3  ESTRIBOS DEL NO.2  A  CADA 20 CMS F´C=250 KG/CM2 , HOUSING EMBEBIDO EN LOSA DE CONCRETO DE 12.5X10.05 CM, TUBERIA CONDUIT DE 1/2\"Ø, OCULTA EN MURO,PARA ILUMINACIÓN. TRAZO DE LOS TRABAJOS, EXCAVACIÓN, CIMBRA, DESCIMBRADO, HABILITADO DE ARMADO, APLICACIÓN DE DOS MANOS DE PINTURA ANTICORROSIVA AMERCOAT EN EL ACERO DE REFUERZO,  T.M.A 1/2\", AFINE, MANO DE OBRA, HERRAMIENTA, TRAZO, NIVELACIÓN, EXCAVACIÓN, RELLENO, COMPACTACIÓN AL 90% PROCTOR, MATERIALES, EQUIPO Y HERRAMIENTA. (P.U.O.T.)","PZA",11]
[null,"A.X.8","BOLARDO (BO-03) DE 50x80x80 cm. A BASE DE BLOCK DE 20X20X40 CMS JUNTEADO CON MORTERO CEMENTO ARENA, CON 4 CASTILLOS AHOGADO CELDA RELLENA F´C=100 KG/CM2 CON VARILLA VAR #3,  LOSA DE CONCRETO F´C=200 KG/CM2 DE 10 CM DE ESPESOR ARMADA MALLA-LAC 6-6/10-10. ACABADO PULIDO FINO , TERMINADO CON SELLADOR. INCLUYE: CADENA DE DESPLANTE DE 20 X 50cm. ARMADA CON VAR. 6 VAR. # 3  Y EST. #2 @20cm. CONCRETO F'C= 250 KG/CM2. TRAZO DE LOS TRABAJOS, EXCAVACIÓN, CIMBRA, DESCIMBRADO, HABILITADO DE ARMADO, APLICACIÓN DE DOS MANOS DE PINTURA ANTICORROSIVA AMERCOAT EN EL ACERO DE REFUERZO,  T.M.A 1/2\", AFINE, MANO DE OBRA, HERRAMIENTA, TRAZO, NIVELACIÓN, EXCAVACIÓN, RELLENO, COMPACTACIÓN AL 90% PROCTOR, MATERIALES, EQUIPO Y HERRAMIENTA. (P.U.O.T.)","PZA",4]
[null,"A.X.9","         SUMINISTRO Y COLOCACIÓN DE PLASTICO NEGRO DE POLIETILENO DE CALIBRE 500,  PARA PROTECCIÓN  DE ACERO Y CONCRETOS EN CIMENTACION Y FIRMES ,  INCLUYE: CORTES Y TRASLAPES, MATERIAL, MANO DE OBRA, EQUIPO, HERRAMIENTA MENOR, LIMPIEZA Y TODO LO NECESARIO PARA LA CORRECTA EJECUCION DE LOS TRABAJOS.","M2",50]
[null,"A.X.10","         SUMINISTRO Y COLOCACION DE PLANTILLA DE CONCRETO F`C= 100 KG/CM2,  ESPESOR DE 5 CMS, INCLUYE: COLOCACION EN ZAPATAS, MATERIAL, MANO DE OBRA, EQUIPO, HERRAMIENTA MENOR, LIMPIEZA Y TODO LO NECESARIO PARA LA CORRECTA EJECUCION DE LOS TRABAJOS.","M2",50]
[null,"A.X.11","         CONSTRUCCIÓN DE ZAPATA CORRIDA (ZC-01) DE 80x15 CM. DE PERALTE, ARMADA CON VARILLAS DEL # 3 @ 20 CMS EN AMBOS SENTIDO CON  CONCRETO F'C= 250KG/CM2, CON  CONTRATRABE  EMBEBIDA  EN ZAPATA DE  20x40cm,  6 VARILLA DEL #4 EST. #2 @15cm.  F'C= 250KG/CM2,  INCLUYE:    IMPERMEABILIZANTE INTEGRAL TIPO FESTERGRAL A RAZON DE 2KG/SACO DE 50Kg. , HABILITADO DE ARMADO CON APLICACIÓN DE DOS MANOS DE PINTURA ANTICORROSIVA ALKIDALICA EN EL ACERO DE REFUERZO,  T.M.A 3/4\", GANCHOS, TRASLAPES, AMARRES, DESPERDICIOS, ACARREOS,  CONFINAMIENTO CON MATERIAL PRODUCTO DE LA EXCAVACIÓN ,  COMPACTADO, MANO DE OBRA, CIMBRADO, COLADO, VIBRADO, DESCIMBRADO, HERRAMIENTA Y EQUIPO, LIMPIEZA Y RETIRO FUERA DE LA OBRA DEL MATERIAL NO RECUPERABLE. (P.U.O.T)","ML",50]
[null,"A.X.12","CONSTRUCCIÓN DE CADENA DE DESPLANTE CD1, SECCION DE 15X20 CMS, ARMADA CON 4 VAR. #3  EST. #2 @ 20cm. CONCRETO F´C=200 KG/CM2. INCLUYE: IMPERMEABILIZANTE INTEGRAL TIPO FESTERGRAL A RAZON DE 2KG/SACO DE 50Kg.  EXCAVACIÓN,  CIMBRA, DESCIMBRADO, HABILITADO DE ARMADO CON APLICACIÓN DE DOS MANOS DE PINTURA ANTICORROSIVA ALKIDALICA EN EL ACERO DE REFUERZO, GANCHOS, TRASLAPES, AMARRES, DESPERDICIOS, MANO DE OBRA, HERRAMIENTA Y EQUIPO, LIMPIEZA Y RETIRO FUERA DE LA OBRA DEL MATERIAL NO RECUPERABLE. (P.U.O.T)","ML",100]
[null,"A.X.13","CONSTRUCCIÓN DE MURETE DE BLOCK DE UNA ALTURA VARIABLE DE 40.00 A 60.00 CMS DE ALTURA A BASE  DE 15X20X40 CMS JUNTEADO CON  JUNTEADO CON MORTERO CEMENTO  - ARENA PROPORCION 1:4 JUNTA DE 1.5 CMS DE ESP, CON  CADENA DE DESPLANTE DE  SECCION DE 15X20 CMS, ARMADA CON 4 VAR. #3  EST. #2 @ 20cm. CONCRETO F´C=200 KG/CM2. INCLUYE:   REPELLADO Y  ACABADO PULIDO Y DOS MANOS DE PINTURA EN CARA VISIBLE,  IMPERMEABILIZANTE INTEGRAL TIPO FESTERGRAL, EXCAVACIÓN,  CIMBRA, DESCIMBRADO, HABILITADO DE ARMADO CON APLICACIÓN DE DOS MANOS DE PINTURA ANTICORROSIVA ALKIDALICA EN EL ACERO DE REFUERZO, GANCHOS, TRASLAPES, AMARRES, DESPERDICIOS, MANO DE OBRA, HERRAMIENTA Y EQUIPO, LIMPIEZA Y RETIRO FUERA DE LA OBRA DEL MATERIAL NO RECUPERABLE. (P.U.O.T)","ML",40]
[null,"A.X.14","FABRICACION DE MURO DE BLOCK DOBLE  15X20X40cm, JUNTEADO CON MORTERO CEMENTO  - ARENA PROPORCION 1:4 JUNTA DE 1.5 CMS DE ESP. INCLUYE: CASTILLO AHOGADO A CADA 80 CMS CON VARILLA DEL NO.3 Y CONCRETO F´C=10 KG/CM2, REPELLADO, FLOTEADO FINO Y DOS MANOS DE PINTURA,  NIVELADO Y PLOMEADO, CORTE CON DISCO, MATERIALES, MANO DE OBRA, EQUIPO, ANDAMIOS, ELEVACIONES, HERRAMIENTA MENOR, LIMPEZA Y TODO LO NECESARIO PARA LA CORRECTA EJECUCION DE LOS TRABAJOS.","M2",60]
[null,"A.X.15","IMPERMEABILIZACIÓN A BASE DE DOS  CAPA DE VITUSOL EN PARED EXTERIOR DE CIMENTACIÓN,                 INCLUYE: APLICACIÓN, MATERIALES, ACARREOS, ELEVACIÓN, TRASLAPES, DESPERDICIO, MANO DE OBRA, EQUIPO Y HERRAMIENTA.","M2",125]
[null,"A.X.16","IMPERMEABILIZACIÓN A BASE DE DOS  CAPA DE VITUSOL EN PARED EXTERIOR DE MUROS EN CONTACTO CON TIERRA.   INCLUYE: APLICACIÓN, MATERIALES, ACARREOS, ELEVACIÓN, TRASLAPES, DESPERDICIO, MANO DE OBRA, EQUIPO Y HERRAMIENTA.","M2",50]
[null,"A.X.17","FILTRO DE GRAVA DE 15 CM. ESPESOR  DE 3/4\",  INCLUYE: ACARREOS DENTRO DE LA OBRA, INCORPORACION DE HUMEDAD, MANO DE OBRA, HERRAMIENTA Y EQUIPO NECESARIO. ","M3",10]
[null,"A.X.18","SUMINISTRO Y APLICACIÓN DE PINTURA VINÍLICA EN MUROS EXTERIORES  MARCA OSEL, CALIDAD  O SIMILAR, INCLUYE: LIMPIEZA Y PREPARACIÓN DE LA SUPERFICIE,  MATERIAL, HERRAMIENTA Y MANO DE OBRA.","M2",200]
[null,"A.X.19","REPARACION DE MURO DE PIEDRA EXISTENTE Y APLICACIÓN DE SELLADOR ACABADO BRILLOSO. INCLUYE: LIMPIEZA Y PREPARACIÓN DE LA SUPERFICIE,  MATERIAL, HERRAMIENTA Y MANO DE OBRA.","M2",30]
[null,"A.X.20","REPARACIONES MENORES EN MUROS EXTERIORES DE FACHADAS   INCLUYE: LIMPIEZA Y PREPARACIÓN DE LA SUPERFICIE,  MATERIAL, HERRAMIENTA Y MANO DE OBRA.","M2",200]
[null,null,"SUB TOTAL DE ALBAÑILERIA"]
[null,"A.XI.","TEMPLETE"]
[null,"A.XI.1","FABRICACIÓN DE BANQUETAS DE CONCRETO PREMEZCLADO DE 10 CM. DE ESPESOR CON UNA RESISTENCIA DE F'C=200 KG/CM2, CON ACABADO PULIDO, REFORZADA CON MALLA ELECTROSOLDADA 6-6/10-10  INCLUYE: SILLETA PLASTICA CALZADORA , DOS MANOS DE RECUBRIMIENTO ANTICORROSIVO AMERCOAT COLOR BLANCO PARA SU MEJOR IDENTIFICACION, ACABADO FINAL DESBASTADO CON AGREGADO EXPUESTO DE MANERA UNIFORME, TRAZO DE LOS TRABAJOS, T.M.A 1/2\", VIBRADO, EQUIPO TOPOGRÁFICO SEGÚN DISEÑO, CORTE DE LOSAS CON DISCO DE DIAMANTE AL 1/3 DEL ESPESOR DE LA LOSA,   APLICACIÓN DE ESPUMA DE POLIETILENO DE CELDA CERRADA CLOSED CELL BACKER ROD COMO RESPALDO Y JUNTEADOR BASE POLIURETANO, AUTONIVELANTE, DESBASTABLE, APLICACION DE SISTEMA SELLADOR DE SUPERFICIES A BASE DE PRIMER NEARSEAL10 Y SELLADOR DE POLIURETANO DURAFLOOR 750 A DOS MANOS,  SE UTILIZARÁ CIMBRA METALICA MACHIMBRADA (NO SE ACEPTARÁ CIMBRA DE MADERA), COLADO, VIBRADO, DESCIMBRADO, CURADO DURANTE LOS PRIMEROS 7 DÍAS DESPUÉS DEL COLADO, TENDIDO REGLEADO, EQUIPO, HERRAMIENTA, CONSUMIBLES,  MANO DE OBRA, VIGILANCIA Y CUIDADO DE CONCRETO POR 24 HORAS DESPUÉS DEL COLADO Y TODO LO NECESARIO PARA LA CORRECTA EJECUCIÓN DE LOS TRABAJOS. (P.U.O.T.) NOTA: EL LICITANTE DEBERA DE CONSIDERAR LAS PRUEBAS DE LABORATORIO RESPECTIVAS EFECTUADAS POR UN LABORATORIO EXTERNO AL MISMO Y PRESENTARSE AL MOMENTO DE REALIZAR EL TRAMITE PARA EL PAGO DE ESTIMACIONES.\n","M2",114]
[null,"A.XI.2","FABRICACIÓN DE ESCALERAS DE DIFERENTES SECCIONES SIN NARIZ PARA TEMPLETE CON PERALTES DE 18 CMS Y HUELLAS DE 60 CMS A 2.50 MTS, A BASE DE CONCRETO ARMADO DE F´C=200KG/CM2, CON LOSA DE 10 CMS DE ESPESOR ARMADO CON MALLA LAS 6-6/10-10 Y REFUERZOS CON GANCHOS DE VAR.#3 @ 20 CMS. POR ESCALON. ACABADO PULIDO,COLOR INTEGRAL AMARILLO INCLUYE: CONTRATRABE DESPLANTE ESCALERA DE 15 X 20 ARMADA CON 6 VAR. #3 ESTRIBOS # 2 @20CM. CONCRETO F'C=200KG/CM2,TRAZO DE LOS TRABAJOS, EXCAVACIÓN, CIMBRA, DESCIMBRADO, HABILITADO DE ARMADO, APLICACIÓN DE DOS MANOS DE PINTURA ANTICORROSIVA AMERCOAT EN EL ACERO DE REFUERZO,  T.M.A 1/2\", AFINE, MANO DE OBRA, HERRAMIENTA, TRAZO, NIVELACIÓN, EXCAVACIÓN, RELLENO, COMPACTACIÓN AL 90% PROCTOR, MATERIALES, EQUIPO Y HERRAMIENTA. (P.U.O.T.)\n\n","M2",96]
[null,"A.XI.3","CONSTRUCCION DE ZAPATA LINDERO ZC-01 DE 90X15CM DE PERALTE, ARMADA CON VAR. # 3 @ 20 Cm. AMBOS SENTIDOS,  CONTRATRABE DE 40X40CM, ARMADO 6 VAR. # 4 EST. #2 @ 15 Cm, CONCRETO f'c= 250 Kg/Cm², CON MURETE DE ENRASE DOBLE A BASE DE 3 HILADAS DE BLOCK DE 20 X 20 X 40 CM JUNTEADO CON MORTERO CEMENTO ARENA. INCLUYE: DALA DE DESPLANTE 15 X 40 CMS ARMADO CON 4 VARILLA #3 Y ESTRIBOS DEL #2 A CADA 20 CMS. CON CONCRETO F´C=200 KG/CM2. Y PLANTILLA DE CONCRETO F´C=150 KG/CM2, 5 CM DE ESPESOR. INCLUYE:  CIMBRA, DESCIMBRADO, HABILITADO DE ARMADO, APLICACIÓN DE DOS MANOS DE PINTURA ANTICORROSIVA AMERCOAT EN EL ACERO DE REFUERZO,  T.M.A 1/2\", AFINE, MANO DE OBRA,  TRAZO, NIVELACIÓN, EXCAVACIÓN, RELLENO, COMPACTACIÓN AL 90% PROCTOR, MATERIALES, EQUIPO Y HERRAMIENTA. (P.U.O.T.)\n\n","ML",20]
[null,"A.XI.4","FABRICACION DE MURO DE BLOCK   10X20X40cm, JUNTEADO CON MORTERO CEMENTO  - ARENA PROPORCION 1:4 JUNTA DE 1.5 CMS DE ESP. INCLUYE: REPELLADO, FLOTEADO FINO Y DOS MANOS DE PINTURA,  NIVELADO Y PLOMEADO, CORTE CON DISCO, MATERIALES, MANO DE OBRA, EQUIPO, ANDAMIOS, ELEVACIONES, HERRAMIENTA MENOR, LIMPEZA Y TODO LO NECESARIO PARA LA CORRECTA EJECUCION DE LOS TRABAJOS.","M2",76]
[null,"A.XI.5","FABRICACION DE MURO DE BLOCK  20X20X40cm, JUNTEADO CON MORTERO CEMENTO  - ARENA PROPORCION 1:4 JUNTA DE 1.5 CMS DE ESPESOR,LISTO PARA RECIBIR ENCHAPE DE CANTERA, PEGADA CON POLIMOR. INCLUYE: COLOCACIÓN DE CASTILLO AHOGADO CON VARILLA  3/8\" ,REPELLADO, FLOTEADO FINO Y DOS MANOS DE PINTURA,  NIVELADO Y PLOMEADO, CORTE CON DISCO, MATERIALES, MANO DE OBRA, EQUIPO, ANDAMIOS, ELEVACIONES, HERRAMIENTA MENOR, LIMPEZA Y TODO LO NECESARIO PARA LA CORRECTA EJECUCION DE LOS TRABAJOS.","M2",76]
[null,"A.XI.6","FABRICACION DE MURO DE BLOCK  20X20X40cm, JUNTEADO CON MORTERO CEMENTO  - ARENA PROPORCION 1:4 JUNTA DE 1.5 CMS DE ESP, ACABADO LISTO PARA RECIBIR ENCHAPE DE CANTERA. INCLUYE: COLOCACIÓN DE CASTILLO AHOGADO CON VARILLA  3/8\" ,REPELLADO, FLOTEADO FINO Y DOS MANOS DE PINTURA,  NIVELADO Y PLOMEADO, CORTE CON DISCO, MATERIALES, MANO DE OBRA, EQUIPO, ANDAMIOS, ELEVACIONES, HERRAMIENTA MENOR, LIMPEZA Y TODO LO NECESARIO PARA LA CORRECTA EJECUCION DE LOS TRABAJOS.","M2",{"$f":"38+13","v":51}]
[null,"A.XI.7","CASTILLOS (K-1)   DE 20x20 SECCION  CON 4 VAR. # 3 EST. # 2 A CADA 20 CMS, CONCRETO F'c=250 Kg/cm²,  INCLUYE:  APLICACIÓN DE DOS MANOS DE ANTICORROSIVO AMERCOAT EN EL ACERO, CIMBRADO, DESCIMBRADO, COLADO, VIBRADO, CURADO, MATERIALES, EQUIPO, HERRAMIENTA, MANO DE OBRA, LIMPIEZA Y TODO LO NECESARIO PARA LA CORRECTA EJECUCIÓN DE LOS TRABAJOS.","ML",48]
[null,"A.XI.8","CERRAMIENTO  (CC-01)   DE 20x20 SECCION  CON 4 VAR. # 3 EST. # 2 A CADA 20 CMS, CONCRETO F'c=250 Kg/cm²,  INCLUYE:  APLICACIÓN DE DOS MANOS DE ANTICORROSIVO AMERCOAT EN EL ACERO, CIMBRADO, DESCIMBRADO, COLADO, VIBRADO, CURADO, MATERIALES, EQUIPO, HERRAMIENTA, MANO DE OBRA, LIMPIEZA Y TODO LO NECESARIO PARA LA CORRECTA EJECUCIÓN DE LOS TRABAJOS.","ML",23]
[null,"A.XI.9","CERRAMIENTO  (CC-02)   DE 10x15 SECCION  CON 4 VAR. # 3 EST. # 2 A CADA 20 CMS, CONCRETO F'c=250 Kg/cm²,  INCLUYE:  APLICACIÓN DE DOS MANOS DE ANTICORROSIVO AMERCOAT EN EL ACERO, CIMBRADO, DESCIMBRADO, COLADO, VIBRADO, CURADO, MATERIALES, EQUIPO, HERRAMIENTA, MANO DE OBRA, LIMPIEZA Y TODO LO NECESARIO PARA LA CORRECTA EJECUCIÓN DE LOS TRABAJOS.","ML",8]
[null,"A.XI.10","CASTILLOS AHOGADO (KA-1) EN BLOCK 20x20x40cm: CON UNA VARILLA AHOGADA DE #3, CONCRETO F'c=150 Kg/cm²,  INCLUYE:  APLICACIÓN DE DOS MANOS DE ANTICORROSIVO AMERCOAT EN EL ACERO, CIMBRADO, DESCIMBRADO, COLADO, VIBRADO, CURADO, MATERIALES, EQUIPO, HERRAMIENTA, MANO DE OBRA, LIMPIEZA Y TODO LO NECESARIO PARA LA CORRECTA EJECUCIÓN DE LOS TRABAJOS.","ML",40]
[null,"A.XI.11","SUMINISTRO Y COLOCACIÓN DE  CANTERA PULIDA DE 1\" ESPESOR, COLOR BEIGE, (LA MUESTRA DEBERA SER AUTIRIZADO POR SUPERVISION) JUNTA A HUESO, PEGADA CON POLIMOR, INCLUYE: CAREADO, CORTE CON DISCO, DESPERDICIOS, MANO DE OBRA, HERRAMIENTA, EQUIPO, ANDAMIOS Y TODO LO NECESARIO PARA LA CORRECTA EJECUCIÓN DE LOS TRABAJOS.","M2",{"$f":"4.7+2.5","v":7.2}]
[null,"A.XI.12","SUMINISTRO Y COLOCACIÓN DE  CANTERA DE 1\" ESPESOR, COLOR BEIGE, (LA MUESTRA DEBERA SER AUTIRIZADO POR SUPERVISION) JUNTA A HUESO, PEGADA CON POLIMOR, INCLUYE: CAREADO, CORTE CON DISCO, DESPERDICIOS, MANO DE OBRA, HERRAMIENTA, EQUIPO, ANDAMIOS Y TODO LO NECESARIO PARA LA CORRECTA EJECUCIÓN DE LOS TRABAJOS.","M2",37]
[null,"A.XI.13","SUMINISTRO Y COLOCACIÓN DE MOLDURA  TIPO PECHO DE PALOMA DE 40x13cm DE SECCIÓN PERIMETRAL A  BASE CANTERA COLORE BEIGE  (VER DETALLE DT-A),   PEGADO CON MORTERO CEM.ARE-PEGAMARMOL, : INCLUYE:  CORTE ,PEGADO, ANDAMIOS, MATERIALES, MANO DE OBRA, EQUIPO, HERRAMIENTA MENOR Y TODO LO NECESARIO PARA LA CORRECTA EJECUCION DE LOS TRABAJOS.","ML",20.399999999999999]
[null,"A.XI.14","SUMINISTRO Y COLOCACIÓN DE MOLDURA  TIPO PECHO DE PALOMA DE 15x12cm DE SECCIÓN PERIMETRAL A  BASE CANTERA COLORE BEIGE  (VER DETALLE DT-B) , PEGADO CON MORTERO CEM.ARE-PEGAMARMOL, : INCLUYE:  CORTE ,PEGADO, ANDAMIOS, MATERIALES, MANO DE OBRA, EQUIPO, HERRAMIENTA MENOR Y TODO LO NECESARIO PARA LA CORRECTA EJECUCION DE LOS TRABAJOS.","ML",26.4]
[null,"A.XI.15","SUMINISTRO Y COLOCACIÓN DE MOLDURA RECTANGULAR SECCION DE 5 X 7cm. A BASE  DE CANTERA  COLORE BEIGE DE 1\" ESPESOR, (VER DETALLE DT-C)  PEGADO CON MORTERO CEM.ARE-PEGAMARMOL, : INCLUYE:  CORTE ,PEGADO, ANDAMIOS, MATERIALES, MANO DE OBRA, EQUIPO, HERRAMIENTA MENOR Y TODO LO NECESARIO PARA LA CORRECTA EJECUCION DE LOS TRABAJOS.","ML",22.4]
[null,"A.XI.16","SUMINISTRO Y COLOCACIÓN DE MOLDURA GUARDAPOLVO  DE 20x5cm DE SECCIÓN PERIMETRAL A  BASE CANTERA COLORE BEIGE  (VER DETALLE DT-D) , PEGADO CON MORTERO CEM.ARE-PEGAMARMOL, : INCLUYE:  CORTE ,PEGADO, ANDAMIOS, MATERIALES, MANO DE OBRA, EQUIPO, HERRAMIENTA MENOR Y TODO LO NECESARIO PARA LA CORRECTA EJECUCION DE LOS TRABAJOS.","ML",15]
[null,"A.XI.17","SUMINISTRO Y COLOCACIÓN DE MOLDURA (ARCOS) DE 15x3cm DE SECCIÓN PERIMETRAL A  BASE CANTERA COLORE BEIGE  (VER DETALLE DT-D) , PEGADO CON MORTERO CEM.ARE-PEGAMARMOL, : INCLUYE:  CORTE ,PEGADO, ANDAMIOS, MATERIALES, MANO DE OBRA, EQUIPO, HERRAMIENTA MENOR Y TODO LO NECESARIO PARA LA CORRECTA EJECUCION DE LOS TRABAJOS.","ML",10]
[null,"A.XI.18","SUMINISTRO Y COLOCACIÓN DE CIMBRA COMÚN EN DOS CARAS DEL MURO CON MADERA DE TRIPLAY DE PINO DE 1RA. DE 16 MM, INCLUYE: HABILITADO, TROQUELADO, TRABAJOS DE CIMBRADO Y DESCIMBRADO, MATERIALES, MANO DE OBRA, HERRAMIENTA, EQUIPO Y TODO LO NECESARIO PARA SU CORRECTA EJECUCIÓN. P.U.O.T.","M2",30]
[null,"A.XI.19","SUMINISTRO Y  HABILITADO   DE VARILLA DEL NO. 3.  INCLUYE:APLICACIÓN DE DOS MANOS DE PINTURA ANTICORROSIVA AMERCOAT EN EL ACERO DE REFUERZO, MANO DE OBRA, HERRAMIENTA,, MATERIALES, EQUIPO Y HERRAMIENTA. (P.U.O.T.)","KG",120]
[null,"A.XI.20","SUMINISTRO Y  HABILITADO   DE VARILLA DEL NO. 2.  INCLUYE:APLICACIÓN DE DOS MANOS DE PINTURA ANTICORROSIVA AMERCOAT EN EL ACERO DE REFUERZO, MANO DE OBRA, HERRAMIENTA,, MATERIALES, EQUIPO Y HERRAMIENTA. (P.U.O.T.)","KG",20]
[null,"A.XI.21","SUMINISTRO DE CONCRETO DE F'C=250 KG/CM2 DE RESISTENCIA CON ADITIVO INTEGRAL NORMA-NMX-C-155 PARA CONDICIONES DE EXPOSICION AMBIENTE MARINO CON COLOR INTEGRAL PROPORCION Y DOSIFICACION SOLICITADA POR SUPERVISION. INCLUYE:  COLADO, VIBRADO, DESCIMBRADO, CURADO DURANTE LOS PRIMEROS 7 DÍAS DESPUÉS DEL COLADO, EQUIPO, HERRAMIENTA, CONSUMIBLES,  MANO DE OBRA, VIGILANCIA Y CUIDADO DE CONCRETO POR 24 HORAS DESPUÉS DEL COLADO Y TODO LO NECESARIO PARA LA CORRECTA EJECUCIÓN DE LOS TRABAJOS. (P.U.O.T.) NOTA: EL LICITANTE DEBERA DE CONSIDERAR LAS PRUEBAS DE LABORATORIO RESPECTIVAS EFECTUADAS POR UN LABORATORIO EXTERNO AL MISMO Y PRESENTARSE AL MOMENTO DE REALIZAR EL TRAMITE PARA EL PAGO DE ESTIMACIONES.\n","M3",5]
[null,"A.XI.22","SUMINISTRO Y APLICACIÓN DE PINTURA VINÍLICA EN MUROS EXTERIORES  MARCA OSEL, CALIDAD  O SIMILAR, INCLUYE: LIMPIEZA Y PREPARACIÓN DE LA SUPERFICIE,  MATERIAL, HERRAMIENTA Y MANO DE OBRA.","M2",270]
[null,null,"SUB TOTAL DE TEMPLETE "]
[null,"A.XII"," JARDINERIA "]
[null,"A.XII.1","SUMINISTRO Y PLANTACIÓN DE PALMERAS DATILERA DE 6 MTS DE ALTURA, DE TRONCO LIMPIO CORTE DIAMANTE, INCLUYE: SUMINISTRO DE MATERIALES, RIEGO CONSTANTE DURANTE TODA LA OBRA, ENRAISADORES, TIERRA VEGETAL, CONSUMIBLES, EQUIPO, GRUA DE APOYO, HERRAMIENTA, MANO DE OBRA Y TODO LO NECESARIO PARA LA CORRECTA EJECUCIÓN DE LOS TRABAJOS.","PZA",15]
[null,"A.XII.2","SUMINISTRO Y PLANTACIÓN DE PALMERA RUBELINA  2MTS DE ALTURA, DE TRONCO LIMPIO CORTE DIAMANTE, INCLUYE: SUMINISTRO DE MATERIALES, RIEGO CONSTANTE DURANTE TODA LA OBRA, ENRAISADORES, TIERRA VEGETAL, CONSUMIBLES, EQUIPO, GRUA DE APOYO, HERRAMIENTA, MANO DE OBRA Y TODO LO NECESARIO PARA LA CORRECTA EJECUCIÓN DE LOS TRABAJOS.","PZA",18]
[null,"A.XII.3","      SUMINISTRO E INSTALACIÓN DE CUBRE SUELO UVA DE MAR, DEBERÁ DE CONSIDERAR 4 PIEZAS POR M2 .INCLUYE: SUMINISTRO DE MATERIALES, RIEGO CONSTANTE DURANTE TODA LA OBRA, ENRAISADORES, TIERRA VEGETAL, FERTILIZANTES, CONSUMIBLES, EQUIPO, HERRAMIENTA, MANO DE OBRA Y TODO LO NECESARIO PARA LA CORRECTA EJECUCIÓN DE LOS TRABAJOS. P.U.O.T.","M2",32]
[null,"A.XII.4","SUMINISTRO E INSTALACIÓN DE LANTANA, DE 40 CMS DE ALTURA PROMEDIO, INCLUYE: SUMINISTRO DE MATERIALES, RIEGO CONSTANTE DURANTE TODA LA OBRA, ENRAISADORES, TIERRA VEGETAL, FERTILIZANTES, CONSUMIBLES, EQUIPO, HERRAMIENTA, MANO DE OBRA Y TODO LO NECESARIO PARA LA CORRECTA EJECUCIÓN DE LOS TRABAJOS. P.U.O.T.","PZA",70]
[null,"A.XII.5","SUMINISTRO E INSTALACIÓN DE CROTO , DE 60 CMS DE ALTURA PROMEDIO, INCLUYE: SUMINISTRO DE MATERIALES, RIEGO CONSTANTE DURANTE TODA LA OBRA, ENRAISADORES, TIERRA VEGETAL, FERTILIZANTES, CONSUMIBLES, EQUIPO, HERRAMIENTA, MANO DE OBRA Y TODO LO NECESARIO PARA LA CORRECTA EJECUCIÓN DE LOS TRABAJOS. P.U.O.T.","PZA",91]
[null,"A.XII.6","SUMINISTRO E INSTALACIÓN DE NIÑA EN BARCO , DE 40 CMS DE ALTURA PROMEDIO, INCLUYE: SUMINISTRO DE MATERIALES, RIEGO CONSTANTE DURANTE TODA LA OBRA, ENRAISADORES, TIERRA VEGETAL, FERTILIZANTES, CONSUMIBLES, EQUIPO, HERRAMIENTA, MANO DE OBRA Y TODO LO NECESARIO PARA LA CORRECTA EJECUCIÓN DE LOS TRABAJOS. P.U.O.T.","PZA",{"$f":"167+8","v":175}]
[null,"A.XII.7","SUMINISTRO E INSTALACIÓN DE LIRIO CHINO , DE 40 CMS DE ALTURA PROMEDIO, INCLUYE: SUMINISTRO DE MATERIALES, RIEGO CONSTANTE DURANTE TODA LA OBRA, ENRAISADORES, TIERRA VEGETAL, FERTILIZANTES, CONSUMIBLES, EQUIPO, HERRAMIENTA, MANO DE OBRA Y TODO LO NECESARIO PARA LA CORRECTA EJECUCIÓN DE LOS TRABAJOS. P.U.O.T.","PZA",87]
[null,"A.XII.8","      SUMINISTRO E INSTALACIÓN DE ROSA CHINA, DE 40 CMS DE ALTURA PROMEDIO, INCLUYE: SUMINISTRO DE MATERIALES, RIEGO CONSTANTE DURANTE TODA LA OBRA, ENRAISADORES, TIERRA VEGETAL, FERTILIZANTES, CONSUMIBLES, EQUIPO, HERRAMIENTA, MANO DE OBRA Y TODO LO NECESARIO PARA LA CORRECTA EJECUCIÓN DE LOS TRABAJOS. P.U.O.T.","PZA",27]
[null,"A.XII.9","SUMINISTRO Y PLANTACION DE AGAVE DE 60cm. ALTURA, INCLUYE:SUMINISTRO DE MATERIALES, RIEGO CONSTANTE DURANTE TODA LA OBRA, ENRAISADORES, TIERRA VEGETAL, FERTILIZANTES, CONSUMIBLES, EQUIPO, HERRAMIENTA, MANO DE OBRA Y TODO LO NECESARIO PARA LA CORRECTA EJECUCION DE LOS TRABAJOS.","PZA",2]
[null,"A.XII.10","SUMINISTRO Y PLANTACION DE TOROTE DE 3 MTS. DE ALTURA, INCLUYE:SUMINISTRO DE MATERIALES, RIEGO CONSTANTE DURANTE TODA LA OBRA, ENRAISADORES, TIERRA VEGETAL, FERTILIZANTES, CONSUMIBLES, EQUIPO, GRUA DE APOYO, HERRAMIENTA, MANO DE OBRA Y TODO LO NECESARIO PARA LA CORRECTA EJECUCION DE LOS TRABAJOS.","PZA",1]
[null,"A.XII.11","SUMINISTRO Y PLANTACION DE BARRIL DE ORO  DE 0.35 ø Y 15 CM DE ALTURA.INCLUYE: SUMINISTRO DE MATERIALES,RIEGO CONSTANTE DURANTE TODA LA OBRA, ENRAISADORES, TIERRA VEGETAL, FERTILIZANTES, CONSUMIBLES,CUIDADOS  CONSTANTES DURANTE TODA LA OBRA, HERRAMIENTA, MANO DE OBRA Y TODO LO NECESARIO PARA LA CORRECTA EJECUCION DE LOS TRABAJOS. ","PZA",13]
[null,"A.XII.12","SUMINISTRO Y PLANTACION DE CACTACEA 1.50 M DE ALTURA.INCLUYE: SUMINISTRO DE MATERIALES,RIEGO CONSTANTE DURANTE TODA LA OBRA, ENRAISADORES, TIERRA VEGETAL, FERTILIZANTES, CONSUMIBLES,CUIDADOS  CONSTANTES DURANTE TODA LA OBRA, HERRAMIENTA, MANO DE OBRA Y TODO LO NECESARIO PARA LA CORRECTA EJECUCION DE LOS TRABAJOS. ","PZA",6]
[null,"A.XII.13","SUMINISTRO Y PLANTACION DE CACTACEA 2.00 M DE ALTURA.INCLUYE: SUMINISTRO DE MATERIALES,RIEGO CONSTANTE DURANTE TODA LA OBRA, ENRAISADORES, TIERRA VEGETAL, FERTILIZANTES, CONSUMIBLES,CUIDADOS  CONSTANTES DURANTE TODA LA OBRA, HERRAMIENTA, MANO DE OBRA Y TODO LO NECESARIO PARA LA CORRECTA EJECUCION DE LOS TRABAJOS. ","PZA",6]
[null,"A.XII.14","SUMINISTRO Y PLANTACION DE PENNISETUM MORADO DE 40 CMS DE RADIO, INCLUYE:SUMINISTRO DE MATERIALES, RIEGO CONSTANTE DURANTE TODA LA OBRA, ENRAISADORES, TIERRA VEGETAL, FERTILIZANTES, CONSUMIBLES, EQUIPO, HERRAMIENTA, MANO DE OBRA Y TODO LO NECESARIO PARA LA CORRECTA EJECUCION DE LOS TRABAJOS.","PZA",12]
[null,"A.XII.15","SUMINISTRO Y PLANTACION DE PENNISETUM VERDE DE 40 CMS DE RADIO, INCLUYE:SUMINISTRO DE MATERIALES, RIEGO CONSTANTE DURANTE TODA LA OBRA, ENRAISADORES, TIERRA VEGETAL, FERTILIZANTES, CONSUMIBLES, EQUIPO, HERRAMIENTA, MANO DE OBRA Y TODO LO NECESARIO PARA LA CORRECTA EJECUCION DE LOS TRABAJOS.","PZA",8]
[null,"A.XII.16","SUMINISTRO Y PLANTACION DE PHORMIUM FORMIO INCLUYE: SUMINISTRO DE MATERIALES, RIEGO CONSTANTE DURANTE TODA LA OBRA,ENRAISADORES, TIERRA VEGETAL CONSUMIBLES, EQUIPO, GRUA DE APOYO, HERRAMIENTA, MANO DE OBRA Y TODO LO NECESARIO PARA LA CORRECTA EJECUCION DE LOS TRABAJOS.","PZA",16]
[null,"A.XII.17","SUMINISTRO Y COLOCACION DE CONJUNTO DE 3 PIEDRAS DECORATIVAS DE 80 , 70 Y 50 CMS ø.APROXIMADABLENTE  INCLUYE:  SUMINISTRO DE MATERIAL, TRASLADO Y ACARREO , HERRAMIENTA, MANO DE OBRA Y TODO LO NECESARIO PARA LA CORRECTA EJECUCION DE LOS TRABAJOS. ","PZA",2]
[null,"A.XII.18","SUMINISTRO Y ACOMODO DE PIEDRA BLANCA SEGUN DISEÑO, INCLUYE: SUMINISTRO DE MATERIAL, COLOCACION, ACARREOS, EQUIPO, HERRAMIENTA, MANO DE OBRA Y TODO LO NECESARIO PARA LA CORRECTA EJECUCIÓN DE LOS TRABAJOS. P.U.O.T.","M2",22]
[null,"A.XII.19","SUMINISTRO Y COLOCACION DE PIEDRA DECORATIVA TIPO TEZONTLE COLOR TERRACOTA EN CAPA DE 5cm. DE ESPESOR, COLOCACIÓN SEGÚN DISEÑO INCLUYE:  SUMINISTRO DE MATERIALES, TRASLADO Y ACARREO , HERRAMIENTA, MANO DE OBRA Y TODO LO NECESARIO PARA LA CORRECTA EJECUCION DE LOS TRABAJOS. ","PZA",2.5]
[null,"A.XII.20","SUMINISTRO Y ACOMODO DE PIEDRA AMARILLA SEGUN DISEÑO  , INCLUYE: SUMINISTRO DE MATERIAL, COLOCACION, ACARREOS, EQUIPO, HERRAMIENTA, MANO DE OBRA Y TODO LO NECESARIO PARA LA CORRECTA EJECUCIÓN DE LOS TRABAJOS. P.U.O.T.","M3",{"$f":"113*0.2","v":22.6}]
[null,"A.XII.21","SUMINISTRO Y ACOMODO DE TIERRA VEGETAL EN JARDINERAS.  INCLUYE: SUMINISTRO DE MATERIAL, COLOCACION, EQUIPO, HERRAMIENTA, MANO DE OBRA Y TODO LO NECESARIO PARA LA CORRECTA EJECUCIÓN DE LOS TRABAJOS. P.U.O.T.","M3",80]
[null,"A.XII.22","SUMINISTRO Y ACOMODO DE PLASTICO NEGRO  SEGUN DISEÑO  , INCLUYE: SUMINISTRO DE MATERIAL, COLOCACION, EQUIPO, HERRAMIENTA, MANO DE OBRA Y TODO LO NECESARIO PARA LA CORRECTA EJECUCIÓN DE LOS TRABAJOS. P.U.O.T.","ML",85]
[null,"A.XII.23","SUMINISTRO Y PLANTACIÓN DE JACALOSUCHO  3MTS DE ALTURA Y COPA DE 2 TS DE DIAMETRO , , INCLUYE: SUMINISTRO DE MATERIALES, RIEGO CONSTANTE DURANTE TODA LA OBRA, ENRAISADORES, TIERRA VEGETAL, CONSUMIBLES, EQUIPO, GRUA DE APOYO, HERRAMIENTA, MANO DE OBRA Y TODO LO NECESARIO PARA LA CORRECTA EJECUCIÓN DE LOS TRABAJOS.","PZA",12]
[null,"A.XII.24","SUMINISTRO Y PLANTACIÓN DE JABACHIN AMARILLO  3MTS DE ALTURA Y COPA DE 2 TS DE DIAMETRO , , INCLUYE: SUMINISTRO DE MATERIALES, RIEGO CONSTANTE DURANTE TODA LA OBRA, ENRAISADORES, TIERRA VEGETAL, CONSUMIBLES, EQUIPO, GRUA DE APOYO, HERRAMIENTA, MANO DE OBRA Y TODO LO NECESARIO PARA LA CORRECTA EJECUCIÓN DE LOS TRABAJOS.","PZA",6]
[null,"A.XII.25","SUMINISTRO Y PLANTACIÓN DE PALMERAS PHOENIX CANARIENSIS DE 4 MTS DE ALTURA, DE TRONCO LIMPIO CORTE DIAMANTE, INCLUYE: SUMINISTRO DE MATERIALES, RIEGO CONSTANTE DURANTE TODA LA OBRA, ENRAISADORES, TIERRA VEGETAL, CONSUMIBLES, EQUIPO, GRUA DE APOYO, HERRAMIENTA, MANO DE OBRA Y TODO LO NECESARIO PARA LA CORRECTA EJECUCIÓN DE LOS TRABAJOS.","PZA",4]
[null,null,"SUB TOTAL DE JARDINERIA"]
[null,"A.XIII"," RED DE RIEGO "]
[null,"A.XIII.1","TRAZO GENERAL PARA LA RED DE RIEGO EN GENERAL DEL PROYECTO DURANTE TODO EL PROCESO DE CONSTRUCCIÓN DE LA OBRA, INCLUYE: EQUIPO TOPOGRÁFICO, PLANOS ACTUALIZADOS, MANO DE OBRA, MATERIALES, HERRAMIENTA Y TODO LO NECESAIRO PARA LA CORRECTA ENECUCIÓN DE LOS TRABAJOS. (P.U.O.T.)","ML",371]
[null,"A.XIII.2","EXCAVACIÓN POR MEDIOS MECÁNICOS EN CUALQUIER TIPO DE TERRENO A CUALQUIER PROFUNDIDAD EN PRESENCIA DE AGUA O EN SECO DE 0.00 A 0.50 M DE PROFUNDIDAD. CON EXTRACCIÓN A BORDE DE ZANJA, MEDIDO EN BANCO. INCLUYE: EQUIPO DE BOMBEO PARA ACHIQUE DE MANTOS FREÁTICOS, OBRAS DE PROTECCIÓN DE TALUDES DE ZANJA, TRASPALEO, MATERIALES, SEÑALAMIENTO DE PRECAUCIÓN, LA MANO DE OBRA PARA EL APOYO EN LAS OPERACIONES MECÁNICAS, AFINE DE TALUDES Y FONDO DE ZANJA, LIMPIEZA, LA MAQUINARIA, LA HERRAMIENTA Y EL EQUIPO NECESARIOS PARA LA CORRECTA EJECUCIÓN DE LOS TRABAJOS. NORMA DE COSTRUCCIÓN G.D.F. 3.01.01.006","M3",50]
[null,"A.XIII.3","SUMINISTRO E INSTALACIÓN DE LÍNEA PARA RIEGO DE JARDINERÍA, A BASE DE TUBERÍA PVC ANGER  1/2”, INCLUYE:COPLES, PEGAMENTO, CONEXIÓN A LA RED EXISTENTE (ADAPTACIONES), RELLENO CON MATERIAL PRODUCTO DE EXCAVACIÓN, MATERIALES DE CONSUMO MENOR, MANO DE OBRA, HERRAMIENTA, EQUIPO, PRUEBAS, Y TODO LO NECESARIO PARA LA CORRECTA EJECUCIÓN DE LOS TRABAJOS.","ML",243]
[null,"A.XIII.4","SUMINISTRO E INSTALACIÓN DE LÍNEA PARA RIEGO DE JARDINERÍA, A BASE DE TUBERÍA PVC ANGER 1 ”, INCLUYE: COPLES, PEGAMENTO, CONEXIÓN A LA RED EXISTENTE (ADAPTACIONES), RELLENO CON MATERIAL PRODUCTO DE EXCAVACIÓN, MATERIALES DE CONSUMO MENOR, MANO DE OBRA, HERRAMIENTA, EQUIPO, PRUEBAS, Y TODO LO NECESARIO PARA LA CORRECTA EJECUCIÓN DE LOS TRABAJOS.","ML",128]
[null,"A.XIII.5","SUMINISTRO Y COLOCACIÓN DE GOTERO AUTOCOMPENSABLE DE 1/2\"  PARA RIEGO DE JARDINERÍA, INCLUYE: ELEMENTOS DE FIJACIÓN, CONEXIONES A LA  RED DE PROYECTO, CONSUMIBLES, MANO DE OBRA, EQUIPO, HERRAMIENTA Y TODO LO NECESARIO PARA LA CORRECTA EJECUCIÓN DE LOS TRABAJOS.","PZA",47]
[null,"A.XIII.6","SUMINISTRO Y COLOCACIÓN DE GOTERO AUTOCOMPENSABLE DE 1/2\"   PARA PALMERA PARA RIEGO DE JARDINERÍA, INCLUYE: ELEMENTOS DE FIJACIÓN, CONEXIONES A LA  RED DE PROYECTO, CONSUMIBLES, MANO DE OBRA, EQUIPO, HERRAMIENTA Y TODO LO NECESARIO PARA LA CORRECTA EJECUCIÓN DE LOS TRABAJOS.","PZA",25]
[null,"A.XIII.7","SUMINISTRO Y COLOCACIÓN DE VALVULA ESFERA PP-R, INCLUYE: ELEMENTOS DE FIJACIÓN, CONEXIONES A LA RED DE PROYECTO, CONSUMIBLES, MANO DE OBRA, EQUIPO, HERRAMIENTA.Y TODO LO NECESARIO PARA LA CORRECTA EJECUCIÓN DE LOS TRABAJOS.","PZA",8]
[null,"A.XIII.8","SUMINISTRO Y COLOCACION DE REGISTRO HIDRAULICO DE 40X54X31 CM DE PROFUNDIDAD, DE CONCRETO POLIMERICO FC=800 KG/CM2 INCLUYE: TAPA Y CONTRAMARCO DE CONCRETO POLIMERICO REFORZADO CON FIBRA DE VIDRIO, EL CUERPO DEL REGISTRO SERA DE FIBRA DE VIDRIO CON ESPESOR DE 1/8\" ENTINTADO AL COLOR DEL PISO SEGUN MUESTRA AUTORIZADA CON GRABADO  EN TAPA CON LEYENDA QUE INDIQUE  SUPERVISION,FILTRO DE 10 CM DE ESPESOR DE GRAVA TMA 3/4\", CONSUMIBLES, EQUIPO, HERRAMIENTA, MANO DE OBRA Y TODO LO NECESARIO PARA LA CORRECTA EJECUCIÓN DE LOS TRABAJOS.","PZA",8]
[null,null,"CISTERNAS 5000 LTS "]
[null,"A.XIII.9","      SUMINISTRO Y FABRICACIÓN DE ADEME PARA CISTERNA  DE 6.00x 3.00 SECCION Y 2M ALTURA  (  MEDIDAS INTERIORES ) A BASE DE FIRME  DE CONCRETO F'c= 200 Kg/cm², 10cm.  ESPESOR ARMADO CON VAR 3/8\" @ 20 CM AMBOS SENTIDOS, ADEME A BASE  DE MURO DE BLOCK 15x20x40cm. PEGADO CON MORTERO CEM-ARE- PROP 1:4,CON ESCALERILLA INTERMEDIA,  CASTILLOS DE 15x15cm. SECCION   ARMADO CON ARMEX 15-15, CADENA DE CERRAMIENTO DE 15x20cm.SECCION ARMADA CON ARMEX 15-20. LOSA DE 10cm ESPESOR ARAMADA CON ACERO DE REFUERZO CON VAR. 3/8\" @ 18cm. AMBOS SENTIDOS , REGISTRO CON TAPA DE ACERO  DE 60x60cm. A BASE DE HERRERIACON MARCO DE ANGULO Y CONTRAMARCO SELLADO TIPO 45°.  INCLUYE:  TRAZO, EXCAVACION, SUMINISTROS, CONCRETO 200Kg/cm². EN TODOS LOS ELEMENTOS ESTRUCTURALES, SUMINITROS, PREPARACIONES PARA INSTALACION HIDRAULICA, ACARREOS, RELLENO CON MATERIAL PRODUCTO DE LA EXCAVACION, TIERRA CEMENTO, TAPA DE CONCRETO FC 200 KG/CM2 10 CM DE ESPESOR ARMADA CON VAR #3/8 (3) @ 20CM  AMBOS SENTIDOS, FORJADO DE REGISTRO 80X80CM CON MARCO DE ANGULO Y CONTRAMARCO ASA.","LOTE",1]
[null,"A.XIII.10","      SUMINISTRO Y COLOCACION DE CISTERNA DE 5000 LTS  MARCA ROTOPLAS INCLUYE: EXCAVACIÓN EN PRESENCIA DE AGUA, CONFINAMIENTO, RELLENO, COMPACTACIÓN, ACCESORIOS DE SISTEMA , INSTALACIÓN HIDRAULICA, TRASLADO, ACARREO, CONEXIONES, MATERIALES, MANO DE OBRA, EQUIPO, HERRAMIENTA, CONSUMIBLES Y TODO LO NECESARIO PARA LA CORRECTA EJECUCIÓN DE LOS TRABAJOS","PZA",1]
[null,"A.XIII.11","      SUMINISTRO Y COLOCACIÓN DE BOMBA SUMERGIBLE DE 1HP  INCLUYE: FIJACION SUJECION, CONEXIONES, MATERIALES, MANO DE OBRA, EQUIPO, HERRAMIENTA, CONSUMIBLES Y TODO LO NECESARIO PARA LA CORRECTA EJECUCIÓN DE LOS TRABAJOS","PZA",1]
[null,"A.XIII.12","      SUMINISTRO Y COLOCACIÓN DE VALVULA DE COMPUERTA CON REGISTRO PREFABRICADO. INCLUYE:CONEXIONES, SUJECION FIJACION,  MATERIALES, MANO DE OBRA, EQUIPO, HERRAMIENTA, CONSUMIBLES Y TODO LO NECESARIO PARA LA CORRECTA EJECUCIÓN DE LOS TRABAJOS.","PZA",1]
[null,null,"SUB TOTAL DE RED DE RIEGO "]
[null,"A.XIV.","MOBILIARIO URBANO"]
[null,"A.XIV.1","BANCA DE 4 PLAZAS SIN RESPALDO DE 1.72MX0.07M DE ALTURA. MODELO: PORT. CLAVE: PQX313T . MARCA MMCITE. \nFABRICADA EN ESTRUCTURA DE ACERO GALVANIZADO, ASIENTO Y RESPALDO DE LAMELAS DE MADERA TROPICAL.   INCLUYE: HERRAJES, ELEMENTOS DE SUJECCION, ELEMENTOS DE CONEXION,  MATERIALES CONSUMIBLES, MANO DE OBRA, EQUIPO, HERRAMIENTA, LIMPIEZA Y TODO LO NECESARIO PARA LA CORRECTA EJECUCION DE LOS TRABAJOS. ","PIEZA",4]
[null,"A.XIV.2","BANCA DE 4 PLAZAS DE 1.72MX0.46M DE ALTURA. MODELO: PORT. CLAVE: PQX355T. MARCA MMCITE. FABRICADA EN ESTRUCTURA DE ACERO GALVANIZADO, ASIENTO Y RESPALDO DE LAMELAS DE MADERA TROPICAL. INCLUYE:HERRAJES, ELEMENTOS DE SUJECCION, ELEMENTOS DE CONEXION,  MATERIALES CONSUMIBLES, MANO DE OBRA, EQUIPO, HERRAMIENTA, LIMPIEZA Y TODO LO NECESARIO PARA LA CORRECTA EJECUCION DE LOS TRABAJOS. ","PIEZA",4]
[null,"A.XIV.3","BANCA DE 4 PLAZAS SIN RESPALDO DE 1.80MX0.07M DE ALTURA. MODELO: PORT. CLAVE: PQX311T . MARCA MMCITE. FABRICADA EN ESTRUCTURA DE ACERO GALVANIZADO, ASIENTO Y RESPALDO DE LAMELAS DE MADERA TROPICAL. INCLUYE:  HERRAJES, ELEMENTOS DE SUJECCION, ELEMENTOS DE CONEXION,  MATERIALES CONSUMIBLES, MANO DE OBRA, EQUIPO, HERRAMIENTA, LIMPIEZA Y TODO LO NECESARIO PARA LA CORRECTA EJECUCION DE LOS TRABAJOS. ","PIEZA",2]
[null,"A.XIV.4","BANCA SIN RESPALDO DE 3.72MX0.07M DE ALTURA. MODELO: VERA SOLO. CLAVE: LVS13T . MARCA MMCITE. FABRICADA EN ESTRUCTURA DE ACERO GALVANIZADO, ASIENTO Y RESPALDO DE LAMELAS DE MADERA TROPICAL. INCLUYE: HERRAJES, ELEMENTOS DE SUJECCION, ELEMENTOS DE CONEXION,  MATERIALES CONSUMIBLES, MANO DE OBRA, EQUIPO, HERRAMIENTA, LIMPIEZA Y TODO LO NECESARIO PARA LA CORRECTA EJECUCION DE LOS TRABAJOS. ","PIEZA",6]
[null,"A.XIV.5","BANCA DE 4 PLAZAS SIN RESPALDO DE 1.80MX0.07M DE ALTURA. MODELO: VERA SOLO. CLAVE: LVS70T . MARCA MMCITE. FABRICADA EN ESTRUCTURA DE ACERO GALVANIZADO, ASIENTO Y RESPALDO DE LAMELAS DE MADERA TROPICAL. INCLUYE: ELEVACION   HERRAJES, ELEMENTOS DE SUJECCION, ELEMENTOS DE CONEXION,  MATERIALES CONSUMIBLES, MANO DE OBRA, EQUIPO, HERRAMIENTA, LIMPIEZA Y TODO LO NECESARIO PARA LA CORRECTA EJECUCION DE LOS TRABAJOS. ","PIEZA",8]
[null,"A.XIV.6","CESTO PARA BASURA CITY-04, MARCA MURBAN, FABRICADA EN ACERO AL CARBÓN CON TERMINACIÓN EN PINTURA ELECTROESTÁTICA CON PRE-TRATAMIENTO EN FOSFATO DE ZINC. ALTURA DE 1M Y ANCHO DE 0.72 M. INCLUYE:HERRAJES, ELEMENTOS DE SUJECCION, ELEMENTOS DE CONEXION,  MATERIALES CONSUMIBLES, MANO DE OBRA, EQUIPO, HERRAMIENTA, LIMPIEZA Y TODO LO NECESARIO PARA LA CORRECTA EJECUCION DE LOS TRABAJOS. ","PIEZA",7]
[null,"A.XIV.7","ALCORQUE DE 1.50 DE DIÁMETRO MARCA ODIN.\nMODELO UNIVERSIDAD A BASE DE ACERO ORNAMENTAL CON SOLERAS Y HERRERÍA DECORATIVA. INCLUYE:HERRAJES, ELEMENTOS DE SUJECCION, ELEMENTOS DE CONEXION,  MATERIALES CONSUMIBLES, MANO DE OBRA, EQUIPO, HERRAMIENTA, LIMPIEZA Y TODO LO NECESARIO PARA LA CORRECTA EJECUCION DE LOS TRABAJOS. \n","PIEZA",7]
[null,"A.XIV.8","ALCORQUE DE 1.85 M. DE DIÁMETRO MARCA ODIN.\nMODELO UNIVERSIDAD A BASE DE ACERO ORNAMENTAL CON SOLERAS Y HERRERÍA DECORATIVA. INCLUYE:HERRAJES, ELEMENTOS DE SUJECCION, ELEMENTOS DE CONEXION,  MATERIALES CONSUMIBLES, MANO DE OBRA, EQUIPO, HERRAMIENTA, LIMPIEZA Y TODO LO NECESARIO PARA LA CORRECTA EJECUCION DE LOS TRABAJOS.\n","PIEZA",5]
[null,"A.XIV.9","APARCABICICLETAS DE PERFIL TUBULAR PTR 2\" X 2\" CAL.12 BLANCO.  ACABADO EN PINTURA ELECTROSTÁTICA CON PREVIO TRATAMIENTO DE FOSFATO DE ZINC.  INCLUYE: ELEVACION   HERRAJES, ELEMENTOS DE SUJECCION, ELEMENTOS DE CONEXION,  MATERIALES CONSUMIBLES, MANO DE OBRA, EQUIPO, HERRAMIENTA, LIMPIEZA Y TODO LO NECESARIO PARA LA CORRECTA EJECUCION DE LOS TRABAJOS. ","PIEZA",4]
[null,"A.XIV.10","SUMINISTRO Y COLOCACION DE ESCULTURA DE JUAN MARIA DE SALVATIERRA.  INCLUYE: BASE DE CONCRETO, ELEMENTOS DE SUJECCION,  MATERIALES CONSUMIBLES, MANO DE OBRA, EQUIPO, HERRAMIENTA, LIMPIEZA Y TODO LO NECESARIO PARA LA CORRECTA EJECUCION DE LOS TRABAJOS. ","PIEZA",1]
[null,"A.XIV.11","FABRICACIÓN E INSTALACIÓN DE BARANDAL DE HERRERÍA Y FORJA, COLOR NEGRO MATE, DE 1.50 METRO DE ALTURA, A BASE DE MARCO RECTANGULAR DE PTR CUADRADO DE 2\" CAL.14 A CADA 2.5M DE LONGITUD, CON CUADRADO DE  ACERO DE 1/2\" A CADA 15CM EN SENTIDO VERTICAL, DETALLE EN SOLERA DE ACERO 1/8\"X1/2\" ROLADA EN FRÍO SEGUN DISEÑO, INCLUYE ESFERA DE 2\" DE ACERO FORJADO EN CADA EXTREMO CON BASE CUADRADA, TRATAMIENTO PREVIO CON 2 MANOS DE CROMATO DE ZINC, ACABADO EN PINTURA ESMALTE ALQUIDALICO ANTICORROSIVO, ANTIGRAFITI,  INCLUYE: ELEMENTOS SUJECIÓN, ANCLAJE, MATERIAL, HERRAMIENTA, EQUIPO, MANO DE OBRA Y TODO LO NECESARIO PARA LA CORRECTA EJECUCIÓN DE LOS TRABAJOS.","ML",15]
[null,null,"SUB TOTAL DE MOBILIARIO URBANO "]
[null,"A.XV","SEÑALAMIENTO "]
[null,"A.XV.1","SUMINISTRO E INSTALACION DE TOTEM INFORMATIVO DE 1.95 X 0.95 MTS A BASE DE LAMINA DE ACERO AL CARBON DE 1/4\" CORTE LASER CON ACABADO OXIDO Y SELLADOR TRANPARENTE, MARCO A BASE DE PERFIL R-200 CAL.14,ACABADO OXIDO MATE, Y LAMINA LISA CAL.18 CUBIERTA CON CRISTAL DE 6 MM, INCLUYE PERFIL C-100 CAL.14 Y CANALETA PERFIL154. ANCLADO A POSTES DE PTR DE 2\" X 4\"  UNIDO A PTR DE 2\" X 1\".INCLUYE:PARTE POSTERIOR 2 LAMINAS LISAS CAL.18 DE 0.45 X 1.05 MTS, PERFIL C-100 CAL.14 2 PERNIOS PALA DE ACERO DE 1.5\" Y CERRADURA DE SOBREPONER DE ACERO, MUERTO DE CONCRETO DE 150 KG/CM2 DE 40 X 45 CM,ELEMENTOS SUJECIÓN.PLACAS, ANCLAJE, MATERIAL, HERRAMIENTA, EQUIPO, MANO DE OBRA Y TODO LO NECESARIO PARA LA CORRECTA EJECUCIÓN DE LOS TRABAJOS.","PZA",2]
[null,"A.XV.2","SUMINISTRO E INSTALACION DE SEÑALIZACIÓN PARA NOMENCLATURA DE CALLES EN DOS SENTIDOS DE SECCIÓN 20 X 95 CM DE LAMINA DE ACERO AL CARBON DE 1/4\" CORTE LASER CON ACABADO OXIDO Y SELLADOR TRANPARENTE INCLUYE: ELEMENTO DECORATIVO A BASE DE HERRERIA FORJADA,ACABADO OXIDO, POSTE ORNAMENTAL VIAL CIRCULAR, MARCA ODIN HISTORIC, CON BASE MARCA ODIN MODELO TLALPAN, EN COLOR NEGRO, CON SOLDADURA TIPICA, HERRAJES DE FIJACIÓN GALVANIZADAS, BASE PÍRAMIDAL DE CONCRETO DE 200 KG/CM2 DE ALTURA 70CM, BASE MENOR DE 80 CM Y BASE MAYOR DE 40 CM,ELEMENTOS DE SUJECIÓN, PLACA, ANCLAJE , MATERIAL , MANO DE OBRA Y TODO LO NECESARIO PARA LA CORRECTA EJECUCIÓN DE LOS TRABAJOS.","PZA",2]
[null,"A.XV.3","SUMINISTRO E INSTALACION DE INSIGNIA SEGUN DISEÑO EN PROYECTO DE 1.60 X 0.35 MTS A BASE DE LAMINA DE ACERO AL CARBON DE 1/4\" CORTE LASER CON ACABADO OXIDO Y SELLADOR TRANPARENTE DISEÑO EN DETALLE BAJO RELIEVE, MARCO A BASE DE PERFIL CUADRADO DE ACERO DE 1 1/2\" X 1 1/2\", ACABADO OXIDO ,ANCLADO CON PERFIL CUADRADO DE ACERO DE 2\" X 2\" ACABADO OXIDO ,A BASE OVALADA DE 0.50 X 0.30 DE LAMINA DE ACERO AL CARBON CORTE LASER CON ACABADO OXIDO Y SELLADOR TRANPARENTE MATE, SOLDADURA TIPICA A POSTE DE PTR DE 2\" X 2\". INCLUYE:MUERTO DE CONCRETO DE 150 KG/CM2 DE 30 X 15 CM, MATERIAL , MANO DE OBRA Y TODO LO NECESARIO PARA LA CORRECTA EJECUCIÓN DE LOS TRABAJOS.\n","PZA",7]
[null,"A.XV.4","SUMINISTRO E INSTALACION DE SEÑALIZACIÓN PARA NOMENCLATURA DE LOCALES COMERCIALES, OVALO DE 52 X 90 CMS DE LÁMINA DE ACERO AL CARBON CORTE LASER  ANCLADO A TUBO MECANICO CED.30 DE 1\" CAL.14 CON CADENA DE ALTO GRADO DE RESISTENCIA A BASE DE ACERO AL CARBON ACABADO GALVANIZADO.INCLUYE ELEMENTO DECORATIVO A BASE DE HERRERIA FORJADA EN TUBO MECANICO CON SOLDADURA TIPICA Y  POSTE ORNAMENTAL VIAL CIRCULAR, MARCA ODIN HISTORIC, CON BASE MARCA ODIN MODELO TLALPAN, BASE PÍRAMIDAL DE CONCRETO DE 200 KG/CM2 DE ALTURA 70CM, BASE MENOR DE 80 CM Y BASE MAYOR DE 40 CM,ELEMENTOS DE SUJECIÓN, ANCLAJE , MATERIAL , MANO DE OBRA Y TODO LO NECESARIO PARA LA CORRECTA EJECUCIÓN DE LOS TRABAJOS. ","PZA",6]
[null,"A.XV.5","SUMINISTRO E INSTALACION DE SEÑALIZACIÓN PARA NOMENCLATURA DE LOCALES COMERCIALES, OVALO DE 52 X 90 CMS DE LÁMINA DE ACERO AL CARBON CORTE LASER  ANCLADO A TUBO MECANICO CED.30 DE 1\" CAL.14 CON CADENA DE ALTO GRADO DE RESISTENCIA A BASE DE ACERO AL CARBON ACABADO GALVANIZADO.INCLUYE ELEMENTO DECORATIVO A BASE DE HERRERIA FORJADA EN TUBO MECANICO CON SOLDADURA TIPICA Y  POSTE ORNAMENTAL VIAL CIRCULAR, MARCA ODIN HISTORIC, CON BASE MARCA ODIN MODELO TLALPAN, BASE PÍRAMIDAL DE CONCRETO DE 200 KG/CM2 DE ALTURA 70CM, BASE MENOR DE 80 CM Y BASE MAYOR DE 40 CM,ELEMENTOS DE SUJECIÓN, ANCLAJE , MATERIAL , MANO DE OBRA Y TODO LO NECESARIO PARA LA CORRECTA EJECUCIÓN DE LOS TRABAJOS. ","PZA",7]
[null,"A.XV.6","SUMINISTRO E INSTALACION DE SEÑALIZACIÓN PARA NOMENCLATURA DE LOCALES COMERCIALES, OVALO DE 52 X 90 CMS DE LÁMINA DE ACERO AL CARBON CORTE LASER  ANCLADO A MURO.INCLUYE ELEMENTO DECORATIVO A BASE DE HERRERIA FORJADA ,ELEMENTOS DE SUJECIÓN, ANCLAJE , MATERIAL , MANO DE OBRA Y TODO LO NECESARIO PARA LA CORRECTA EJECUCIÓN DE LOS TRABAJOS. ","PZA",1]
[null,"A.XV.7","SUMINISTRO E INSTALACION DE LETRAS PLAZA SALVATIERRA, DE 1.10 X 3.95 COLOCADO A UNA  ALTURA DE 1.30 MTS , SEGÚN DISEÑO HECHOS A BASE DE HERRERIA ACABADO IFIJADAS SOBRE MURO DE BLOCK CON ANCLAS ENBEBIDAS, INCLUYE:  MATERIALES, CONSUMIBLES, EQUIPO, HERRAMIENTA, MANO DE OBRA Y TODO LO NECESARIO PARA LA CORRECTA EJECUCIÓN DE LOS TRABAJOS.","PZA",1]
[null,null,"SUB TOTAL :  SEÑALAMIENTO  "]
[null,"B.","BAÑOS PUBLICOS",null,null,null,null,null,null,null,null,null,null,null,null,null,null,null,3,2,{"$f":"T408*S408","v":6}]
[null,"B.I","CIMENTACION ",null,null,null,null,null,null,null,null,null,null,null,null,null,null,null,null,null,{"$f":"SUM(U112:U408)","v":15.24}]
[null,"B.I.01","TRAZO Y NIVELACIÓN DE CIMENTACIÓN  A BASE DE ZAPATAS CORRIDAS , AISLADAS, MUROS DE ENRASE, TRABES DE LIGA, FIRMES, DURANTE LA EJECUCION DE LA OBRA INCLUYE:EQUIPO TOPOGRAFICO,MANO DE OBRA, MATERIALES, HERRAMIENTO, ESTABLECER REFERENCIAS EN CAMPO Y EQUIPO.(P.U.O.T.)","M2",88]
[null,"B.I.02","EXCAVACIÓN POR MEDIOS MANUALES, EN ZANJAS DE CIMENTACIÓN,   EN TERRENO CON CUALQUIER CLASIFICACION Y PROFUNDIDAD EN PRESENCIA DE AGUA O EN SECO, RETIRO DEL MATERIAL HASTA 10 M DE DISTANCIA HORIZONTAL, EL PRECIO UNITARIO INCLUYE: , EQUIPO DE BOMBEO PARA ACHIQUE, OBRAS DE PROTECCION DE TALUDES DE ZANJA, TRASPALEO, SEÑALAMIENTO PREVENTIVO, AFINE DE TALUDES Y FONDO DE ZANJA, LIMPIEZA, LA MANO DE OBRA, EQUIPO Y HERRAMIENTA NECESARIOS PARA LA CORRECTA EJECUCIÓN DE LOS TRABAJOS. PUOT.","M3 ",73]
[null,"B.I.03","RELLENO COMPACTADO CON EQUIPO MECANICO  EN CAPAS DE 20 CM. EN CEPA, CON MATERIAL SELECCIONADO PRODUCTO DE LA EXCAVACION (CRIBADO POR LA MALLA DE 2 1/2\") LIBRE DE BOLEO MAYOR DE 3\" , COMPACTADO AL 90% PROCTOR. INCLUYE: CRIBADO DEL MATERIAL, ACARREOS DENTRO DE LA OBRA, INCORPORACION DE HUMEDAD, MANO DE OBRA, HERRAMIENTA Y EQUIPO NECESARIO. ","M3",5]
[null,"B.I.04","RELLENO COMPACTADO CON EQUIPO MECANICO  EN CAPAS DE 20 CM. EN CEPA, CON MATERIAL SELECCIONADO PRODUCTO DE BANCO, COMPACTADO AL 90% PROCTOR. INCLUYE: ACARREOS DENTRO DE LA OBRA, INCORPORACION DE HUMEDAD, MANO DE OBRA, HERRAMIENTA Y EQUIPO NECESARIO. ","M3",60]
[null,"B.I.05","         SUMINISTRO Y COLOCACIÓN DE PLASTICO NEGRO DE POLIETILENO DE CALIBRE 500,  PARA PROTECCIÓN  DE ACERO Y CONCRETOS EN CIMENTACION Y FIRMES ,  INCLUYE: CORTES Y TRASLAPES, MATERIAL, MANO DE OBRA, EQUIPO, HERRAMIENTA MENOR, LIMPIEZA Y TODO LO NECESARIO PARA LA CORRECTA EJECUCION DE LOS TRABAJOS.","M2",120]
[null,"B.I.06","         SUMINISTRO Y COLOCACION DE PLANTILLA DE CONCRETO F`C= 100 KG/CM2,  ESPESOR DE 5 CMS, INCLUYE: COLOCACION EN ZAPATAS, MATERIAL, MANO DE OBRA, EQUIPO, HERRAMIENTA MENOR, LIMPIEZA Y TODO LO NECESARIO PARA LA CORRECTA EJECUCION DE LOS TRABAJOS.","M2",55]
[null,"B.I.07","         CONSTRUCCIÓN DE ZAPATA CORRIDA (ZC-01) DE 60x15 CM. DE PERALTE, ARMADA CON VARILLAS DEL # 3 @ 20 CMS EN AMBOS SENTIDO CON  CONCRETO F'C= 200KG/CM2, CON  CONTRATRABE  EMBEBIDA  EN ZAPATA DE  15x20cm,  4 VARILLA DEL #4 EST. #2 @20cm.  F'C= 250KG/CM2,  INCLUYE:  2 HILADAS DE BLOCK DE 15X20X40 CMS CON CELDA RELLENA DE CONCRETO F'C= 100KG/CM2,  IMPERMEABILIZANTE INTEGRAL TIPO FESTERGRAL A RAZON DE 2KG/SACO DE 50Kg. , HABILITADO DE ARMADO CON APLICACIÓN DE DOS MANOS DE PINTURA ANTICORROSIVA ALKIDALICA EN EL ACERO DE REFUERZO,  T.M.A 3/4\", GANCHOS, TRASLAPES, AMARRES, DESPERDICIOS, ACARREOS,  CONFINAMIENTO CON MATERIAL PRODUCTO DE LA EXCAVACIÓN ,  COMPACTADO, MANO DE OBRA, CIMBRADO, COLADO, VIBRADO, DESCIMBRADO, HERRAMIENTA Y EQUIPO, LIMPIEZA Y RETIRO FUERA DE LA OBRA DEL MATERIAL NO RECUPERABLE. (P.U.O.T)","ML",41]
[null,"B.I.08","         CONSTRUCCIÓN DE ZAPATA CORRIDA (ZCL-02) DE 80x15 CM. DE PERALTE, ARMADA CON VARILLAS DEL # 4 @ 20 CMS EN AMBOS SENTIDO CON  CONCRETO F'C= 200KG/CM2, CON  CONTRATRABE  EMBEBIDA  EN ZAPATA DE  15x20cm,  4 VARILLA DEL #4 EST. #2 @20cm.  F'C= 250KG/CM2,  INCLUYE:  2 HILADAS DE BLOCK DE 15X20X40 CMS CON CELDA RELLENA DE CONCRETO F'C= 100KG/CM2,  IMPERMEABILIZANTE INTEGRAL TIPO FESTERGRAL A RAZON DE 2KG/SACO DE 50Kg. , HABILITADO DE ARMADO CON APLICACIÓN DE DOS MANOS DE PINTURA ANTICORROSIVA ALKIDALICA EN EL ACERO DE REFUERZO,  T.M.A 3/4\", GANCHOS, TRASLAPES, AMARRES, DESPERDICIOS, ACARREOS,  CONFINAMIENTO CON MATERIAL PRODUCTO DE LA EXCAVACIÓN ,  COMPACTADO, MANO DE OBRA, CIMBRADO, COLADO, VIBRADO, DESCIMBRADO, HERRAMIENTA Y EQUIPO, LIMPIEZA Y RETIRO FUERA DE LA OBRA DEL MATERIAL NO RECUPERABLE. (P.U.O.T)","ML",11]
[null,"B.I.09","         CONSTRUCCIÓN DE ZAPATA CORRIDA DE LINDERO  (ZC-3) DE 100x15cm. DE PERALTE, ARMADA CON VARILLAS DEL # 4 @ 20 CMS EN AMBOS SENTIDO CON  CONCRETO F'c= 250KG/CM2, CON  CONTRATRABE  EMBEBIDA  EN ZAPATA DE  15x60cm,  6 VARILLA DEL #4 EST. #2 @20cm.  F'C= 250KG/CM2,  INCLUYE: IMPERMEABILIZANTE INTEGRAL TIPO FESTERGRAL A RAZON DE 2KG/SACO DE 50Kg.  HABILITADO DE ARMADO CON APLICACIÓN DE DOS MANOS DE PINTURA ANTICORROSIVA ALKIDALICA EN EL ACERO DE REFUERZO,  T.M.A 3/4\", GANCHOS, TRASLAPES, AMARRES, DESPERDICIOS, RELLENO Y CONFINAMIENTO CON MATERIAL PRODUCTO DE LA EXCAVACIÓN EN PRESENCIA DE AGUA SALADA,  COMPACTADO, MANO DE OBRA, CIMBRADO, COLADO, VIBRADO, DESCIMBRADO, HERRAMIENTA Y EQUIPO, LIMPIEZA Y RETIRO FUERA DE LA OBRA DEL MATERIAL NO RECUPERABLE. (P.U.O.T)","ML",6]
[null,"B.I.10","CONSTRUCCIÓN DE CADENA DE DESPLANTE CD1, SECCION DE 15X20 CMS, ARMADA CON 4 VAR. #3  EST. #2 @ 20cm. CONCRETO F´C=200 KG/CM2. INCLUYE: IMPERMEABILIZANTE INTEGRAL TIPO FESTERGRAL A RAZON DE 2KG/SACO DE 50Kg.  EXCAVACIÓN,  CIMBRA, DESCIMBRADO, HABILITADO DE ARMADO CON APLICACIÓN DE DOS MANOS DE PINTURA ANTICORROSIVA ALKIDALICA EN EL ACERO DE REFUERZO, GANCHOS, TRASLAPES, AMARRES, DESPERDICIOS, MANO DE OBRA, HERRAMIENTA Y EQUIPO, LIMPIEZA Y RETIRO FUERA DE LA OBRA DEL MATERIAL NO RECUPERABLE. (P.U.O.T)","ML",57]
[null,"B.I.11","IMPERMEABILIZACIÓN A BASE DE DOS  CAPA DE VITUSOL EN PARED EXTERIOR DE CIMENTACIÓN,                 INCLUYE: APLICACIÓN, MATERIALES, ACARREOS, ELEVACIÓN, TRASLAPES, DESPERDICIO, MANO DE OBRA, EQUIPO Y HERRAMIENTA.","M2",150]
[null,"B.I.12","FILTRO DE GRAVA DE 15 CM. ESPESOR  DE 3/4\",  INCLUYE: ACARREOS DENTRO DE LA OBRA, INCORPORACION DE HUMEDAD, MANO DE OBRA, HERRAMIENTA Y EQUIPO NECESARIO. ","M3",9]
[]
[null,"B.II","ESTRUCTURAL"]
[null,"B.II.01","CASTILLOS (K-1)   DE 15x20cm. SECCION  CON 4 VAR. # 3 EST. # 2 A CADA 20 CMS, CONCRETO F'c=200 Kg/cm²,  INCLUYE:  APLICACIÓN DE DOS MANOS DE ANTICORROSIVO AMERCOAT EN EL ACERO, CIMBRADO, DESCIMBRADO, COLADO, VIBRADO, CURADO, MATERIALES, EQUIPO, HERRAMIENTA, MANO DE OBRA, LIMPIEZA Y TODO LO NECESARIO PARA LA CORRECTA EJECUCIÓN DE LOS TRABAJOS.","ML",38]
[null,"B.II.02","CASTILLOS AHOGADO (KA-1) EN BLOCK 15x20x40cm: CON UNA CELDA RELLENA Y REFORZADA CON VARILLA AHOGADA DE #3, CONCRETO F'c=150 Kg/cm²,  INCLUYE:  APLICACIÓN DE DOS MANOS DE ANTICORROSIVO AMERCOAT EN EL ACERO, CIMBRADO, DESCIMBRADO, COLADO, VIBRADO, CURADO, MATERIALES, EQUIPO, HERRAMIENTA, MANO DE OBRA, LIMPIEZA Y TODO LO NECESARIO PARA LA CORRECTA EJECUCIÓN DE LOS TRABAJOS.","ML",55.2]
[null,"B.II.03","CASTILLOS (K2)   DE 15x30cm. SECCION  CON 4 VAR. # 4 EST. # 2 A CADA 20 CMS, CONCRETO F'c=200 Kg/cm²,  INCLUYE:  APLICACIÓN DE DOS MANOS DE ANTICORROSIVO AMERCOAT EN EL ACERO, CIMBRADO, DESCIMBRADO, COLADO, VIBRADO, CURADO, MATERIALES, EQUIPO, HERRAMIENTA, MANO DE OBRA, LIMPIEZA Y TODO LO NECESARIO PARA LA CORRECTA EJECUCIÓN DE LOS TRABAJOS.","ML",82.8]
[null,"B.II.04","CASTILLOS (K3)   DE 15x40cm. SECCION  CON 4 VAR. # 4 EST. # 2 A CADA 20 CMS, CONCRETO F'c=200 Kg/cm²,  INCLUYE:  APLICACIÓN DE DOS MANOS DE ANTICORROSIVO AMERCOAT EN EL ACERO, CIMBRADO, DESCIMBRADO, COLADO, VIBRADO, CURADO, MATERIALES, EQUIPO, HERRAMIENTA, MANO DE OBRA, LIMPIEZA Y TODO LO NECESARIO PARA LA CORRECTA EJECUCIÓN DE LOS TRABAJOS.","ML",20]
[null,"B.II.05","CONSTRUCCION DE CADENA DE CERRAMIENTO CR1, SECCION DE 15X20 CMS, ARMADA CON 4VAR.   #3 EST. #2 @ 20cm. CONCRETO F´C=200 KG/CM2. INCLUYE: CIMBRA, DESCIMBRADO, HABILITADO DE ARMADO CON APLICACIÓN DE DOS MANOS DE PINTURA ANTICORROSIVA ALKIDALICA EN EL ACERO DE REFUERZO, GANCHOS, TRASLAPES, AMARRES, DESPERDICIOS, MANO DE OBRA, HERRAMIENTA Y EQUIPO, LIMPIEZA Y RETIRO FUERA DE LA OBRA DEL MATERIAL NO RECUPERABLE. (P.U.O.T)","ML",63]
[null,"B.II.06","COLUMNA  (CL-1)    A BASE DE MURO DE BLOCK, REFORZADO CON 4 VARILLAS  DEL #5 Ø AHOGADA EN CELDA DE BLOCK RELLENA DE CONCRETO F'C=100KG/CM². ,  INCLUYE:  RELLENO A BASE \nDE CASETON DE POLIETILENO, APLICACIÓN DE DOS MANOS DE ANTICORROSIVO AMERCOAT EN EL ACERO, CIMBRADO, DESCIMBRADO, COLADO, VIBRADO, CURADO, MATERIALES, EQUIPO, HERRAMIENTA, MANO DE OBRA, LIMPIEZA Y TODO LO NECESARIO PARA LA CORRECTA EJECUCIÓN DE LOS TRABAJOS.","ML",30]
[null,"B.II.07","CONSTRUCCIÓN DE FIRME DE CONCRETO DE 10cm.   ARMADA CON MALLA-LAC 6-6/8-8, F`C= 200 KG/CM2, INCLUYE: COLOCACION DE PLASTICO NEGRO DE POLIETILENO  CALIBRE 500, POLLOS O CALZAS, APLICACIÓN DE DOS MANOS DE PINTURA ANTICORROSIVA ALKIDALICA EN EL ACERO DE REFUERZOCIMBRADO, COLADO, VIBRADO, CURADO , DESCIMBRADO, MATERIALES, MANO DE OBRA, EQUIPO, HERRAMIENTA, LIMPIEZA Y TODO LO NECESARIO PARA LA CORRECTA EJECUCION DE LOS TRABAJOS.","M2",77]
[null,"B.II.08","CONSTRUCCIÓN DE LOSA  ALIGERADA DE 30cm. ESPESOR ,  ARMADA EN AMBOS SENTIDOS A BASE DE CASETÓN  DE POLIESTIRENO DE 60x60x25 CMS , CON  NERVADURAS DE 15x30cm. ARMADA CON 4 VAR. #3, EST. #2 @ 20cm , CON CAPA A COMPRESION DE 5 CMS ARMADA CON MALLA-LAC 6-6/10-10, F`C= 250 KG/CM2, INCLUYE: POLLOS O CALZAS, APLICACIÓN DE DOS MANOS DE PINTURA ANTICORROSIVA ALKIDALICA EN EL ACERO DE REFUERZOCIMBRADO, COLADO, VIBRADO, CURADO , DESCIMBRADO,HIDRATACION,  MATERIALES, MANO DE OBRA, EQUIPO, HERRAMIENTA, LIMPIEZA Y TODO LO NECESARIO PARA LA CORRECTA EJECUCION DE LOS TRABAJOS.","M2",12]
[null,"B.II.09","SUMINISTRO Y HABILITADO DE ACERO DE REFUERZO DE #4 PARA LOSA ,  INCLUYE: HABILITADO DE ARMADO CON APLICACIÓN DE DOS MANOS DE PINTURA ANTICORROSIVA ALKIDALICA EN EL ACERO DE REFUERZO, GANCHOS, TRASLAPES, AMARRES, DESPERDICIOS, MANO DE OBRA, HERRAMIENTA Y EQUIPO, LIMPIEZA Y RETIRO FUERA DE LA OBRA DEL MATERIAL NO RECUPERABLE. (P.U.O.T)","KG",14]
[null,"B.II.10","SUMINISTRO Y COLOCACIÓN DE ACERO DE REFUERZO DEL NO.3 ( 3/8\" ) FY = 4200 KG./CM2, INCLUYE: APLICACIÓN DE DOS MANOS DE PINTURA ANTICORROSIVA ALKIDALICA, HABILITADO, COLOCACIÓN, ACARREOS, AMARRES, GANCHOS, TRASLAPES, DESPERDICIOS, MATERIALES, MANO DE OBRA, HERRAMIENTA, EQUIPO Y TODO LO NECESARIO PARA SU CORRECTA EJECUCIÓN. P.U.O.T.","KG",60]
[null,"B.II.11","SUMINISTRO Y COLOCACIÓN DE ACERO DE REFUERZO DEL NO.4( 1/2\" ) FY = 4200 KG./CM2, INCLUYE: APLICACIÓN DE DOS MANOS DE PINTURA ANTICORROSIVA ALKIDALICA, HABILITADO, COLOCACIÓN, ACARREOS, AMARRES, GANCHOS, TRASLAPES, DESPERDICIOS, MATERIALES, MANO DE OBRA, HERRAMIENTA, EQUIPO Y TODO LO NECESARIO PARA SU CORRECTA EJECUCIÓN. P.U.O.T.","KG",20]
[null,"B.II.12","SUMINISTRO Y COLOCACIÓN DE ACERO DE REFUERZO DEL NO. 5 ( 5/8\" ) FY = 4200 KG./CM2, INCLUYE: APLICACIÓN DE DOS MANOS DE PINTURA ANTICORROSIVA ALKIDALICA, HABILITADO, COLOCACIÓN, ACARREOS, AMARRES, GANCHOS, TRASLAPES, DESPERDICIOS, MATERIALES, MANO DE OBRA, HERRAMIENTA, EQUIPO Y TODO LO NECESARIO PARA SU CORRECTA EJECUCIÓN. P.U.O.T.","KG",20]
[null,"B.II.13","SUMINISTRO Y COLOCACIÓN DE CIMBRA COMÚN EN UNA CARA DEL LOSA DE CIMENTACIÓN CON MADERA DE TRIPLAY DE PINO DE 1RA. DE 16 MM, INCLUYE: HABILITADO, TROQUELADO, TRABAJOS DE CIMBRADO Y DESCIMBRADO, MATERIALES, MANO DE OBRA, HERRAMIENTA, EQUIPO Y TODO LO NECESARIO PARA SU CORRECTA EJECUCIÓN. P.U.O.T.","M2",10]
[null,"B.II.14","SUMINISTRO Y  HABILITADO   DE VARILLA DEL NO. 2.  INCLUYE:APLICACIÓN DE DOS MANOS DE PINTURA ANTICORROSIVA AMERCOAT EN EL ACERO DE REFUERZO, MANO DE OBRA, HERRAMIENTA,, MATERIALES, EQUIPO Y HERRAMIENTA. (P.U.O.T.)","KG",20]
[null,"B.II.15","SUMINISTRO Y  HABILITADO   DE ANCLAS DE 1.40 DE LONGITUD Y 0.40 DE DOBLES  DE  VARILLA DEL NO. 4.  INCLUYE:APLICACIÓN DE DOS MANOS DE PINTURA ANTICORROSIVA AMERCOAT EN EL ACERO DE REFUERZO, MANO DE OBRA, HERRAMIENTA,, MATERIALES, EQUIPO Y HERRAMIENTA. (P.U.O.T.)","KG",21]
[null,"B.II.16","SUMINISTRO DE CONCRETO DE F'C=250 KG/CM2 DE RESISTENCIA CON ADITIVO INTEGRAL NORMA-NMX-C-155 PARA CONDICIONES DE EXPOSICION AMBIENTE MARINO CON COLOR INTEGRAL PROPORCION Y DOSIFICACION SOLICITADA POR SUPERVISION. INCLUYE:  COLADO, VIBRADO, DESCIMBRADO, CURADO DURANTE LOS PRIMEROS 7 DÍAS DESPUÉS DEL COLADO, EQUIPO, HERRAMIENTA, CONSUMIBLES,  MANO DE OBRA, VIGILANCIA Y CUIDADO DE CONCRETO POR 24 HORAS DESPUÉS DEL COLADO Y TODO LO NECESARIO PARA LA CORRECTA EJECUCIÓN DE LOS TRABAJOS. (P.U.O.T.) NOTA: EL LICITANTE DEBERA DE CONSIDERAR LAS PRUEBAS DE LABORATORIO RESPECTIVAS EFECTUADAS POR UN LABORATORIO EXTERNO AL MISMO Y PRESENTARSE AL MOMENTO DE REALIZAR EL TRAMITE PARA EL PAGO DE ESTIMACIONES.\n","M3",3]
[null,"B.II.17","CONSTRUCCIÓN DE LOSA DE  REMATE EN COLUMNAS 10cm. ESPESOR  ARMADA CON MALLA-LAC 6-6/10-10, F`C= 200 KG/CM2, INCLUYE: APLICACIÓN DE DOS MANOS DE PINTURA ANTICORROSIVA ALKIDALICA EN EL ACERO DE REFUERZOCIMBRADO, COLADO, VIBRADO, CURADO , DESCIMBRADO,HIDRATACION,  MATERIALES, MANO DE OBRA, EQUIPO, HERRAMIENTA, LIMPIEZA Y TODO LO NECESARIO PARA LA CORRECTA EJECUCION DE LOS TRABAJOS.","M2",3]
[]
[null,"B.III","ALBAÑILERIA Y ACABADOS"]
[null,"B.III.01","CONSTRUCCION DE MURO DE BLOCK DE 15 X 20 X 40 CMS, CONCRETO F´C= 40 KG/CM2, JUNTEADO CON MORTERO CEMENTO ARENA EN PROPP. 1:4, A UNA ALTURA MAXIMA DE  4.00 MT. INCLUYE: MANO DE OBRA, ANDAMIOS, HERRAMIENTA Y EQUIPO, Y TODO LO NECESARIO PARA LA CORRECTA EJECUCIÓN DE LOS TRABAJOS.  (P.U.O.T).","M2",195]
[null,"B.III.02","APLANADO DE MURO  CON MORTERO CEMENTO-ARENA PROPORCIÓN 1:4, ACABADO REPELLADO A REGLA Y NIVEL, TERMINADO FLOTEADO FINO, HASTA UNA ALTURA DE 4.00m,   INCLUYE: ANDAMIOS MATERIAL, HERRAMIENTA , EQUIPO Y  MANO DE OBRA.","M2",95]
[null,"B.III.03","APLANADO DE LOSA CON MORTERO CEMENTO-ARENA PROPORCIÓN 1:4, ACABADO REPELLADO A REGLA Y NIVEL, TERMINADO FLOTEADO FINO, INCLUYE: ANDAMIOS,  MATERIAL, HERRAMIENTA , EQUIPO Y  MANO DE OBRA.","M2",70]
[null,"B.III.04","BARRAS PARA LAVABOS DE 0.60M,   DE CONCRETO ARMADO DE 85 CMS DE ALTO, ARMADA CON VAR DE 3/8\" @ 20 CMS, CONCRETO F’C=150  KG/CM2, CON DALA DE CERRAMIENTO DE 4 VAR. DE 3/8\". E #2 @ 20CM,  INCLUYE: CUBIERTA DE GRANITO, ABERTURAS PARA EMPOTRAR 3 LAVABOS, AMARRE A CADENA,  MATERIALES, MANO DE OBRA, EQUIPO, HERRAMIENTA MENOR, LIMPIEZA Y TODO LO NECESARIO PARA LA CORRECTA EJECUCIÓN DE LOS TRABAJOS.","M2",{"$f":"2.36*2","v":4.72}]
[null,"B.III.05","SUMINISTRO Y COLOCACIÓN DE PISO A BASE DE LOSETA DE 60X60    MARCA: INTERCERAMIC,  MODELO:  HABITAT SMOKE , COLOCADO CON PEGAMARMOL CON JUNTA A HUESO. Y CORTE CON DISCO, INCLUYE: MATERIALES, MANO DE OBRA, EQUIPO, HERRAMIENTA, DESPERDICIOS, CONSUMIBLES, TRASLADOS Y TODO LO NECESARIO PARA LA CORRECTA EJECUCIÓN DE LOS TRABAJOS.","M2",60]
[null,"B.III.06","SUMINISTRO Y COLOCACIÓN DE AZULEJO MARCA INTERCERAMIC,MODELO: HABITAT SMOKE MATE DE 40X60CM, DE NIVEL DE PISO TERMINADO A 1.60 MTS , COLOCADO CON UNA JUNTA DE 3MM Y APLICACION DE ADHESIVO PEGAPISO Y CORTE CON DISCO, INCLUYE: MATERIALES, MANO DE OBRA, EQUIPO, HERRAMIENTA, DESPERDICIOS, CONSUMIBLES, TRASLADOS Y TODO LO NECESARIO PARA LA CORRECTA EJECUCIÓN DE LOS TRABAJOS.","M2",{"$f":"50*1.8","v":90}]
[null,"B.III.07","SUMINISTRO Y COLOCACIÓN DE  CENEFA EN MURO SECCIONADO  DE MARCA INTERCERAMIC DE 40 CMS D DE NIVEL 1.60 A 2.00 MTS DE AZULEJO MARCA INTERCETAMIC,MODELO HABITAT GRAPHITE,  COLOCADO CON UNA JUNTA DE 3MM Y APLICACION DE ADHESIVO PEGAPISO Y CORTE CON DISCO, INCLUYE: MATERIALES, MANO DE OBRA, EQUIPO, HERRAMIENTA, DESPERDICIOS, CONSUMIBLES, TRASLADOS Y TODO LO NECESARIO PARA LA CORRECTA EJECUCIÓN DE LOS TRABAJOS.","ML",50]
[null,"B.III.08","SUMINISTRO Y APLICACIÓN DE PINTURA VINÍLICA EN PLAFON  MARCA OSEL, CALIDAD  O SIMILAR, INCLUYE: LIMPIEZA Y PREPARACIÓN DE LA SUPERFICIE,  MATERIAL, HERRAMIENTA Y MANO DE OBRA.","M2",95]
[null,"B.III.09","SUMINISTRO Y APLICACIÓN DE PINTURA VINÍLICA EN MUROS INTERIORES  MARCA OSEL, CALIDAD  O SIMILAR, INCLUYE: LIMPIEZA Y PREPARACIÓN DE LA SUPERFICIE,  MATERIAL, HERRAMIENTA Y MANO DE OBRA.","M2",80]
[null,"B.III.10","SUMINISTRO Y APLICACIÓN DE PINTURA VINÍLICA EN MUROS EXTERIORES  MARCA OSEL, CALIDAD  O SIMILAR, INCLUYE: LIMPIEZA Y PREPARACIÓN DE LA SUPERFICIE,  MATERIAL, HERRAMIENTA Y MANO DE OBRA.","M2",20]
[null,"B.III.11","SUMINISTRO Y COLOCACIÓN DE PISO DE CONCRETO TERMINADO ESCOBILLADO FINO, INCLUYE: MATERIALES, MANO DE OBRA, EQUIPO, HERRAMIENTA, DESPERDICIOS, CONSUMIBLES, TRASLADOS Y TODO LO NECESARIO PARA LA CORRECTA EJECUCIÓN DE LOS TRABAJOS.","M2",{"$f":"16","v":16}]
[null,"B.III.12","SUMINISTRO Y COLOCACIÓN DE CANTERA RUGOSA DE 1\" ESPESOR, COLOR BEIGE EN FACHADA, (LA MUESTRA DEBERA SER AUTIRIZADO POR SUPERVISION) JUNTA A HUESO, PEGADA CON POLIMOR, INCLUYE: CAREADO, CORTE CON DISCO, DESPERDICIOS, MANO DE OBRA, HERRAMIENTA, EQUIPO, ANDAMIOS Y TODO LO NECESARIO PARA LA CORRECTA EJECUCIÓN DE LOS TRABAJOS.","M2",10]
[null,"B.III.13","SUMINISTRO Y COLOCACIÓN DE  CANTERA PULIDA DE 1\" ESPESOR, COLOR BEIGE, (LA MUESTRA DEBERA SER AUTIRIZADO POR SUPERVISION) JUNTA A HUESO, PEGADA CON POLIMOR, INCLUYE: CAREADO, CORTE CON DISCO, DESPERDICIOS, MANO DE OBRA, HERRAMIENTA, EQUIPO, ANDAMIOS Y TODO LO NECESARIO PARA LA CORRECTA EJECUCIÓN DE LOS TRABAJOS.","M2",90]
[null,"B.III.14","SUMINISTRO Y COLOCACIÓN DE MOLDURA  TIPO PECHO DE PALOMA DE 40x13cm DE SECCIÓN PERIMETRAL A  BASE CANTERA COLORE BEIGE  (VER DETALLE DM-1),   PEGADO CON MORTERO CEM.ARE-PEGAMARMOL, : INCLUYE:  CORTE ,PEGADO, ANDAMIOS, MATERIALES, MANO DE OBRA, EQUIPO, HERRAMIENTA MENOR Y TODO LO NECESARIO PARA LA CORRECTA EJECUCION DE LOS TRABAJOS.","ML",32]
[null,"B.III.15","SUMINISTRO Y COLOCACIÓN DE MOLDURA  TIPO PECHO DE PALOMA DE 15x12cm DE SECCIÓN PERIMETRAL A  BASE CANTERA COLORE BEIGE  (VER DETALLE DT-2) , PEGADO CON MORTERO CEM.ARE-PEGAMARMOL, : INCLUYE:  CORTE ,PEGADO, ANDAMIOS, MATERIALES, MANO DE OBRA, EQUIPO, HERRAMIENTA MENOR Y TODO LO NECESARIO PARA LA CORRECTA EJECUCION DE LOS TRABAJOS.","ML",30]
[null,"B.III.16","SUMINISTRO Y COLOCACIÓN DE MOLDURA RECTANGULAR SECCION DE 5 X 7cm. A BASE  DE CANTERA  COLORE BEIGE DE 1\" ESPESOR, (VER DETALLE DT-3)  PEGADO CON MORTERO CEM.ARE-PEGAMARMOL, : INCLUYE:  CORTE ,PEGADO, ANDAMIOS, MATERIALES, MANO DE OBRA, EQUIPO, HERRAMIENTA MENOR Y TODO LO NECESARIO PARA LA CORRECTA EJECUCION DE LOS TRABAJOS.","ML",{"$f":"7.5+4.5","v":12}]
[null,"B.III.17","SUMINISTRO Y COLOCACIÓN DE MOLDURA GUARDAPOLVO  DE 20x5cm DE SECCIÓN PERIMETRAL A  BASE CANTERA COLORE BEIGE  (VER DETALLE DT-4) , PEGADO CON MORTERO CEM.ARE-PEGAMARMOL, : INCLUYE:  CORTE ,PEGADO, ANDAMIOS, MATERIALES, MANO DE OBRA, EQUIPO, HERRAMIENTA MENOR Y TODO LO NECESARIO PARA LA CORRECTA EJECUCION DE LOS TRABAJOS.","ML",{"$f":"10.3+4.5","v":14.8}]
[null,"B.III.18","SUMINISTRO Y COLOCACIÓN DE MOLDURA (ARCOS) DE 15x3cm DE SECCIÓN PERIMETRAL A  BASE CANTERA COLORE BEIGE  (VER DETALLE DT-5) , PEGADO CON MORTERO CEM.ARE-PEGAMARMOL, : INCLUYE:  CORTE ,PEGADO, ANDAMIOS, MATERIALES, MANO DE OBRA, EQUIPO, HERRAMIENTA MENOR Y TODO LO NECESARIO PARA LA CORRECTA EJECUCION DE LOS TRABAJOS.","ML",{"$f":"7.5*6","v":45}]
[null,"B.III.19","SUMINISTRO Y COLOCACIÓN DE MOLDURA  TIPO PECHO DE PALOMA DE 25x10cm DE SECCIÓN PERIMETRAL A  BASE CANTERA COLORE BEIGE  (VER DETALLE DT-6) , PEGADO CON MORTERO CEM.ARE-PEGAMARMOL, : INCLUYE:  CORTE ,PEGADO, ANDAMIOS, MATERIALES, MANO DE OBRA, EQUIPO, HERRAMIENTA MENOR Y TODO LO NECESARIO PARA LA CORRECTA EJECUCION DE LOS TRABAJOS.","ML",17]
[null,"B.III.20","SUMINISTRO Y COLOCACIÓN DE MOLDURA  TIPO PECHO DE PALOMA DE 11x10cm DE SECCIÓN PERIMETRAL A  BASE CANTERA COLORE BEIGE  (VER DETALLE DT-7) , PEGADO CON MORTERO CEM.ARE-PEGAMARMOL, : INCLUYE:  CORTE ,PEGADO, ANDAMIOS, MATERIALES, MANO DE OBRA, EQUIPO, HERRAMIENTA MENOR Y TODO LO NECESARIO PARA LA CORRECTA EJECUCION DE LOS TRABAJOS.","ML",17]
[]
[null,"B.III.","INSTALACION HIDRAULICA"]
[null,"B.IV.01","SALIDA HIDRAULICA  DE PVC Y CPVC,  DE DIAMETRO DE 1/2\" INC. MATERIAL Y MANO DE OBRA, CONEXIONES, PRUEBAS,  EQUIPO Y HERRAMIENTA MENOR, LIMPIEZA Y TODO LO NECESARIO PARA LA CORRECTA EJECUCION DE LOS TRABAJOS.","SAL",8]
[null,"B.IV.02","SALIDA HIDRAULICA  DE PVC Y CPVC,  DE DIAMETRO DE 1 1/2\" INC. MATERIAL Y MANO DE OBRA, CONEXIONES, PRUEBAS,  EQUIPO Y HERRAMIENTA MENOR, LIMPIEZA Y TODO LO NECESARIO PARA LA CORRECTA EJECUCION DE LOS TRABAJOS.","SAL",7]
[null,"B.IV.03","SUMINISTRO Y ALIMENTACIÓN HIDRÁULICA TUBERÍA DE PVC  DE 1/2\", INCLUYE:  CODOS, TEE, REDUCCIONES, DEMOLICIONES MENORES, RESANES, ACCESORIOS, CONEXIÓNES DE TODO TIPO, SOLADAURA, ADAPTACIONES NECESARIAS, MANO DE OBRA, EQUIPO, HERRAMIENTA Y TODO LO NECESARIO PARA LA CORRECTA EJECUCION DE LOS TRABAJOS.","ML",10.5]
[null,"B.IV.04","SUMINISTRO Y ALIMENTACIÓN HIDRÁULICA TUBERÍA DE PVC  DE 3/4\", INCLUYE:  CODOS, TEE, REDUCCIONES, DEMOLICIONES MENORES, RESANES, ACCESORIOS, CONEXIÓNES DE TODO TIPO, SOLADAURA, ADAPTACIONES NECESARIAS, MANO DE OBRA, EQUIPO, HERRAMIENTA Y TODO LO NECESARIO PARA LA CORRECTA EJECUCION DE LOS TRABAJOS.","ML",37.200000000000003]
[null,"B.IV.05","SUMINISTRO Y ALIMENTACIÓN HIDRÁULICA TUBERÍA DE PVC  DE 1-1/2\", INCLUYE: CODOS, TEE, REDUCCIONES, DEMOLICIONES MENORES, RESANES, ACCESORIOS, CONEXIÓNES DE TODO TIPO, SOLADAURA, ADAPTACIONES NECESARIAS, MANO DE OBRA, EQUIPO, HERRAMIENTA Y TODO LO NECESARIO PARA LA CORRECTA EJECUCION DE LOS TRABAJOS.","ML",4.5]
[null,"B.IV.06","SUMINISTRO E INSTALACIÓN DE VALVULA DE CONTROL CHECK INCLUYE:MANIOBRAS, MANO DE OBRA, MATERIALES, EQUIPO, HERRAMIENTA, LIMPIEZA Y TODO LO NECESARIO PARA LA CORRECTA REALIZACIÓN DE LOS TRABAJOS.","PZA",1]
[null,"B.IV.07","SUMINISTRO E INSTALACIÓN DE REGISTRO PREFABRICADO DE CONCRETO POLIMERICO , INCLUYE: MANIOBRAS, MANO DE OBRA, MATERIALES, EQUIPO, HERRAMIENTA, LIMPIEZA Y TODO LO NECESARIO PARA LA CORRECTA REALIZACIÓN DE LOS TRABAJOS.","PZA",2]
[null,"B.IV.08","SUMINISTRO E INSTALACIÓN DE LLAVE DE NARIZ PARA MANGUERA CON ROSCA 1/2 PUGADAS, INCLUYE: MANIOBRAS, MANO DE OBRA, MATERIALES, EQUIPO, HERRAMIENTA, LIMPIEZA Y TODO LO NECESARIO PARA LA CORRECTA REALIZACIÓN DE LOS TRABAJOS.","PIEZA",2]
[null,"B.IV.09","      SUMINISTRO Y COLOCACION DE CISTERNA NODRIZA DE 5000 LTS  MARCA ROTOPLAS INCLUYE: EXCAVACIÓN EN PRESENCIA DE AGUA, CONFINAMIENTO, RELLENO, COMPACTACIÓN, ACCESORIOS DE SISTEMA , INSTALACIÓN HIDRAULICA, TRASLADO, ACARREO, CONEXIONES, MATERIALES, MANO DE OBRA, EQUIPO, HERRAMIENTA, CONSUMIBLES Y TODO LO NECESARIO PARA LA CORRECTA EJECUCIÓN DE LOS TRABAJOS","PZA",1]
[null,"B.IV.10","SUMINISTRO Y COLOCACIÓN DE EQUIPO HIDRONEUMATICO MARCA EVANS CAP. 150 LTS HYDROMAC TIPO VERTICAL DE 1 HP   INCLUYE: FIJACION SUJECION, CONEXIONES, MATERIALES, MANO DE OBRA, EQUIPO, HERRAMIENTA, CONSUMIBLES Y TODO LO NECESARIO PARA LA CORRECTA EJECUCIÓN DE LOS TRABAJOS","PIEZA",1]
[]
[null,"B.IV. ","INSTALACION SANITARIA"]
[null,"B.V.01","SALIDA SANITARIA  DE PVC DE DIAMETRO DE 2\" INCLUYE: MATERIAL Y MANO DE OBRA, CONEXIONES, PRUEBAS,  EQUIPO Y HERRAMIENTA MENOR, LIMPIEZA Y TODO LO NECESARIO PARA LA CORRECTA EJECUCION DE LOS TRABAJOS.","SAL",11]
[null,"B.V.02","SALIDA SANITARIA  DE PVC CED DE DIAMETRO DE 4\" INCLUYE: CODOS, YEE, REDUCCIONES, MATERIAL Y MANO DE OBRA, CONEXIONES, PRUEBAS,  EQUIPO Y HERRAMIENTA MENOR, LIMPIEZA Y TODO LO NECESARIO PARA LA CORRECTA EJECUCION DE LOS TRABAJOS.","SAL",10]
[null,"B.V.03","SUMINISTRO E INSTALACION DE TUBERIA DE PVC DE 2\" CED. 40 USO SANITARIO INCLUYE: CODOS, YEE, REDUCCIONES,TUBERIA DE PVC DE 2\", LEVES DEMOLICIONES, RESANES, ACCESORIOS DE CONEXIÓN, CODOS, ADAPTACIONES NECESARIAS,  MANO DE OBRA, EQUIPO, HERRAMIENTA Y TODO LO NECESARIO PARA LA CORRECTA EJECUCION DE LOS TRABAJOS.","ML",27]
[null,"B.V.04","SUMINISTRO E INSTALACION DE TUBERIA DE PVC DE  4\" CED. 40 USO SANITARIO, INCLUYE: CODOS, YEE, REDUCCIONES, TUBERIA DE PVC DE  4\", LEVES DEMOLICIONES, RESANES, ACCESORIOS DE CONEXIÓN, CODOS, ADAPTACIONES NECESARIAS,  MANO DE OBRA, EQUIPO, HERRAMIENTA Y TODO LO NECESARIO PARA LA CORRECTA EJECUCION DE LOS TRABAJOS.","ML",27]
[null,"B.V.05","REGISTRO SANITARIO DE 0.40X0.60X0.90M A BASE DE BLOCK TIPO COMUN FIRME DE 8CM DE ESPESOR FC=150KG/CM2, APLANADO PULIDO EN INTERIOR Y REPELLADO EN EXTERIOR. INCLUYE EXCAVACION A MANO, MARCO,CONTRA MARCO DE HERRERIA TAPA DE CONCRETO,IMPERMEBILZANTE VAPORTITE 550 Y TODO LO NECESARIO PARA SU CORRECTA EJECUCION, P.U.O.T.","PZA",2]
[null,"B.V.06","SUMINISTRO Y COLOCACIÓN TAZA PARA FLUXÓMETRO NAO, TRAMPA EXPUESTA, MARCA HELVEX, MODELO  TZF-NAO. INCLUYE: FLUXÓMETRO DE MANIJA  Y ENTRADA SUPERIOR PARA SPUD DE 38 MM MODELO 110-38-3.5 , MATERIALES, MANO DE OBRA, EQUIPO, HERRAMIENTA Y TODO LO NECESARIO PARA LA CORRECTA EJECUCIÓN DE LOS TRABAJOS.","PZA",7]
[null,"B.V.07","SUMINISTRO Y COLOCACIÓN DE MINGITORIO MOJAVE TIPO CASCADA HELVEX MOD. MG MOJAVE, COLOR BLANCO, INCLUYE: FLUXÓMETRO MOD. 285-19-1, MATERIALES, MANO DE OBRA, EQUIPO, HERRAMIENTA Y TODO LO NECESARIO PARA LA CORRECTA EJECUCIÓN DE LOS TRABAJOS.","PZA",3]
[null,"B.V.08","SUMINISTRO Y COLOCACIÓN DE LAVABO RECTANGULAR DE SOBRE CUBIERTA CON REBOSADERO MARCA HELVEX MARCUS MOD. HE-LV-3 COLOR BLANCO, INCLUYE: MEZCLADORA CON LLAVE ECONOMIZADORA MODELO: TV-105 CROMO, MARCA HELVEX, MATERIALES, MANO DE OBRA, EQUIPO, HERRAMIENTA Y TODO LO NECESARIO PARA LA CORRECTA EJECUCIÓN DE LOS TRABAJOS.","PZA",6]
[null,"B.V.09","CONSTRUCCION  DE TARJA. A BASE  DE BLOCK DE 10X20X40 CMS CON LOSA DE CONCRETO F´C=200 KG/CMS ARMADA CON MALLA LAC 6-6/10-10.  CON ACABADO FINAL PULIDO. MODELO: INCLUYE: MANO DE OBRA, EQUIPO, MATERIALES Y HERRAMIENTA Y TODO LO NECESARIO PARA LA CORRECTA EJECUCIÓN DE LOS TRABAJOS, P.U.O.T. (VER GUIAS MECÁNICAS)","PZA",1]
[null,"B.V.10","         SUMINISTRO Y COLOCACIÓN DE CONTENEDOR DE BASURA PLÁSTICO, MOD. BOG COLOR NEGRO DE 0.36X0.26X0.39 MTS. MARCA SWIPE INCLUYE: MANO DE OBRA, EQUIPO, MATERIALES Y HERRAMIENTA Y TODO LO NECESARIO PARA LA CORRECTA EJECUCIÓN DE LOS TRABAJOS, P.U.O.T. (VER GUIA MECÁNICA)","PZA",14]
[null,"B.V.11","         SUMINISTRO E INSTALACIÓN DE JUEGO DE  BARRAS DE SEGURIDAD RECTA SATINADA . INCLUYE: DOS BARRAS , MANO DE OBRA, EQUIPO, MATERIALES Y HERRAMIENTA Y TODO LO NECESARIO PARA LA CORRECTA EJECUCIÓN DE LOS TRABAJOS, P.U.O.T. (VER GUIA MECÁNICA)","JUEGO",2]
[null,"B.V.12","SUMINISTRO Y COLOCACIÓN DE DOSIFICADORA DE JABÓN LÍQUIDO MANUAL ARTICULO: 560000, MARCA TORK, INCLUYE: MATERIALES, MANO DE OBRA, EQUIPO, HERRAMIENTA Y TODO LO NECESARIO PARA LA CORRECTA EJECUCIÓN DE LOS TRABAJOS.","PZA",4]
[null,"B.V.13"," SUMINISTRO Y COLOCACIÓN DE DESPACHADOR DE TOALLA EN ROLLO PRECORTE  MODELO: AZUR AG50000, MARCA JOFEL , INCLUYE: MATERIALES, MANO DE OBRA, EQUIPO, HERRAMIENTA Y TODO LO NECESARIO PARA LA CORRECTA EJECUCIÓN DE LOS TRABAJOS.","PZA",2]
[null,"B.V.14"," SUMINISTRO Y COLOCACIÓN DE SECADOR DE MANOS CON SENSOR ELECTRONICO MARCA HELVEX MOD. MB-1012, INCLUYE: MATERIALES, MANO DE OBRA, EQUIPO, HERRAMIENTA Y TODO LO NECESARIO PARA LA CORRECTA EJECUCIÓN DE LOS TRABAJOS.","PZA",2]
[null,"B.V.15"," SUMINISTRO Y COLOCACIÓN DE CAMBIADOR DE PAÑALES HORIZONTAL DE 406 X 457 X 870 MM MODELO: AY10000 MARCA: JOFEL , INCLUYE: MATERIALES, MANO DE OBRA, EQUIPO, HERRAMIENTA Y TODO LO NECESARIO PARA LA CORRECTA EJECUCIÓN DE LOS TRABAJOS.","PZA",1]
[null,"B.V.16"," SUMINISTRO Y COLOCACIÓN DE DISPENSADOR DE PAPEL HIGIÉNICO ALTERA MAXI TRANSPARENTE, MARCA JOFEL MODELO: Ph52310 , MARCA JOFEL , INCLUYE: MATERIALES, MANO DE OBRA, EQUIPO, HERRAMIENTA Y TODO LO NECESARIO PARA LA CORRECTA EJECUCIÓN DE LOS TRABAJOS.","PZA",7]
[null,"B.V.17"," SUMINISTRO Y COLOCACIÓN DE ESPEJO DE 60X350 CM DE 3 MM. DE ESPESOR CON SOPORTE RANURADO CON CANAL DE 3 MM. , INCLUYE: MATERIALES, MANO DE OBRA, EQUIPO, HERRAMIENTA Y TODO LO NECESARIO PARA LA CORRECTA EJECUCIÓN DE LOS TRABAJOS.","PZA",2]
[null,"B.V.18"," SUMINISTRO Y COLOCACIÓN DE COLADERA DE PISO CON BOCA DE REJILLA MODELO 24 MARCA HELVEX. INCLUYE: MATERIALES, MANO DE OBRA, EQUIPO, HERRAMIENTA Y TODO LO NECESARIO PARA LA CORRECTA EJECUCIÓN DE LOS TRABAJOS.","PZA",3]
[]
[null,"B.VI.","CANCELERIA Y HERRERIA"]
[null,"B.VI.01","FABRICACIÓN E INSTALACION DE PUERTA  DE 1.20 x 2.10m  ( PH-01 ) DE ACERO ARMADA A BASE DE CONTRAMARCO CON PERFIL PUERTA TIPO M-600 CAL-20( 1.7Kg/ml) Y MARCO CON PERFIL P-400 CAL-20, PERFIL PORTAVIDRIOS 154, CAL-20,.  CON VIDRIO FILTRASOL DE 6MM EN LA PARTE SUPERIOR , APLICACION DE DOS MANOS DE PINTURA ANTICORROSIVA COMO ACABADO BASE Y ACABADO FINAL DOS MANOS DE PINTURA AUTOMOTRIZ, COLOR   SPECKLE BROWN O SIMILAR EN CALIDAD, INCLUYE: BISAGRAS DE ACERO PHILIPS , CONECTORES DE 50 CM  HERRALUM MOD 2222 DE ACERO INOXIDABLE, HERRAJES, CHAPA AGARRADERAS, RECORTES, ELEMENTOS DE FIJACIÓN, MATERIALES, SELLADOR, CONSUMIBLES, LIMPIEZA, MANO DE OBRA Y TODO LO NECESARIO PARA LA CORRECTA EJECUCIÓN DE LOS TRABAJOS.","PZA",2]
[null,"B.VI.02","FABRICACIÓN E INSTALACION DE PUERTA  DE 1.50 x 2.10m  ( PH-02 ) DE ACERO ARMADA A BASE DE CONTRAMARCO CON PERFIL PUERTA TIPO M-600 CAL-20( 1.7Kg/ml) Y MARCO CON PERFIL P-400 CAL-20, PERFIL PORTAVIDRIOS 154, CAL-20,.  CON VIDRIO FILTRASOL DE 6MM EN LA PARTE SUPERIOR , APLICACION DE DOS MANOS DE PINTURA ANTICORROSIVA COMO ACABADO BASE Y ACABADO FINAL DOS MANOS DE PINTURA AUTOMOTRIZ, COLOR   SPECKLE BROWN O SIMILAR EN CALIDAD, INCLUYE: BISAGRAS DE ACERO PHILIPS , CONECTORES DE 50 CM  HERRALUM MOD 2222 DE ACERO INOXIDABLE, HERRAJES, CHAPA AGARRADERAS, RECORTES, ELEMENTOS DE FIJACIÓN, MATERIALES, SELLADOR, CONSUMIBLES, LIMPIEZA, MANO DE OBRA Y TODO LO NECESARIO PARA LA CORRECTA EJECUCIÓN DE LOS TRABAJOS.","PZA",1]
[null,"B.VI.03","FABRICACIÓN E INSTALACION DE VENTANA ABATISTA  DE 1.30 x 0.65m  ( VC-01 ) DE ACERO ARMADA A BASE DE CONTRAMARCO CON PERFIL PUERTA TIPO M-600 CAL-20( 1.7Kg/ml) Y MARCO CON PERFIL P-400 CAL-20, PERFIL PORTAVIDRIOS 154, CAL-20,.  CON VIDRIO FILTRASOL DE 6MM EN LA PARTE SUPERIOR , APLICACION DE DOS MANOS DE PINTURA ANTICORROSIVA COMO ACABADO BASE Y ACABADO FINAL DOS MANOS DE PINTURA AUTOMOTRIZ, COLOR   SPECKLE BROWN O SIMILAR EN CALIDAD, INCLUYE: BISAGRAS DE ACERO PHILIPS , CONECTORES DE 50 CM  HERRALUM MOD 2222 DE ACERO INOXIDABLE, HERRAJES, CHAPA AGARRADERAS, RECORTES, ELEMENTOS DE FIJACIÓN, MATERIALES, SELLADOR, CONSUMIBLES, LIMPIEZA, MANO DE OBRA Y TODO LO NECESARIO PARA LA CORRECTA EJECUCIÓN DE LOS TRABAJOS.","PZA",4]
[null,"B.VI.04","FABRICACIÓN E INSTALACION DE VENTANA CORREDIZA  DE 1.50 x 0.60m  ( VC-02 ) DE ACERO ARMADA A BASE DE CONTRAMARCO CON PERFIL PUERTA TIPO M-600 CAL-20( 1.7Kg/ml) Y MARCO CON PERFIL P-400 CAL-20, PERFIL PORTAVIDRIOS 154, CAL-20,.  CON VIDRIO FILTRASOL DE 6MM EN LA PARTE SUPERIOR , APLICACION DE DOS MANOS DE PINTURA ANTICORROSIVA COMO ACABADO BASE Y ACABADO FINAL DOS MANOS DE PINTURA AUTOMOTRIZ, COLOR   SPECKLE BROWN O SIMILAR EN CALIDAD, INCLUYE: BISAGRAS DE ACERO PHILIPS , CONECTORES DE 50 CM  HERRALUM MOD 2222 DE ACERO INOXIDABLE, HERRAJES, CHAPA AGARRADERAS, RECORTES, ELEMENTOS DE FIJACIÓN, MATERIALES, SELLADOR, CONSUMIBLES, LIMPIEZA, MANO DE OBRA Y TODO LO NECESARIO PARA LA CORRECTA EJECUCIÓN DE LOS TRABAJOS.","PZA",2]
[null,"B.VI.05","FABRICACIÓN E INSTALACION DE MAMPARA DIVISORIA DE SANITARIO EN SANITARIO DE MUJERES Y HOMBRES MARCA SANILOCK LINEA STANDAR 4200.HECHAS A BASE DE LAMINA DE ACERO CAL. 22 GALVANIZADA, BONDERIZADA ACABADO FINAL ESMALTADO EN COLOR ARENA PINTURA BASE EPOXI-POLIESTER \"HIBRIDO\" APLICADA ELECTROSTATICAMENTE SOBRE LA SUPERFICIE Y HORNEADA.HERRAJES DE ACERO INOXIDABLE TIPO 304, ACABADO ESPEJO, BISAGRAS CAL. 3/16\" Y LOS DEMAS HERRAJES DE CAL 12,INCLUYE: INSTALACION,,ACCESORIOS DE FIJACIÓN HERRAMIENTA Y MANO DE OBRA. \n","LOTE",1]
[null,"B.VI.06","SUMINISTRO Y COLOCACIÓN DE TORNIQUETE DOBLE CON ALTURA COMPLETA MOD. DG 912 CON DIMENSIONES DE 1.50 M. DE ANCHO Y 2.20 M. DE ALTURA. ELECTROMECÁNICO BIDIRECCIONAL, FABRICADO EN ACERO INOXIDABLE CALIBRE 16 TIPO 304, CUENTA CON UN ROTOR DE 3 ASPAS A 120º. INCLUYE: HERRAJES,  AGARRADERAS, RECORTES, ELEMENTOS DE FIJACIÓN, MATERIALES, SELLADOR, CONSUMIBLES, LIMPIEZA, MANO DE OBRA Y TODO LO NECESARIO PARA LA CORRECTA EJECUCIÓN DE LOS TRABAJOS.","PZA",1]
[null,"B.VI.07","SUMINISTRO Y COLOCACIÓN DE PUERTA DE CORTESIA CON DIMENSIONES DE 1.00 M X 2.03 M DE ALTO, FABRICADA DE ACERO INOXIDABLE, INCLUYE: HERRAJES, CHAPA AGARRADERAS, RECORTES, ELEMENTOS DE FIJACIÓN, MATERIALES, SELLADOR, CONSUMIBLES, LIMPIEZA, MANO DE OBRA Y TODO LO NECESARIO PARA LA CORRECTA EJECUCIÓN DE LOS TRABAJOS.","PZA",1]
[null,"B.VI.08","SUMINISTRO E INSTALACIÓN DE MONEDERO ELECTRÓNICO QUE RETORNA CAMBIO (PROGRAMABLE), RELEVADOR, GABINETE EN ACERO INOXIDABLE, COFRE RECOLECTOR DE MONEDAS Y CHAPAS BANCARIAS, INCLUYE:  HERRAJES,  AGARRADERAS, RECORTES, ELEMENTOS DE FIJACIÓN, MATERIALES, SELLADOR, CONSUMIBLES, LIMPIEZA, MANO DE OBRA Y TODO LO NECESARIO PARA LA CORRECTA EJECUCIÓN DE LOS TRABAJOS.","PZA",1]
[null,"B.VI.09","FABRICACION DE PERGOLADO A BASE MADERA DE PINO DE 1RA CONFORMADO POR TRAVESAÑOS  DE 6\"X8\"X1.65 MTS, COLOCADO @38cm. , ACABADO EN TINTAS COLOR NOGAL, TRATADA PARA AMBIENTES MARINO CON BARNIZ. EMPOTRADO EN MUROS CON VARILLA DE 3/8\"  INCLUYE:  MATERIALES, MANO DE OBRA, EQUIPO Y HERRAMIENTA MENOR, LIMPIEZA Y TODO LO NECESARIO PARA LA CORRECTA EJECUCIÓN DE LOS TRABAJOS.","LOTE",1]
[]
[]
[null,"B.VII.","INSTALACIÓN ELECTRICA"]
[null,"B.VII.01","LUMINARIA CIRCULAR EN TECHO   TIPO LED DE 22.5 cm. Ø , MARCA PHILCOPLUS, LINEA DOWNLIGHTS, CODIGO 51647 LUZ NEUTRA , LED DE 20W, 4100 K, 1650lm.,  \n  INCLUYE: INSTALACIÓN, CONEXION, PRUEBA DE PUESTA EN OPERACION, P.U.O.T. MANO DE OBRA, HERRAMIENTA Y EQUIPO, ASI COMO TODO LO NECESARIO PARA LA CORRECTA EJECUCIÓN DE LOS TRABAJOS.","PZA",14]
[null,"B.VII.02"," LUMINARIA  TIPO LED DE 30x120cm MARCA PHILCOPLUS LINEA PANELES, CODIGO 51661 LUZ DE DIA ,  LED DE 40W, 6500 K, 3250lm., INCLUYE: INSTALACIÓN, CONEXION, PRUEBA DE PUESTA EN OPERACION, P.U.O.T. MANO DE OBRA, HERRAMIENTA Y EQUIPO, ASI COMO TODO LO NECESARIO PARA LA CORRECTA EJECUCIÓN DE LOS TRABAJOS.","PZA",2]
[null,"B.VII.03","LUMINARIA CIRCULAR EN TECHO   TIPO LED DE 9 cm. Ø , MARCA PHILCOPLUS,  LINEA DOWNLIGHTS,  CODIGO 51677  LUZ NEUTRA ,  LED DE 6W, 3000 K, 500lm.,\n,  INCLUYE: INSTALACIÓN, CONEXION, PRUEBA DE PUESTA EN OPERACION, P.U.O.T. MANO DE OBRA, HERRAMIENTA Y EQUIPO, ASI COMO TODO LO NECESARIO PARA LA CORRECTA EJECUCIÓN DE LOS TRABAJOS.","PZA",8]
[null,"B.VII.04","LUMINARIA EXTERIOR DE SOBREPONER TIPO SPOT 3.75W,   CON 03 LEDS , MARCA VENTOR, MODELO SCOPE IL8486, 110v-220v,  EN ALUMINIO ANODIZADO + TERRA  . PROTECTOR CRISTAL , FIJADO EN BASE DE CONCRETO . COLOR DE LUZ \"A\" AMBAR 2700°K , OPTICA \"D\" DIFUSA 36°. ,  INCLUYE: INSTALACIÓN, CONEXION, PRUEBA DE PUESTA EN OPERACION, P.U.O.T. MANO DE OBRA, HERRAMIENTA Y EQUIPO, ASI COMO TODO LO NECESARIO PARA LA CORRECTA EJECUCIÓN DE LOS TRABAJOS.","PZA",5]
[null,"B.VII.05","LUMINARIA EXTERIOR DE EMPOTRAR EN PISO TIPO SPOT 20W,   CON 12 LEDS , MARCA VENTOR, MODELO NIKOLA IL6101, CIRCULAR , 110v-220v,  EN ACERO INAXIDABLE . PROTECTOR CRISTAL ,IP67  COLOR DE LUZ \"A\" AMBAR  , OPTICA \"D\" DIFUSA 60°,  INCLUYE: INSTALACIÓN, CONEXION, PRUEBA DE PUESTA EN OPERACION, P.U.O.T. MANO DE OBRA, HERRAMIENTA Y EQUIPO, ASI COMO TODO LO NECESARIO PARA LA CORRECTA EJECUCIÓN DE LOS TRABAJOS.","PZA",4]
[null,"B.VII.06","LUMINARIA TIPO ARBORTANTE  MARCA HAMPTON BAY,  MODELO 7002, ACERO PINTADO , PANTALLA DE VIDRIO TRANSPARENTE 120v. COLOR NEGRO LED DE 50cm, ALTURA  INCLUYE: INSTALACIÓN, CONEXION, PRUEBA DE PUESTA EN OPERACION, P.U.O.T. MANO DE OBRA, HERRAMIENTA Y EQUIPO, ASI COMO TODO LO NECESARIO PARA LA CORRECTA EJECUCIÓN DE LOS TRABAJOS.","PZA",5]
[null,"B.VII.07","      REGISTROS DE FIBRA DE VIDRIO CON TAPA Y CONTRAMARCO DE CONCRETO POLIMERICO REFORZADO  CON FIBRA DE VIDRIO CON DIMENSIONES  33X 33 X 40 MTS, CUERPO DEL REGISTRO DE FIBRA DE VIDRIO  CON UN ESPESOR DE 1/8\" PERNOS DE ACERO INOXIDABLE DE 1/8\" PARA EL MANEJO DE LA TAPA PARA ALUMBRADO, EXCAVACIÓN, COMPACTACIÓN DE FONDO, RELLENO, CAMA DE GRAVA, NOMENCLATURA SEGÚN DISEÑO, MANO DE OBRA, HERRAMIENTA, EQUIPO, ASI COMO TODO LO NECESARIO PARA LA CORRECTA EJECUCIÓN DE LOS TRABAJOS.","PZA",1]
[null,"B.VII.08","SUMINISTRO E INSTALACIÓN DE  FOTOCELDA TIPO OJILO PARA CAJA 2 X 4, 127V/1200W; INCLUYE : NIVELACIÓN, RANURADO, HERRAJES, CONEXIÓN, CONECTORES TIPO CAPUCHA, TERMINALES PONCHABLE TIPO OJILLO, CINTA AISLANTE SUPER 33 3M,PRUEBAS DE FUNCIONAMIENTO,  ETIQUETADO CON LEYENDA DE SEGURIDAD, ACABADOS FINALES, MANO DE OBRA, HERRAMIENTA Y TODO LO NECESARIO PARA LA CORRECTA EJECUCIÓN DE LOS TRABAJOS.","PZA.",1]
[null,"B.VII.09","SUMINSTRO E INSTALACIÓN DE INTERRUPTOR TERMOMAGNETICO MARCA SQUARE D, 2 POLOS, 15 AMPER, TIPO QO250, 10 KA O SIMILAR; INCLUYE : CONEXIÓN, IDENTIFICIÓN DE CABLEADO, PEINADO DE CABLES, PRUEBAS DE FUNCIONAMIENTO, LEYENDA Y ETIQUETA DE SEGURIDAD, MANO DE OBRA, HERRAMIENTA Y TODO LO NECESARIO PARA CORRECTA EJECUCIÓN DE LOS TRABAJOS.","PZA.",4]
[null,"B.VII.10","SUMINSTRO E INSTALACIÓN DE INTERRUPTOR TERMOMAGNETICO CON PROTECCIÓN FALLA A TIERRA TIPO GFCI, MARCA SQUARE D, 1 POLOS, 15 AMPER, TIPO QO115GFCI, 10 kA. O SIMILAR; INCLUYE : CONEXIÓN, IDENTIFICIÓN DE CABLEADO, PEINADO DE CABLES, PRUEBAS DE FUNCIONAMIENTO, LEYENDA Y ETIQUETA DE SEGURIDAD, MANO DE OBRA, HERRAMIENTA Y TODO LO NECESARIO PARA CORRECTA EJECUCIÓN DE LOS TRABAJOS.","PZA.",3]
[null,"B.VII.11","SUMINSTRO E INSTALACIÓN DE INTERRUPTOR TERMOMAGNETICO, MARCA SQUARE D, 1 POLOS, 15 AMPER, TIPO QO115, 10 kA. O SIMILAR; INCLUYE : CONEXIÓN, IDENTIFICIÓN DE CABLEADO, PEINADO DE CABLES, PRUEBAS DE FUNCIONAMIENTO, LEYENDA Y ETIQUETA DE SEGURIDAD, MANO DE OBRA, HERRAMIENTA Y TODO LO NECESARIO PARA CORRECTA EJECUCIÓN DE LOS TRABAJOS.","PZA.",1]
[null,"B.VII.12","SUMINSTRO E INSTALACIÓN DE CONTACTO DUPLEX MARCA LEVITON 127V/15A, NEMA 15-5R, INCLUYE : TAPA, CONEXIÓN, IDENTIFICIÓN DE CABLEADO, TERMINALES PONCHABLES, TERMINALES TIPO CAPUCHO, PRUEBAS DE FUNCIONAMIENTO, LEYENDA Y ETIQUETA DE SEGURIDAD, MANO DE OBRA, HERRAMIENTA Y TODO LO NECESARIO PARA CORRECTA EJECUCIÓN DE LOS TRABAJOS.","PZA.",3]
[null,"B.VII.13","SUMINISTRO E INSTALACIÓN DECABLE DE COBRE CALIBRE 10 AWG (5,26 MM²), AISLAMIENTO TIPO THHW - LS,  600 V, 75/90°C. MARCA VIAKON O SIMILAR; INCLUYE : IDENTIFICACIÓN DE CABLEADO, GUIADO, RECORTE, CINTA AISLANTE, CONECTORES BIPARTIDO, CONEXIONES, MANO DE OBRA, HERRAMIENTA Y TODO LO NECESARIO PARA CORRECTA EJECUCIÓN DE LOS TRABAJOS.","ML",160]
[null,"B.VII.14","SUMINISTRO E INSTALACIÓN DECABLE DE COBRE CALIBRE 12 AWG (3,31 MM²), AISLAMIENTO TIPO THHW - LS, 600 V, 75/90°C. MARCA VIAKON O SIMILAR; INCLUYE : IDENTIFICACIÓN DE CABLEADO, GUIADO, RECORTE, CINTA AISLANTE, CONECTORES BIPARTIDO, CONEXIONES, MANO DE OBRA, HERRAMIENTA Y TODO LO NECESARIO PARA CORRECTA EJECUCIÓN DE LOS TRABAJOS.","ML",450]
[null,"B.VII.15","SUMINISTRO E INSTALACIÓN TUBO  CONDUIT PVC  RIGIDO CED. 40, DÍAMETRO 1 PLGS (27 MM²), MARCA CARLON O SIMILAR, INCLUYE : CURVAS, CONECTORES Y ACCESORIOS ADECUADO, FIJACIÓN, NIVELACIÓN, CORTES Y  RETIRO DE ESCOMBRO, MANO DE OBRA, HERRAMIENTA Y TODO LO NECESARIO PARA CORRECTA EJECUCIÓN DE LOS TRABAJOS.","ML",80]
[null,"B.VII.16","SUMINISTRO E INSTALACIÓN TUBO  CONDUIT PVC  RIGIDO CED. 40, DÍAMETRO 3/4 PLGS (21 MM²), MARCA CARLON O SIMILAR, INCLUYE : CURVAS, CONECTORES Y ACCESORIOS ADECUADO, FIJACIÓN, NIVELACIÓN, CORTES Y  RETIRO DE ESCOMBRO, MANO DE OBRA, HERRAMIENTA Y TODO LO NECESARIO PARA CORRECTA EJECUCIÓN DE LOS TRABAJOS.","ML",30]
[null,"B.VII.17","SUMINISTRO E INSTALACIÓN TUBO  CONDUIT PVC  RIGIDO CED. 40, DÍAMETRO 1/2 PLGS (16 MM²), MARCA CARLON O SIMILAR, INCLUYE : CURVAS, CONECTORES Y ACCESORIOS ADECUADO, FIJACIÓN, NIVELACIÓN, CORTES Y  RETIRO DE ESCOMBRO, MANO DE OBRA, HERRAMIENTA Y TODO LO NECESARIO PARA CORRECTA EJECUCIÓN DE LOS TRABAJOS.","ML",160]
[null,"B.VII.18","SALIDA ELÉCTRICA 127 VOLTS PARA LUMINARIAS, INCLUYE : CAJA OCTAGONAL O CAJA 4 X 4 GALVANIZADA, GUIADO, TERMINALES PONCHABLES, CONECTORES TIPO CAPUCHA, CONECTORES TIPO OJILLO, CINTA VULCANIZABLE, CINTA AISLANTE, IDENTIFICACIÓN DE CABLEADO, CORTE Y RETIRO DE DESPERDICIO, COCA, MANO DE OBRA, HERRAMIENTA Y TODO LO NECESARIO PARA LA CORRECTA EJECUCIÓN DE LOS TRABAJOS.","SAL",38]
[null,"B.VII.19","SALIDA ELÉCTRICA PARA APAGADOR SENCILLO 127V/15A, INCLUYE : GUIADO, TERMINALES PONCHABLES, CONECTORES TIPO CAPUCHA, CONECTORES TIPO OJILLO, CINTA VULCANIZABLE, CINTA AISLANTE, IDENTIFICACIÓN DE CABLEADO, CORTE Y RETIRO DE DESPERDICIO, COCA, MANO DE OBRA, HERRAMIENTA Y TODO LO NECESARIO PARA LA CORRECTA EJECUCIÓN DE LOS TRABAJOS.","SAL",3]
[null,"B.VII.20","SALIDA ELÉCTRICA PARA CONTACTO DUPLEX 127V/15A, INCLUYE : GUIADO, TERMINALES PONCHABLES, CONECTORES TIPO CAPUCHA, CONECTORES TIPO OJILLO, CINTA VULCANIZABLE, CINTA AISLANTE, IDENTIFICACIÓN DE CABLEADO, CORTE Y RETIRO DE DESPERDICIO, COCA, MANO DE OBRA, HERRAMIENTA Y TODO LO NECESARIO PARA LA CORRECTA EJECUCIÓN DE LOS TRABAJOS.","SAL",3]
[]
[]
[null,null,null,null,null,"SUB TOTAL"]
[null,null,null,null,null,"IVA"]
[null,null,null,null,null,"TOTAL"]